Body_Code,Body_Name,Service_Area,Responsible_Unit,Expense_Type,Expense_Code,Narrative,Date,Transaction_Number,Amount,Supplier_Name
http://statistics.data.gov.uk/id/local-authority/38,Oxfordshire County Council,Oxfordshire Customer Services,Disclosure & Barring Service (DBS Team),Expenses,46512,Criminal Records Bureau Charges Invoiced,29/04/2015,3100000181,3245,Security Watchdog
http://statistics.data.gov.uk/id/local-authority/38,Oxfordshire County Council,Commercial Services,Concessionary Fares,Expenses,46901,Licenses,01/04/2015,3100055818,-423.5,ITSO Ltd
http://statistics.data.gov.uk/id/local-authority/38,Oxfordshire County Council,Sexual Health,STI Testing and Treatment,Voluntary Associations,55400,Service Agreements-A,28/04/2015,3100056398,-48434,Royal Berkshire NHS Foundation Trus
http://statistics.data.gov.uk/id/local-authority/38,Oxfordshire County Council,Sexual Health,STI Testing and Treatment,Voluntary Associations,55400,Service Agreements-A,28/04/2015,3100056399,-16148,Royal Berkshire NHS Foundation Trus
http://statistics.data.gov.uk/id/local-authority/38,Oxfordshire County Council,Children's Social Care,Mainstream Residential,Balance Sheet General,B2030,Goods Received not Invoiced,24/04/2015,3100056458,-2733.33,Swalcliffe Park School Trust
http://statistics.data.gov.uk/id/local-authority/38,Oxfordshire County Council,STD Insurance,LMS,Insurance Permiums Holding A/c,Z5846,Insurance Premiums Holding Account External Premiu,01/04/2015,3100056851,-3229.68,Perkins Slade Ltd
http://statistics.data.gov.uk/id/local-authority/38,Oxfordshire County Council,"Older People, Phys Disabilities & Equip",OP Pool Fast Track,Other Agency and Contracted Services,57304,Home Support (Ext) Palliative Care,10/04/2015,3150000000,-690.36,Radis Community Care
http://statistics.data.gov.uk/id/local-authority/38,Oxfordshire County Council,Children's Social Care,Aim Higher Funding,Voluntary Associations,55402,Service Agreements - Family Support,10/04/2015,3150000001,-7867,Children In Touch
http://statistics.data.gov.uk/id/local-authority/38,Oxfordshire County Council,Education & Early Intervention,Targeted support via EYP for 2yrs & ISS,Grants and Subscriptions,47100,Grants to Voluntary,20/04/2015,3150000004,-6055.4,The Oxford Nursery
http://statistics.data.gov.uk/id/local-authority/38,Oxfordshire County Council,"Older People, Phys Disabilities & Equip",OP Pool Fast Track,Other Agency and Contracted Services,57304,Home Support (Ext) Palliative Care,20/04/2015,3150004640,-1531.24,Corinium Care
http://statistics.data.gov.uk/id/local-authority/38,Oxfordshire County Council,Oxfordshire Customer Services,MIS Payroll Workflow,Balance Sheet General,B7102,Local Government AVC,01/04/2015,3300000027,58533.27,Prudential Assurance Co. Ltd
http://statistics.data.gov.uk/id/local-authority/38,Oxfordshire County Council,Oxfordshire Customer Services,MIS Payroll Workflow,Balance Sheet General,B7103,Teachers AVC,01/04/2015,3300000028,19314.01,Prudential Assurance
http://statistics.data.gov.uk/id/local-authority/38,Oxfordshire County Council,Oxfordshire Customer Services,MIS Payroll Workflow,Balance Sheet General,B7110,Personal Accident Scheme,15/04/2015,3300000030,702.17,Chartis Insurance UK Ltd
http://statistics.data.gov.uk/id/local-authority/38,Oxfordshire County Council,Oxfordshire Customer Services,MIS Payroll Workflow,Balance Sheet General,B7111,Court Orders,15/04/2015,3300000031,587.11,HMCTS
http://statistics.data.gov.uk/id/local-authority/38,Oxfordshire County Council,Oxfordshire Customer Services,MIS Payroll Workflow,Balance Sheet General,B7111,Court Orders,15/04/2015,3300000033,1461,Child Maintenance Service
http://statistics.data.gov.uk/id/local-authority/38,Oxfordshire County Council,Oxfordshire Customer Services,MIS Payroll Workflow,Balance Sheet General,B7115,Fire Brigade Union Subs,15/04/2015,3300000035,6498.26,Fire Brigades Union
http://statistics.data.gov.uk/id/local-authority/38,Oxfordshire County Council,Oxfordshire Customer Services,MIS Payroll Workflow,Balance Sheet General,B7114,Fire Service National Benevolent,15/04/2015,3300000036,705.57,The Fire Fighters Charity Regular G
http://statistics.data.gov.uk/id/local-authority/38,Oxfordshire County Council,Oxfordshire Customer Services,MIS Payroll Workflow,Balance Sheet General,B7118,GAYE,15/04/2015,3300000039,770.67,Give As You Earn
http://statistics.data.gov.uk/id/local-authority/38,Oxfordshire County Council,Oxfordshire Customer Services,MIS Payroll Workflow,Balance Sheet General,B7113,GMBU Subscriptions,15/04/2015,3300000040,931.39,G M B
http://statistics.data.gov.uk/id/local-authority/38,Oxfordshire County Council,Oxfordshire Customer Services,MIS Payroll Workflow,Balance Sheet General,B7111,Court Orders,15/04/2015,3300000043,1670.87,Oxford City Council
http://statistics.data.gov.uk/id/local-authority/38,Oxfordshire County Council,Oxfordshire Customer Services,MIS Payroll Workflow,Balance Sheet General,B7123,Conservative Group Association,15/04/2015,3300000044,775.5,Oxfordshire Labour Councillors
http://statistics.data.gov.uk/id/local-authority/38,Oxfordshire County Council,Oxfordshire Customer Services,MIS Payroll Workflow,Balance Sheet General,B7111,Court Orders,15/04/2015,3300000045,615.65,South Oxfordshire District Council
http://statistics.data.gov.uk/id/local-authority/38,Oxfordshire County Council,Oxfordshire Customer Services,MIS Payroll Workflow,Balance Sheet General,B7105,Unison Subscription,15/04/2015,3300000047,16461.16,Unison
http://statistics.data.gov.uk/id/local-authority/38,Oxfordshire County Council,Oxfordshire Customer Services,MIS Payroll Workflow,Balance Sheet General,B7111,Court Orders,15/04/2015,3300000049,533.13,Vale of White Horse District Counci
http://statistics.data.gov.uk/id/local-authority/38,Oxfordshire County Council,Oxfordshire Customer Services,MIS Payroll Workflow,Balance Sheet General,B7104,NHS Pension Scheme,15/04/2015,3300000052,19359.51,NHS Pension Scheme
http://statistics.data.gov.uk/id/local-authority/38,Oxfordshire County Council,Commercial Services,"Electrical NP Rds, illuminated Signs",Private Contractors,56202,Maint Costs 2nd Sche,01/04/2015,3300000057,2281.97,Southern Electric Contracting Ltd.
http://statistics.data.gov.uk/id/local-authority/38,Oxfordshire County Council,Commercial Services,"Electrical Prin Rds, illuminated Signs",Private Contractors,56202,Maint Costs 2nd Sche,01/04/2015,3300000057,489.52,Southern Electric Contracting Ltd.
http://statistics.data.gov.uk/id/local-authority/38,Oxfordshire County Council,Commercial Services,"Electrical NP Rds, Street Lighting",Private Contractors,56202,Maint Costs 2nd Sche,01/04/2015,3300000057,14866.75,Southern Electric Contracting Ltd.
http://statistics.data.gov.uk/id/local-authority/38,Oxfordshire County Council,Commercial Services,"Electrical Prin Rds, Street Lighting",Private Contractors,56202,Maint Costs 2nd Sche,01/04/2015,3300000057,545.13,Southern Electric Contracting Ltd.
http://statistics.data.gov.uk/id/local-authority/38,Oxfordshire County Council,Learning  Disabilities Pooled Budget,Direct Payments City Team,Other Agency and Contracted Services,57401,Direct Payments,01/04/2015,3300000075,6286.29,REDACTED PERSONAL DATA
http://statistics.data.gov.uk/id/local-authority/38,Oxfordshire County Council,Learning  Disabilities Pooled Budget,Direct Payments City Team,Other Agency and Contracted Services,57401,Direct Payments,01/04/2015,3300000075,-2413.71,REDACTED PERSONAL DATA
http://statistics.data.gov.uk/id/local-authority/38,Oxfordshire County Council,Commercial Services,Traffic Signals Maintenance,Private Contractors,56201,Maint Costs 1st Sche,01/04/2015,3300000077,25509.74,SIEMENS PLC
http://statistics.data.gov.uk/id/local-authority/38,Oxfordshire County Council,Commercial Services,Traffic Signals Maintenance,Private Contractors,56202,Maint Costs 2nd Sche,01/04/2015,3300000078,2898,SIEMENS PLC
http://statistics.data.gov.uk/id/local-authority/38,Oxfordshire County Council,Commercial Services,"Electrical NP Rds, illuminated Signs",Private Contractors,56202,Maint Costs 2nd Sche,02/04/2015,3300000094,1762.92,Southern Electric Contracting Ltd.
http://statistics.data.gov.uk/id/local-authority/38,Oxfordshire County Council,Commercial Services,"Electrical NP Rds, Street Lighting",Private Contractors,56202,Maint Costs 2nd Sche,02/04/2015,3300000094,12096.45,Southern Electric Contracting Ltd.
http://statistics.data.gov.uk/id/local-authority/38,Oxfordshire County Council,Children's Social Care,Agency Residential - Disabilities,Other Agency and Contracted Services,57790,Other Residential Placements,07/04/2015,3300000143,916,Chailey Heritage School
http://statistics.data.gov.uk/id/local-authority/38,Oxfordshire County Council,STD Insurance,Motor Fleet,Motor Insurance Fund Rev AC,Z5151,Motor IF Own Damage,07/04/2015,3300000145,1064.27,AWP Body Repairs
http://statistics.data.gov.uk/id/local-authority/38,Oxfordshire County Council,Personal Budgets,Personal Budgets OP VALE,Other Agency and Contracted Services,57401,Direct Payments,07/04/2015,3300000155,1814.62,WK2 Advance Housing & Support
http://statistics.data.gov.uk/id/local-authority/38,Oxfordshire County Council,"Older People, Phys Disabilities & Equip",Personal Health Budgets PD (PCT),Other Agency and Contracted Services,57401,Direct Payments,08/04/2015,3300000165,6480,WK4 Advance Housing & Support
http://statistics.data.gov.uk/id/local-authority/38,Oxfordshire County Council,"Older People, Phys Disabilities & Equip",Personal Health Budgets PD (PCT),Other Agency and Contracted Services,57401,Direct Payments,08/04/2015,3300000165,5670,WK4 Advance Housing & Support
http://statistics.data.gov.uk/id/local-authority/38,Oxfordshire County Council,"Older People, Phys Disabilities & Equip",PD Comm Supp Purchasg Budget - Thame,Other Agency and Contracted Services,57401,Direct Payments,08/04/2015,3300000166,3090,WK4 Advance Housing & Support
http://statistics.data.gov.uk/id/local-authority/38,Oxfordshire County Council,"Older People, Phys Disabilities & Equip",PD Comm Supp Purchasg Budget - Thame,Other Agency and Contracted Services,57401,Direct Payments,08/04/2015,3300000166,1030,WK4 Advance Housing & Support
http://statistics.data.gov.uk/id/local-authority/38,Oxfordshire County Council,"Older People, Phys Disabilities & Equip",PD Comm Supp Budgt - Bicester/Kidlington,Other Agency and Contracted Services,57401,Direct Payments,08/04/2015,3300000167,1194,WK4 Advance Housing & Support
http://statistics.data.gov.uk/id/local-authority/38,Oxfordshire County Council,"Older People, Phys Disabilities & Equip",PD Comm Supp Purchasg Budget - Witney,Other Agency and Contracted Services,57401,Direct Payments,08/04/2015,3300000169,642,WK4 Advance Housing & Support
http://statistics.data.gov.uk/id/local-authority/38,Oxfordshire County Council,"Older People, Phys Disabilities & Equip",Community Support Budget - Witney,Other Agency and Contracted Services,57401,Direct Payments,08/04/2015,3300000170,513,WK4 Advance Housing & Support
http://statistics.data.gov.uk/id/local-authority/38,Oxfordshire County Council,"Older People, Phys Disabilities & Equip",PD Comm Supp Purchasg Budget - Didcot,Other Agency and Contracted Services,57401,Direct Payments,08/04/2015,3300000172,990,WK4 Advance Housing & Support
http://statistics.data.gov.uk/id/local-authority/38,Oxfordshire County Council,"Older People, Phys Disabilities & Equip",OP Pool Continuing Care Delegated Health,Other Agency and Contracted Services,57401,Direct Payments,08/04/2015,3300000173,689.52,WK4 Advance Housing & Support
http://statistics.data.gov.uk/id/local-authority/38,Oxfordshire County Council,"Older People, Phys Disabilities & Equip",Community Support Budget - City,Other Agency and Contracted Services,57401,Direct Payments,08/04/2015,3300000173,1899.48,WK4 Advance Housing & Support
http://statistics.data.gov.uk/id/local-authority/38,Oxfordshire County Council,"Older People, Phys Disabilities & Equip",Community Support Budget - City,Other Agency and Contracted Services,57401,Direct Payments,08/04/2015,3300000173,633.16,WK4 Advance Housing & Support
http://statistics.data.gov.uk/id/local-authority/38,Oxfordshire County Council,"Older People, Phys Disabilities & Equip",Community Support Budget - Witney,Other Agency and Contracted Services,57401,Direct Payments,08/04/2015,3300000175,870,WK4 Advance Housing & Support
http://statistics.data.gov.uk/id/local-authority/38,Oxfordshire County Council,"Older People, Phys Disabilities & Equip",Community Support Budget - Witney,Other Agency and Contracted Services,57401,Direct Payments,08/04/2015,3300000177,696,WK4 Advance Housing & Support
http://statistics.data.gov.uk/id/local-authority/38,Oxfordshire County Council,"Older People, Phys Disabilities & Equip",Community Support Budget - Banbury,Other Agency and Contracted Services,57401,Direct Payments,08/04/2015,3300000178,1263,WK4 Advance Housing & Support
http://statistics.data.gov.uk/id/local-authority/38,Oxfordshire County Council,"Older People, Phys Disabilities & Equip",Community Support Budget - Banbury,Other Agency and Contracted Services,57401,Direct Payments,08/04/2015,3300000178,1142.71,WK4 Advance Housing & Support
http://statistics.data.gov.uk/id/local-authority/38,Oxfordshire County Council,"Older People, Phys Disabilities & Equip",Community Support Budget - Banbury,Other Agency and Contracted Services,57401,Direct Payments,08/04/2015,3300000178,-1021.47,WK4 Advance Housing & Support
http://statistics.data.gov.uk/id/local-authority/38,Oxfordshire County Council,"Older People, Phys Disabilities & Equip",Community Support Budget - Chipping Nort,Other Agency and Contracted Services,57401,Direct Payments,08/04/2015,3300000179,768,WK4 Advance Housing & Support
http://statistics.data.gov.uk/id/local-authority/38,Oxfordshire County Council,"Older People, Phys Disabilities & Equip",Community Support Budget - Thame,Other Agency and Contracted Services,57401,Direct Payments,08/04/2015,3300000181,1998.9,WK4 Advance Housing & Support
http://statistics.data.gov.uk/id/local-authority/38,Oxfordshire County Council,"Older People, Phys Disabilities & Equip",Community Support Budget - Thame,Other Agency and Contracted Services,57401,Direct Payments,08/04/2015,3300000181,666.3,WK4 Advance Housing & Support
http://statistics.data.gov.uk/id/local-authority/38,Oxfordshire County Council,Learning  Disabilities Pooled Budget,Direct Payments South Team,Other Agency and Contracted Services,57401,Direct Payments,08/04/2015,3300000185,1272,WK4 Advance Housing & Support
http://statistics.data.gov.uk/id/local-authority/38,Oxfordshire County Council,"Older People, Phys Disabilities & Equip",Personal Health Budgets PD (PCT),Other Agency and Contracted Services,57401,Direct Payments,08/04/2015,3300000186,6331.02,WK4 Advance Housing & Support
http://statistics.data.gov.uk/id/local-authority/38,Oxfordshire County Council,"Older People, Phys Disabilities & Equip",Personal Health Budgets PD (PCT),Other Agency and Contracted Services,57401,Direct Payments,08/04/2015,3300000186,2110.34,WK4 Advance Housing & Support
http://statistics.data.gov.uk/id/local-authority/38,Oxfordshire County Council,"Older People, Phys Disabilities & Equip",Community Support Budget - City,Other Agency and Contracted Services,57401,Direct Payments,08/04/2015,3300000187,510,WK4 Advance Housing & Support
http://statistics.data.gov.uk/id/local-authority/38,Oxfordshire County Council,"Older People, Phys Disabilities & Equip",PD Comm Supp Budget - Banbury,Other Agency and Contracted Services,57401,Direct Payments,08/04/2015,3300000190,814.2,WK4 Advance Housing & Support
http://statistics.data.gov.uk/id/local-authority/38,Oxfordshire County Council,"Older People, Phys Disabilities & Equip",PD Comm Supp Purchasg Budget - Didcot,Other Agency and Contracted Services,57401,Direct Payments,08/04/2015,3300000191,609,WK4 Advance Housing & Support
http://statistics.data.gov.uk/id/local-authority/38,Oxfordshire County Council,"Older People, Phys Disabilities & Equip",Community Support Budget - Didcot,Other Agency and Contracted Services,57401,Direct Payments,08/04/2015,3300000192,870,WK4 Advance Housing & Support
http://statistics.data.gov.uk/id/local-authority/38,Oxfordshire County Council,Learning  Disabilities Pooled Budget,Direct Payments South Team,Other Agency and Contracted Services,57401,Direct Payments,08/04/2015,3300000193,699.93,WK4 Advance Housing & Support
http://statistics.data.gov.uk/id/local-authority/38,Oxfordshire County Council,Learning  Disabilities Pooled Budget,Direct Payments City Team,Other Agency and Contracted Services,57401,Direct Payments,08/04/2015,3300000194,1342.11,WK4 Advance Housing & Support
http://statistics.data.gov.uk/id/local-authority/38,Oxfordshire County Council,"Older People, Phys Disabilities & Equip",Community Support Budget - Didcot,Other Agency and Contracted Services,57401,Direct Payments,08/04/2015,3300000196,2481,WK4 Advance Housing & Support
http://statistics.data.gov.uk/id/local-authority/38,Oxfordshire County Council,"Older People, Phys Disabilities & Equip",Community Support Budget - Didcot,Other Agency and Contracted Services,57401,Direct Payments,08/04/2015,3300000196,827,WK4 Advance Housing & Support
http://statistics.data.gov.uk/id/local-authority/38,Oxfordshire County Council,"Older People, Phys Disabilities & Equip",PD Community Support Budget - Kidlington,Other Agency and Contracted Services,57401,Direct Payments,08/04/2015,3300000197,1425,WK4 Advance Housing & Support
http://statistics.data.gov.uk/id/local-authority/38,Oxfordshire County Council,"Older People, Phys Disabilities & Equip",Community Support Budget - City,Other Agency and Contracted Services,57401,Direct Payments,08/04/2015,3300000199,618,WK4 Advance Housing & Support
http://statistics.data.gov.uk/id/local-authority/38,Oxfordshire County Council,"Older People, Phys Disabilities & Equip",PD Comm Supp Purchasg Budget - Abingdon,Other Agency and Contracted Services,57401,Direct Payments,08/04/2015,3300000200,513,WK4 Advance Housing & Support
http://statistics.data.gov.uk/id/local-authority/38,Oxfordshire County Council,"Older People, Phys Disabilities & Equip",PD Comm Supp Budget - Banbury,Other Agency and Contracted Services,57401,Direct Payments,08/04/2015,3300000201,768,WK4 Advance Housing & Support
http://statistics.data.gov.uk/id/local-authority/38,Oxfordshire County Council,"Older People, Phys Disabilities & Equip",PD Community Support Budget - Faringdon,Other Agency and Contracted Services,57401,Direct Payments,08/04/2015,3300000204,911.4,WK4 Advance Housing & Support
http://statistics.data.gov.uk/id/local-authority/38,Oxfordshire County Council,"Older People, Phys Disabilities & Equip",PD Comm Supp Purchasg Budget - Henley,Other Agency and Contracted Services,57401,Direct Payments,08/04/2015,3300000205,1884,WK4 Advance Housing & Support
http://statistics.data.gov.uk/id/local-authority/38,Oxfordshire County Council,"Older People, Phys Disabilities & Equip",PD Comm Supp Purchasg Budget - Henley,Other Agency and Contracted Services,57401,Direct Payments,08/04/2015,3300000205,628,WK4 Advance Housing & Support
http://statistics.data.gov.uk/id/local-authority/38,Oxfordshire County Council,"Older People, Phys Disabilities & Equip",PD Comm Supp Purchasg Budget - Didcot,Other Agency and Contracted Services,57401,Direct Payments,08/04/2015,3300000206,1428,WK4 Advance Housing & Support
http://statistics.data.gov.uk/id/local-authority/38,Oxfordshire County Council,Learning  Disabilities Pooled Budget,Direct Payments North Team,Other Agency and Contracted Services,57401,Direct Payments,08/04/2015,3300000207,1500,WK4 Advance Housing & Support
http://statistics.data.gov.uk/id/local-authority/38,Oxfordshire County Council,Learning  Disabilities Pooled Budget,Direct Payments North Team,Other Agency and Contracted Services,57401,Direct Payments,08/04/2015,3300000207,500,WK4 Advance Housing & Support
http://statistics.data.gov.uk/id/local-authority/38,Oxfordshire County Council,"Older People, Phys Disabilities & Equip",PD Comm Supp Purchasg Budget - City,Other Agency and Contracted Services,57401,Direct Payments,08/04/2015,3300000208,687,WK4 Advance Housing & Support
http://statistics.data.gov.uk/id/local-authority/38,Oxfordshire County Council,"Older People, Phys Disabilities & Equip",Community Support Budget - Banbury,Other Agency and Contracted Services,57401,Direct Payments,08/04/2015,3300000209,565.2,WK4 Advance Housing & Support
http://statistics.data.gov.uk/id/local-authority/38,Oxfordshire County Council,"Older People, Phys Disabilities & Equip",PD Comm Supp Purchasg Budget - Thame,Other Agency and Contracted Services,57401,Direct Payments,08/04/2015,3300000210,2664,WK4 Advance Housing & Support
http://statistics.data.gov.uk/id/local-authority/38,Oxfordshire County Council,"Older People, Phys Disabilities & Equip",PD Comm Supp Purchasg Budget - Thame,Other Agency and Contracted Services,57401,Direct Payments,08/04/2015,3300000210,888,WK4 Advance Housing & Support
http://statistics.data.gov.uk/id/local-authority/38,Oxfordshire County Council,"Older People, Phys Disabilities & Equip",Community Support Budget - Wantage,Other Agency and Contracted Services,57401,Direct Payments,08/04/2015,3300000211,790.2,WK4 Advance Housing & Support
http://statistics.data.gov.uk/id/local-authority/38,Oxfordshire County Council,"Older People, Phys Disabilities & Equip",PD Comm Supp Purchasg Budget - Witney,Other Agency and Contracted Services,57401,Direct Payments,08/04/2015,3300000212,703,WK4 Advance Housing & Support
http://statistics.data.gov.uk/id/local-authority/38,Oxfordshire County Council,"Older People, Phys Disabilities & Equip",PD Comm Supp Purchasg Budget - Witney,Other Agency and Contracted Services,57401,Direct Payments,08/04/2015,3300000212,2109,WK4 Advance Housing & Support
http://statistics.data.gov.uk/id/local-authority/38,Oxfordshire County Council,"Older People, Phys Disabilities & Equip",PD Comm Supp Budget - Banbury,Other Agency and Contracted Services,57401,Direct Payments,08/04/2015,3300000213,591,WK4 Advance Housing & Support
http://statistics.data.gov.uk/id/local-authority/38,Oxfordshire County Council,"Older People, Phys Disabilities & Equip",Community Support Budget - Banbury,Other Agency and Contracted Services,57401,Direct Payments,08/04/2015,3300000214,1977.86,WK4 Advance Housing & Support
http://statistics.data.gov.uk/id/local-authority/38,Oxfordshire County Council,"Older People, Phys Disabilities & Equip",Community Support Budget - Banbury,Other Agency and Contracted Services,57401,Direct Payments,08/04/2015,3300000214,585,WK4 Advance Housing & Support
http://statistics.data.gov.uk/id/local-authority/38,Oxfordshire County Council,"Older People, Phys Disabilities & Equip",PD Comm Supp Budgt - Bicester/Kidlington,Other Agency and Contracted Services,57401,Direct Payments,08/04/2015,3300000217,906,WK4 Advance Housing & Support
http://statistics.data.gov.uk/id/local-authority/38,Oxfordshire County Council,"Older People, Phys Disabilities & Equip",Community Support Budget - Banbury,Other Agency and Contracted Services,57401,Direct Payments,08/04/2015,3300000219,1356,WK4 Advance Housing & Support
http://statistics.data.gov.uk/id/local-authority/38,Oxfordshire County Council,"Older People, Phys Disabilities & Equip",Community Support Budget - Banbury,Other Agency and Contracted Services,57401,Direct Payments,08/04/2015,3300000220,1050,WK4 Advance Housing & Support
http://statistics.data.gov.uk/id/local-authority/38,Oxfordshire County Council,"Older People, Phys Disabilities & Equip",PD Comm Supp Purchasg Budget - City,Other Agency and Contracted Services,57401,Direct Payments,08/04/2015,3300000224,857.37,WK4 Advance Housing & Support
http://statistics.data.gov.uk/id/local-authority/38,Oxfordshire County Council,"Older People, Phys Disabilities & Equip",Personal Health Budgets PD (PCT),Other Agency and Contracted Services,57401,Direct Payments,08/04/2015,3300000225,2375.28,WK4 Advance Housing & Support
http://statistics.data.gov.uk/id/local-authority/38,Oxfordshire County Council,"Older People, Phys Disabilities & Equip",Personal Health Budgets PD (PCT),Other Agency and Contracted Services,57401,Direct Payments,08/04/2015,3300000225,791.76,WK4 Advance Housing & Support
http://statistics.data.gov.uk/id/local-authority/38,Oxfordshire County Council,"Older People, Phys Disabilities & Equip",PD Community Support Budget - Kidlington,Other Agency and Contracted Services,57401,Direct Payments,08/04/2015,3300000226,948,WK4 Advance Housing & Support
http://statistics.data.gov.uk/id/local-authority/38,Oxfordshire County Council,"Older People, Phys Disabilities & Equip",Community Support Budget - Banbury,Other Agency and Contracted Services,57401,Direct Payments,08/04/2015,3300000227,930,WK4 Advance Housing & Support
http://statistics.data.gov.uk/id/local-authority/38,Oxfordshire County Council,"Older People, Phys Disabilities & Equip",Community Support Budget - Banbury,Other Agency and Contracted Services,57401,Direct Payments,08/04/2015,3300000228,1776,WK4 Advance Housing & Support
http://statistics.data.gov.uk/id/local-authority/38,Oxfordshire County Council,"Older People, Phys Disabilities & Equip",Community Support Budget - Banbury,Other Agency and Contracted Services,57401,Direct Payments,08/04/2015,3300000228,592,WK4 Advance Housing & Support
http://statistics.data.gov.uk/id/local-authority/38,Oxfordshire County Council,"Older People, Phys Disabilities & Equip",PD Comm Supp Purchasg Budget - Thame,Other Agency and Contracted Services,57401,Direct Payments,08/04/2015,3300000230,800.55,WK4 Advance Housing & Support
http://statistics.data.gov.uk/id/local-authority/38,Oxfordshire County Council,"Older People, Phys Disabilities & Equip",Community Support Budget - Witney,Other Agency and Contracted Services,57401,Direct Payments,08/04/2015,3300000231,813,WK4 Advance Housing & Support
http://statistics.data.gov.uk/id/local-authority/38,Oxfordshire County Council,Adult Social Care,MH Community Sup't,Other Agency and Contracted Services,57401,Direct Payments,08/04/2015,3300000232,512.28,WK4 Advance Housing & Support
http://statistics.data.gov.uk/id/local-authority/38,Oxfordshire County Council,"Older People, Phys Disabilities & Equip",PD Comm Supp Budget - Banbury,Other Agency and Contracted Services,57401,Direct Payments,08/04/2015,3300000233,2928,WK4 Advance Housing & Support
http://statistics.data.gov.uk/id/local-authority/38,Oxfordshire County Council,"Older People, Phys Disabilities & Equip",PD Comm Supp Budget - Banbury,Other Agency and Contracted Services,57401,Direct Payments,08/04/2015,3300000233,976,WK4 Advance Housing & Support
http://statistics.data.gov.uk/id/local-authority/38,Oxfordshire County Council,"Older People, Phys Disabilities & Equip",Community Support Budget - Witney,Other Agency and Contracted Services,57401,Direct Payments,08/04/2015,3300000234,2068.5,WK4 Advance Housing & Support
http://statistics.data.gov.uk/id/local-authority/38,Oxfordshire County Council,"Older People, Phys Disabilities & Equip",Community Support Budget - Witney,Other Agency and Contracted Services,57401,Direct Payments,08/04/2015,3300000234,689.5,WK4 Advance Housing & Support
http://statistics.data.gov.uk/id/local-authority/38,Oxfordshire County Council,"Older People, Phys Disabilities & Equip",Community Support Budget - Thame,Other Agency and Contracted Services,57401,Direct Payments,08/04/2015,3300000235,591,WK4 Advance Housing & Support
http://statistics.data.gov.uk/id/local-authority/38,Oxfordshire County Council,"Older People, Phys Disabilities & Equip",PD Comm Supp Purchasg Budget - City,Other Agency and Contracted Services,57401,Direct Payments,08/04/2015,3300000239,788,WK4 Advance Housing & Support
http://statistics.data.gov.uk/id/local-authority/38,Oxfordshire County Council,"Older People, Phys Disabilities & Equip",PD Comm Supp Purchasg Budget - City,Other Agency and Contracted Services,57401,Direct Payments,08/04/2015,3300000239,2364,WK4 Advance Housing & Support
http://statistics.data.gov.uk/id/local-authority/38,Oxfordshire County Council,"Older People, Phys Disabilities & Equip",Community Support Budget - Banbury,Other Agency and Contracted Services,57401,Direct Payments,08/04/2015,3300000240,525,WK4 Advance Housing & Support
http://statistics.data.gov.uk/id/local-authority/38,Oxfordshire County Council,"Older People, Phys Disabilities & Equip",Community Support Budget - Banbury,Other Agency and Contracted Services,57401,Direct Payments,08/04/2015,3300000240,975,WK4 Advance Housing & Support
http://statistics.data.gov.uk/id/local-authority/38,Oxfordshire County Council,"Older People, Phys Disabilities & Equip",Community Support Budget - Banbury,Other Agency and Contracted Services,57401,Direct Payments,08/04/2015,3300000240,-648.51,WK4 Advance Housing & Support
http://statistics.data.gov.uk/id/local-authority/38,Oxfordshire County Council,"Older People, Phys Disabilities & Equip",Community Support Budget - Abingdon,Other Agency and Contracted Services,57401,Direct Payments,08/04/2015,3300000241,501,WK4 Advance Housing & Support
http://statistics.data.gov.uk/id/local-authority/38,Oxfordshire County Council,"Older People, Phys Disabilities & Equip",Community Support Budget - Thame,Other Agency and Contracted Services,57401,Direct Payments,08/04/2015,3300000244,933,WK4 Advance Housing & Support
http://statistics.data.gov.uk/id/local-authority/38,Oxfordshire County Council,"Older People, Phys Disabilities & Equip",Community Support Budget - Thame,Other Agency and Contracted Services,57401,Direct Payments,08/04/2015,3300000245,1731,WK4 Advance Housing & Support
http://statistics.data.gov.uk/id/local-authority/38,Oxfordshire County Council,"Older People, Phys Disabilities & Equip",Community Support Budget - Thame,Other Agency and Contracted Services,57401,Direct Payments,08/04/2015,3300000245,577,WK4 Advance Housing & Support
http://statistics.data.gov.uk/id/local-authority/38,Oxfordshire County Council,"Older People, Phys Disabilities & Equip",Community Support Budget - Banbury,Other Agency and Contracted Services,57401,Direct Payments,08/04/2015,3300000246,1467,WK4 Advance Housing & Support
http://statistics.data.gov.uk/id/local-authority/38,Oxfordshire County Council,"Older People, Phys Disabilities & Equip",Community Support Budget - Didcot,Other Agency and Contracted Services,57401,Direct Payments,08/04/2015,3300000247,2103,WK4 Advance Housing & Support
http://statistics.data.gov.uk/id/local-authority/38,Oxfordshire County Council,"Older People, Phys Disabilities & Equip",Community Support Budget - Didcot,Other Agency and Contracted Services,57401,Direct Payments,08/04/2015,3300000247,701,WK4 Advance Housing & Support
http://statistics.data.gov.uk/id/local-authority/38,Oxfordshire County Council,"Older People, Phys Disabilities & Equip",Community Support Budget - Bicester,Other Agency and Contracted Services,57401,Direct Payments,08/04/2015,3300000248,795,WK4 Advance Housing & Support
http://statistics.data.gov.uk/id/local-authority/38,Oxfordshire County Council,"Older People, Phys Disabilities & Equip",PD Comm Supp Budget - Banbury,Other Agency and Contracted Services,57401,Direct Payments,08/04/2015,3300000249,693,WK4 Advance Housing & Support
http://statistics.data.gov.uk/id/local-authority/38,Oxfordshire County Council,"Older People, Phys Disabilities & Equip",Community Support Budget - Banbury,Other Agency and Contracted Services,57401,Direct Payments,08/04/2015,3300000250,791.4,WK4 Advance Housing & Support
http://statistics.data.gov.uk/id/local-authority/38,Oxfordshire County Council,"Older People, Phys Disabilities & Equip",Community Support Budget - Faringdon,Other Agency and Contracted Services,57401,Direct Payments,08/04/2015,3300000251,1752.09,WK4 Advance Housing & Support
http://statistics.data.gov.uk/id/local-authority/38,Oxfordshire County Council,"Older People, Phys Disabilities & Equip",Community Support Budget - Faringdon,Other Agency and Contracted Services,57401,Direct Payments,08/04/2015,3300000251,584.03,WK4 Advance Housing & Support
http://statistics.data.gov.uk/id/local-authority/38,Oxfordshire County Council,"Older People, Phys Disabilities & Equip",Community Support Budget - Banbury,Other Agency and Contracted Services,57401,Direct Payments,08/04/2015,3300000253,1749,WK4 Advance Housing & Support
http://statistics.data.gov.uk/id/local-authority/38,Oxfordshire County Council,"Older People, Phys Disabilities & Equip",Community Support Budget - Banbury,Other Agency and Contracted Services,57401,Direct Payments,08/04/2015,3300000253,583,WK4 Advance Housing & Support
http://statistics.data.gov.uk/id/local-authority/38,Oxfordshire County Council,"Older People, Phys Disabilities & Equip",Community Support Budget - Abingdon,Other Agency and Contracted Services,57401,Direct Payments,08/04/2015,3300000256,921,WK4 Advance Housing & Support
http://statistics.data.gov.uk/id/local-authority/38,Oxfordshire County Council,"Older People, Phys Disabilities & Equip",Community Support Budget - City,Other Agency and Contracted Services,57401,Direct Payments,08/04/2015,3300000257,975,WK4 Advance Housing & Support
http://statistics.data.gov.uk/id/local-authority/38,Oxfordshire County Council,"Older People, Phys Disabilities & Equip",Community Support Budget - Chipping Nort,Other Agency and Contracted Services,57401,Direct Payments,08/04/2015,3300000258,1074,WK4 Advance Housing & Support
http://statistics.data.gov.uk/id/local-authority/38,Oxfordshire County Council,"Older People, Phys Disabilities & Equip",Community Support Budget - Henley,Other Agency and Contracted Services,57401,Direct Payments,08/04/2015,3300000259,699,WK4 Advance Housing & Support
http://statistics.data.gov.uk/id/local-authority/38,Oxfordshire County Council,"Older People, Phys Disabilities & Equip",Community Support Budget - Bicester,Other Agency and Contracted Services,57401,Direct Payments,08/04/2015,3300000262,789.6,WK4 Advance Housing & Support
http://statistics.data.gov.uk/id/local-authority/38,Oxfordshire County Council,"Older People, Phys Disabilities & Equip",PD Comm Supp Purchasg Budget - Didcot,Other Agency and Contracted Services,57401,Direct Payments,08/04/2015,3300000263,696,WK4 Advance Housing & Support
http://statistics.data.gov.uk/id/local-authority/38,Oxfordshire County Council,"Older People, Phys Disabilities & Equip",PD Comm Supp Purchasg Budget - Witney,Other Agency and Contracted Services,57401,Direct Payments,08/04/2015,3300000264,891.09,WK4 Advance Housing & Support
http://statistics.data.gov.uk/id/local-authority/38,Oxfordshire County Council,"Older People, Phys Disabilities & Equip",Community Support Budget - Abingdon,Other Agency and Contracted Services,57401,Direct Payments,08/04/2015,3300000266,711,WK4 Advance Housing & Support
http://statistics.data.gov.uk/id/local-authority/38,Oxfordshire County Council,"Older People, Phys Disabilities & Equip",Community Support Budget - City,Other Agency and Contracted Services,57401,Direct Payments,08/04/2015,3300000267,831,WK4 Advance Housing & Support
http://statistics.data.gov.uk/id/local-authority/38,Oxfordshire County Council,"Older People, Phys Disabilities & Equip",PHB OP Package,Other Agency and Contracted Services,57401,Direct Payments,08/04/2015,3300000268,3624.03,WK4 Advance Housing & Support
http://statistics.data.gov.uk/id/local-authority/38,Oxfordshire County Council,"Older People, Phys Disabilities & Equip",PHB OP Package,Other Agency and Contracted Services,57401,Direct Payments,08/04/2015,3300000268,1208.01,WK4 Advance Housing & Support
http://statistics.data.gov.uk/id/local-authority/38,Oxfordshire County Council,"Older People, Phys Disabilities & Equip",Community Support Budget - City,Other Agency and Contracted Services,57401,Direct Payments,08/04/2015,3300000269,2019,WK4 Advance Housing & Support
http://statistics.data.gov.uk/id/local-authority/38,Oxfordshire County Council,"Older People, Phys Disabilities & Equip",Community Support Budget - City,Other Agency and Contracted Services,57401,Direct Payments,08/04/2015,3300000269,673,WK4 Advance Housing & Support
http://statistics.data.gov.uk/id/local-authority/38,Oxfordshire County Council,Learning  Disabilities Pooled Budget,Direct Payments City Team,Other Agency and Contracted Services,57401,Direct Payments,08/04/2015,3300000272,5760,WK4 Advance Housing & Support
http://statistics.data.gov.uk/id/local-authority/38,Oxfordshire County Council,Learning  Disabilities Pooled Budget,Direct Payments City Team,Other Agency and Contracted Services,57401,Direct Payments,08/04/2015,3300000272,576,WK4 Advance Housing & Support
http://statistics.data.gov.uk/id/local-authority/38,Oxfordshire County Council,"Older People, Phys Disabilities & Equip",PD Comm Supp Purchasg Budget - City,Other Agency and Contracted Services,57401,Direct Payments,08/04/2015,3300000273,786,WK4 Advance Housing & Support
http://statistics.data.gov.uk/id/local-authority/38,Oxfordshire County Council,"Older People, Phys Disabilities & Equip",PD CS Purch Budget - Health S28a JC,Other Agency and Contracted Services,57401,Direct Payments,08/04/2015,3300000274,798,WK4 Advance Housing & Support
http://statistics.data.gov.uk/id/local-authority/38,Oxfordshire County Council,Learning  Disabilities Pooled Budget,Direct Payments North Team,Other Agency and Contracted Services,57401,Direct Payments,08/04/2015,3300000275,651,WK4 Advance Housing & Support
http://statistics.data.gov.uk/id/local-authority/38,Oxfordshire County Council,"Older People, Phys Disabilities & Equip",Community Support Budget - Bicester,Other Agency and Contracted Services,57401,Direct Payments,08/04/2015,3300000276,825,WK4 Advance Housing & Support
http://statistics.data.gov.uk/id/local-authority/38,Oxfordshire County Council,Learning  Disabilities Pooled Budget,Direct Payments City Team,Other Agency and Contracted Services,57401,Direct Payments,08/04/2015,3300000277,2161.8,WK4 Advance Housing & Support
http://statistics.data.gov.uk/id/local-authority/38,Oxfordshire County Council,Learning  Disabilities Pooled Budget,Direct Payments City Team,Other Agency and Contracted Services,57401,Direct Payments,08/04/2015,3300000277,720.6,WK4 Advance Housing & Support
http://statistics.data.gov.uk/id/local-authority/38,Oxfordshire County Council,"Older People, Phys Disabilities & Equip",Community Support Budget - Abingdon,Other Agency and Contracted Services,57401,Direct Payments,08/04/2015,3300000278,519,WK4 Advance Housing & Support
http://statistics.data.gov.uk/id/local-authority/38,Oxfordshire County Council,Learning  Disabilities Pooled Budget,Direct Payments City Team,Other Agency and Contracted Services,57401,Direct Payments,08/04/2015,3300000279,1024.38,WK4 Advance Housing & Support
http://statistics.data.gov.uk/id/local-authority/38,Oxfordshire County Council,"Older People, Phys Disabilities & Equip",PD Comm Supp Budgt - Bicester/Kidlington,Other Agency and Contracted Services,57401,Direct Payments,08/04/2015,3300000280,2346,WK4 Advance Housing & Support
http://statistics.data.gov.uk/id/local-authority/38,Oxfordshire County Council,"Older People, Phys Disabilities & Equip",PD Comm Supp Budgt - Bicester/Kidlington,Other Agency and Contracted Services,57401,Direct Payments,08/04/2015,3300000280,782,WK4 Advance Housing & Support
http://statistics.data.gov.uk/id/local-authority/38,Oxfordshire County Council,"Older People, Phys Disabilities & Equip",PD Community Support Budget - Faringdon,Other Agency and Contracted Services,57401,Direct Payments,08/04/2015,3300000281,603,WK4 Advance Housing & Support
http://statistics.data.gov.uk/id/local-authority/38,Oxfordshire County Council,"Older People, Phys Disabilities & Equip",PD Comm Supp Purchasg Budget - Abingdon,Other Agency and Contracted Services,57401,Direct Payments,08/04/2015,3300000284,651,WK4 Advance Housing & Support
http://statistics.data.gov.uk/id/local-authority/38,Oxfordshire County Council,"Older People, Phys Disabilities & Equip",Community Support Budget - Abingdon,Other Agency and Contracted Services,57401,Direct Payments,08/04/2015,3300000285,930,WK4 Advance Housing & Support
http://statistics.data.gov.uk/id/local-authority/38,Oxfordshire County Council,"Older People, Phys Disabilities & Equip",PD Comm Supp Purchasg Budget - Witney,Other Agency and Contracted Services,57401,Direct Payments,08/04/2015,3300000289,1029,WK4 Advance Housing & Support
http://statistics.data.gov.uk/id/local-authority/38,Oxfordshire County Council,Learning  Disabilities Pooled Budget,Direct Payments North Team,Other Agency and Contracted Services,57401,Direct Payments,08/04/2015,3300000292,2058.93,WK4 Advance Housing & Support
http://statistics.data.gov.uk/id/local-authority/38,Oxfordshire County Council,Learning  Disabilities Pooled Budget,Direct Payments North Team,Other Agency and Contracted Services,57401,Direct Payments,08/04/2015,3300000292,686.31,WK4 Advance Housing & Support
http://statistics.data.gov.uk/id/local-authority/38,Oxfordshire County Council,"Older People, Phys Disabilities & Equip",Community Support Budget - Witney,Other Agency and Contracted Services,57401,Direct Payments,08/04/2015,3300000293,981,WK4 Advance Housing & Support
http://statistics.data.gov.uk/id/local-authority/38,Oxfordshire County Council,"Older People, Phys Disabilities & Equip",Community Support Budget - Witney,Other Agency and Contracted Services,57401,Direct Payments,08/04/2015,3300000293,1308,WK4 Advance Housing & Support
http://statistics.data.gov.uk/id/local-authority/38,Oxfordshire County Council,"Older People, Phys Disabilities & Equip",Community Support Budget - Chipping Nort,Other Agency and Contracted Services,57401,Direct Payments,08/04/2015,3300000293,-848,WK4 Advance Housing & Support
http://statistics.data.gov.uk/id/local-authority/38,Oxfordshire County Council,"Older People, Phys Disabilities & Equip",Community Support Budget - Banbury,Other Agency and Contracted Services,57401,Direct Payments,08/04/2015,3300000294,2022,WK4 Advance Housing & Support
http://statistics.data.gov.uk/id/local-authority/38,Oxfordshire County Council,"Older People, Phys Disabilities & Equip",Community Support Budget - Banbury,Other Agency and Contracted Services,57401,Direct Payments,08/04/2015,3300000294,674,WK4 Advance Housing & Support
http://statistics.data.gov.uk/id/local-authority/38,Oxfordshire County Council,"Older People, Phys Disabilities & Equip",Community Support Budget - Banbury,Other Agency and Contracted Services,57401,Direct Payments,08/04/2015,3300000295,1176,WK4 Advance Housing & Support
http://statistics.data.gov.uk/id/local-authority/38,Oxfordshire County Council,"Older People, Phys Disabilities & Equip",Community Support Budget - Banbury,Other Agency and Contracted Services,57401,Direct Payments,08/04/2015,3300000295,882,WK4 Advance Housing & Support
http://statistics.data.gov.uk/id/local-authority/38,Oxfordshire County Council,"Older People, Phys Disabilities & Equip",Community Support Budget - Banbury,Other Agency and Contracted Services,57401,Direct Payments,08/04/2015,3300000296,501,WK4 Advance Housing & Support
http://statistics.data.gov.uk/id/local-authority/38,Oxfordshire County Council,Learning  Disabilities Pooled Budget,Direct Payments South Team,Other Agency and Contracted Services,57401,Direct Payments,08/04/2015,3300000297,2409.36,WK4 Advance Housing & Support
http://statistics.data.gov.uk/id/local-authority/38,Oxfordshire County Council,Learning  Disabilities Pooled Budget,Direct Payments South Team,Other Agency and Contracted Services,57401,Direct Payments,08/04/2015,3300000297,803.12,WK4 Advance Housing & Support
http://statistics.data.gov.uk/id/local-authority/38,Oxfordshire County Council,"Older People, Phys Disabilities & Equip",PD Community Support Budget - Kidlington,Other Agency and Contracted Services,57401,Direct Payments,08/04/2015,3300000300,521.4,WK4 Advance Housing & Support
http://statistics.data.gov.uk/id/local-authority/38,Oxfordshire County Council,"Older People, Phys Disabilities & Equip",Community Support Budget - Banbury,Other Agency and Contracted Services,57401,Direct Payments,08/04/2015,3300000302,1134,WK4 Advance Housing & Support
http://statistics.data.gov.uk/id/local-authority/38,Oxfordshire County Council,"Older People, Phys Disabilities & Equip",Community Support Budget - Witney,Other Agency and Contracted Services,57401,Direct Payments,08/04/2015,3300000304,4180,WK4 Advance Housing & Support
http://statistics.data.gov.uk/id/local-authority/38,Oxfordshire County Council,"Older People, Phys Disabilities & Equip",Community Support Budget - Witney,Other Agency and Contracted Services,57401,Direct Payments,08/04/2015,3300000304,-2809.29,WK4 Advance Housing & Support
http://statistics.data.gov.uk/id/local-authority/38,Oxfordshire County Council,"Older People, Phys Disabilities & Equip",Community Support Budget - Witney,Other Agency and Contracted Services,57401,Direct Payments,08/04/2015,3300000304,924,WK4 Advance Housing & Support
http://statistics.data.gov.uk/id/local-authority/38,Oxfordshire County Council,"Older People, Phys Disabilities & Equip",Community Support Budget - Abingdon,Other Agency and Contracted Services,57401,Direct Payments,08/04/2015,3300000307,1173,WK4 Advance Housing & Support
http://statistics.data.gov.uk/id/local-authority/38,Oxfordshire County Council,"Older People, Phys Disabilities & Equip",PD Comm Supp Purchasg Budget - Abingdon,Other Agency and Contracted Services,57401,Direct Payments,08/04/2015,3300000308,1329,WK4 Advance Housing & Support
http://statistics.data.gov.uk/id/local-authority/38,Oxfordshire County Council,Learning  Disabilities Pooled Budget,Direct Payments South Team,Other Agency and Contracted Services,57401,Direct Payments,08/04/2015,3300000309,1307.55,WK4 Advance Housing & Support
http://statistics.data.gov.uk/id/local-authority/38,Oxfordshire County Council,"Older People, Phys Disabilities & Equip",PD Comm Supp Purchasg Budget - City,Other Agency and Contracted Services,57401,Direct Payments,08/04/2015,3300000310,3708,WK4 Advance Housing & Support
http://statistics.data.gov.uk/id/local-authority/38,Oxfordshire County Council,"Older People, Phys Disabilities & Equip",PD Comm Supp Purchasg Budget - City,Other Agency and Contracted Services,57401,Direct Payments,08/04/2015,3300000310,1236,WK4 Advance Housing & Support
http://statistics.data.gov.uk/id/local-authority/38,Oxfordshire County Council,"Older People, Phys Disabilities & Equip",Community Support Budget - Banbury,Other Agency and Contracted Services,57401,Direct Payments,08/04/2015,3300000312,639,WK4 Advance Housing & Support
http://statistics.data.gov.uk/id/local-authority/38,Oxfordshire County Council,"Older People, Phys Disabilities & Equip",Community Support Budget - Chipping Nort,Other Agency and Contracted Services,57401,Direct Payments,08/04/2015,3300000313,525,WK4 Advance Housing & Support
http://statistics.data.gov.uk/id/local-authority/38,Oxfordshire County Council,"Older People, Phys Disabilities & Equip",Community Support Budget - Chipping Nort,Other Agency and Contracted Services,57401,Direct Payments,08/04/2015,3300000313,1400,WK4 Advance Housing & Support
http://statistics.data.gov.uk/id/local-authority/38,Oxfordshire County Council,"Older People, Phys Disabilities & Equip",Community Support Budget - Chipping Nort,Other Agency and Contracted Services,57401,Direct Payments,08/04/2015,3300000313,-1152,WK4 Advance Housing & Support
http://statistics.data.gov.uk/id/local-authority/38,Oxfordshire County Council,Learning  Disabilities Pooled Budget,Direct Payments South Team,Other Agency and Contracted Services,57401,Direct Payments,08/04/2015,3300000315,1008,WK4 Advance Housing & Support
http://statistics.data.gov.uk/id/local-authority/38,Oxfordshire County Council,Learning  Disabilities Pooled Budget,Direct Payments North Team,Other Agency and Contracted Services,57401,Direct Payments,08/04/2015,3300000316,1097.88,WK4 Advance Housing & Support
http://statistics.data.gov.uk/id/local-authority/38,Oxfordshire County Council,"Older People, Phys Disabilities & Equip",Community Support Budget - Abingdon,Other Agency and Contracted Services,57401,Direct Payments,08/04/2015,3300000317,762.24,WK4 Advance Housing & Support
http://statistics.data.gov.uk/id/local-authority/38,Oxfordshire County Council,"Older People, Phys Disabilities & Equip",Community Support Budget - Banbury,Other Agency and Contracted Services,57401,Direct Payments,08/04/2015,3300000320,781.2,WK4 Advance Housing & Support
http://statistics.data.gov.uk/id/local-authority/38,Oxfordshire County Council,"Older People, Phys Disabilities & Equip",PD Comm Supp Purchasg Budget - City,Other Agency and Contracted Services,57401,Direct Payments,08/04/2015,3300000321,795,WK4 Advance Housing & Support
http://statistics.data.gov.uk/id/local-authority/38,Oxfordshire County Council,"Older People, Phys Disabilities & Equip",Community Support Budget - Bicester,Other Agency and Contracted Services,57401,Direct Payments,08/04/2015,3300000323,534,WK4 Advance Housing & Support
http://statistics.data.gov.uk/id/local-authority/38,Oxfordshire County Council,"Older People, Phys Disabilities & Equip",Community Support Budget - Bicester,Other Agency and Contracted Services,57401,Direct Payments,08/04/2015,3300000324,768,WK4 Advance Housing & Support
http://statistics.data.gov.uk/id/local-authority/38,Oxfordshire County Council,"Older People, Phys Disabilities & Equip",PD Community Support Budget - Kidlington,Other Agency and Contracted Services,57401,Direct Payments,08/04/2015,3300000325,630,WK4 Advance Housing & Support
http://statistics.data.gov.uk/id/local-authority/38,Oxfordshire County Council,"Older People, Phys Disabilities & Equip",Community Support Budget - Didcot,Other Agency and Contracted Services,57401,Direct Payments,08/04/2015,3300000328,600,WK4 Advance Housing & Support
http://statistics.data.gov.uk/id/local-authority/38,Oxfordshire County Council,"Older People, Phys Disabilities & Equip",PD Comm Supp Purchasg Budget - City,Other Agency and Contracted Services,57401,Direct Payments,08/04/2015,3300000329,1110,WK4 Advance Housing & Support
http://statistics.data.gov.uk/id/local-authority/38,Oxfordshire County Council,"Older People, Phys Disabilities & Equip",Community Support Budget - Banbury,Other Agency and Contracted Services,57401,Direct Payments,08/04/2015,3300000330,2511,WK4 Advance Housing & Support
http://statistics.data.gov.uk/id/local-authority/38,Oxfordshire County Council,"Older People, Phys Disabilities & Equip",Community Support Budget - Banbury,Other Agency and Contracted Services,57401,Direct Payments,08/04/2015,3300000330,837,WK4 Advance Housing & Support
http://statistics.data.gov.uk/id/local-authority/38,Oxfordshire County Council,Learning  Disabilities Pooled Budget,Direct Payments South Team,Other Agency and Contracted Services,57401,Direct Payments,08/04/2015,3300000331,658.05,WK4 Advance Housing & Support
http://statistics.data.gov.uk/id/local-authority/38,Oxfordshire County Council,Learning  Disabilities Pooled Budget,Direct Payments City Team,Other Agency and Contracted Services,57401,Direct Payments,08/04/2015,3300000332,896.31,WK4 Advance Housing & Support
http://statistics.data.gov.uk/id/local-authority/38,Oxfordshire County Council,"Older People, Phys Disabilities & Equip",Community Support Budget - Faringdon,Other Agency and Contracted Services,57401,Direct Payments,08/04/2015,3300000333,753,WK4 Advance Housing & Support
http://statistics.data.gov.uk/id/local-authority/38,Oxfordshire County Council,"Older People, Phys Disabilities & Equip",Community Support Budget - Banbury,Other Agency and Contracted Services,57401,Direct Payments,08/04/2015,3300000338,663,WK4 Advance Housing & Support
http://statistics.data.gov.uk/id/local-authority/38,Oxfordshire County Council,"Older People, Phys Disabilities & Equip",PD Comm Supp Budgt - Bicester/Kidlington,Other Agency and Contracted Services,57401,Direct Payments,08/04/2015,3300000339,2016,WK4 Advance Housing & Support
http://statistics.data.gov.uk/id/local-authority/38,Oxfordshire County Council,"Older People, Phys Disabilities & Equip",PD Comm Supp Budgt - Bicester/Kidlington,Other Agency and Contracted Services,57401,Direct Payments,08/04/2015,3300000339,672,WK4 Advance Housing & Support
http://statistics.data.gov.uk/id/local-authority/38,Oxfordshire County Council,"Older People, Phys Disabilities & Equip",Community Support Budget - Banbury,Other Agency and Contracted Services,57401,Direct Payments,08/04/2015,3300000340,681,WK4 Advance Housing & Support
http://statistics.data.gov.uk/id/local-authority/38,Oxfordshire County Council,"Older People, Phys Disabilities & Equip",Community Support Budget - Abingdon,Other Agency and Contracted Services,57401,Direct Payments,08/04/2015,3300000342,686.1,WK4 Advance Housing & Support
http://statistics.data.gov.uk/id/local-authority/38,Oxfordshire County Council,"Older People, Phys Disabilities & Equip",PD Comm Supp Purchasg Budget - City,Other Agency and Contracted Services,57401,Direct Payments,08/04/2015,3300000343,804,WK4 Advance Housing & Support
http://statistics.data.gov.uk/id/local-authority/38,Oxfordshire County Council,"Older People, Phys Disabilities & Equip",PD Comm Supp Purchasg Budget - Witney,Other Agency and Contracted Services,57401,Direct Payments,08/04/2015,3300000344,1344,WK4 Advance Housing & Support
http://statistics.data.gov.uk/id/local-authority/38,Oxfordshire County Council,"Older People, Phys Disabilities & Equip",Community Support Budget - Kidlington,Other Agency and Contracted Services,57401,Direct Payments,08/04/2015,3300000345,546,WK4 Advance Housing & Support
http://statistics.data.gov.uk/id/local-authority/38,Oxfordshire County Council,"Older People, Phys Disabilities & Equip",PD Community Support Budget - Kidlington,Other Agency and Contracted Services,57401,Direct Payments,08/04/2015,3300000346,1050,WK4 Advance Housing & Support
http://statistics.data.gov.uk/id/local-authority/38,Oxfordshire County Council,"Older People, Phys Disabilities & Equip",Community Support Budget - Bicester,Other Agency and Contracted Services,57401,Direct Payments,08/04/2015,3300000348,1050,WK4 Advance Housing & Support
http://statistics.data.gov.uk/id/local-authority/38,Oxfordshire County Council,"Older People, Phys Disabilities & Equip",Community Support Budget - Kidlington,Other Agency and Contracted Services,57401,Direct Payments,08/04/2015,3300000351,576,WK4 Advance Housing & Support
http://statistics.data.gov.uk/id/local-authority/38,Oxfordshire County Council,"Older People, Phys Disabilities & Equip",PD Comm Supp Purchasg Budget - Witney,Other Agency and Contracted Services,57401,Direct Payments,08/04/2015,3300000353,1065,WK4 Advance Housing & Support
http://statistics.data.gov.uk/id/local-authority/38,Oxfordshire County Council,"Older People, Phys Disabilities & Equip",Community Support Budget - Witney,Other Agency and Contracted Services,57401,Direct Payments,08/04/2015,3300000355,1161.12,WK4 Advance Housing & Support
http://statistics.data.gov.uk/id/local-authority/38,Oxfordshire County Council,Learning  Disabilities Pooled Budget,Direct Payments North Team,Other Agency and Contracted Services,57401,Direct Payments,08/04/2015,3300000358,1356,WK4 Advance Housing & Support
http://statistics.data.gov.uk/id/local-authority/38,Oxfordshire County Council,Learning  Disabilities Pooled Budget,Direct Payments North Team,Other Agency and Contracted Services,57401,Direct Payments,08/04/2015,3300000359,610.62,WK4 Advance Housing & Support
http://statistics.data.gov.uk/id/local-authority/38,Oxfordshire County Council,Learning  Disabilities Pooled Budget,Direct Payments North Team,Other Agency and Contracted Services,57401,Direct Payments,08/04/2015,3300000360,586.86,WK4 Advance Housing & Support
http://statistics.data.gov.uk/id/local-authority/38,Oxfordshire County Council,"Older People, Phys Disabilities & Equip",Community Support Budget - Witney,Other Agency and Contracted Services,57401,Direct Payments,08/04/2015,3300000362,708,WK4 Advance Housing & Support
http://statistics.data.gov.uk/id/local-authority/38,Oxfordshire County Council,Learning  Disabilities Pooled Budget,Direct Payments South Team,Other Agency and Contracted Services,57401,Direct Payments,08/04/2015,3300000363,760.62,WK4 Advance Housing & Support
http://statistics.data.gov.uk/id/local-authority/38,Oxfordshire County Council,"Older People, Phys Disabilities & Equip",Community Support Budget - Abingdon,Other Agency and Contracted Services,57401,Direct Payments,08/04/2015,3300000364,1218,WK4 Advance Housing & Support
http://statistics.data.gov.uk/id/local-authority/38,Oxfordshire County Council,"Older People, Phys Disabilities & Equip",Community Support Budget - Abingdon,Other Agency and Contracted Services,57401,Direct Payments,08/04/2015,3300000365,1065,WK4 Advance Housing & Support
http://statistics.data.gov.uk/id/local-authority/38,Oxfordshire County Council,Learning  Disabilities Pooled Budget,Direct Payments South Team,Other Agency and Contracted Services,57401,Direct Payments,08/04/2015,3300000366,902.7,WK4 Advance Housing & Support
http://statistics.data.gov.uk/id/local-authority/38,Oxfordshire County Council,"Older People, Phys Disabilities & Equip",PD Comm Supp Purchasg Budget - City,Other Agency and Contracted Services,57401,Direct Payments,08/04/2015,3300000369,1554,WK4 Advance Housing & Support
http://statistics.data.gov.uk/id/local-authority/38,Oxfordshire County Council,"Older People, Phys Disabilities & Equip",PD Comm Supp Purchasg Budget - City,Other Agency and Contracted Services,57401,Direct Payments,08/04/2015,3300000369,518,WK4 Advance Housing & Support
http://statistics.data.gov.uk/id/local-authority/38,Oxfordshire County Council,Learning  Disabilities Pooled Budget,Direct Payments South Team,Other Agency and Contracted Services,57401,Direct Payments,08/04/2015,3300000370,7587.69,WK4 Advance Housing & Support
http://statistics.data.gov.uk/id/local-authority/38,Oxfordshire County Council,Learning  Disabilities Pooled Budget,Direct Payments South Team,Other Agency and Contracted Services,57401,Direct Payments,08/04/2015,3300000370,2529.23,WK4 Advance Housing & Support
http://statistics.data.gov.uk/id/local-authority/38,Oxfordshire County Council,"Older People, Phys Disabilities & Equip",Community Support Budget - City,Other Agency and Contracted Services,57401,Direct Payments,08/04/2015,3300000371,1260,WK4 Advance Housing & Support
http://statistics.data.gov.uk/id/local-authority/38,Oxfordshire County Council,Learning  Disabilities Pooled Budget,Direct Payments North Team,Other Agency and Contracted Services,57401,Direct Payments,08/04/2015,3300000373,2442,WK4 Advance Housing & Support
http://statistics.data.gov.uk/id/local-authority/38,Oxfordshire County Council,Learning  Disabilities Pooled Budget,Direct Payments North Team,Other Agency and Contracted Services,57401,Direct Payments,08/04/2015,3300000373,814,WK4 Advance Housing & Support
http://statistics.data.gov.uk/id/local-authority/38,Oxfordshire County Council,"Older People, Phys Disabilities & Equip",PD Comm Supp Purchasg Budget - City,Other Agency and Contracted Services,57401,Direct Payments,08/04/2015,3300000376,1441.08,WK4 Advance Housing & Support
http://statistics.data.gov.uk/id/local-authority/38,Oxfordshire County Council,Learning  Disabilities Pooled Budget,Direct Payments City Team,Other Agency and Contracted Services,57401,Direct Payments,08/04/2015,3300000377,1071.54,WK4 Advance Housing & Support
http://statistics.data.gov.uk/id/local-authority/38,Oxfordshire County Council,Learning  Disabilities Pooled Budget,Direct Payments City Team,Other Agency and Contracted Services,57401,Direct Payments,08/04/2015,3300000378,891.84,WK4 Advance Housing & Support
http://statistics.data.gov.uk/id/local-authority/38,Oxfordshire County Council,Learning  Disabilities Pooled Budget,Direct Payments South Team,Other Agency and Contracted Services,57401,Direct Payments,08/04/2015,3300000379,891.84,WK4 Advance Housing & Support
http://statistics.data.gov.uk/id/local-authority/38,Oxfordshire County Council,Learning  Disabilities Pooled Budget,Direct Payments South Team,Other Agency and Contracted Services,57401,Direct Payments,08/04/2015,3300000383,2379.09,WK4 Advance Housing & Support
http://statistics.data.gov.uk/id/local-authority/38,Oxfordshire County Council,Learning  Disabilities Pooled Budget,Direct Payments South Team,Other Agency and Contracted Services,57401,Direct Payments,08/04/2015,3300000383,793.03,WK4 Advance Housing & Support
http://statistics.data.gov.uk/id/local-authority/38,Oxfordshire County Council,"Older People, Phys Disabilities & Equip",PD Comm Supp Purchasg Budget - Didcot,Other Agency and Contracted Services,57401,Direct Payments,08/04/2015,3300000384,1149,WK4 Advance Housing & Support
http://statistics.data.gov.uk/id/local-authority/38,Oxfordshire County Council,"Older People, Phys Disabilities & Equip",Personal Health Budgets PD (PCT),Other Agency and Contracted Services,57401,Direct Payments,08/04/2015,3300000386,8072.1,WK4 Advance Housing & Support
http://statistics.data.gov.uk/id/local-authority/38,Oxfordshire County Council,"Older People, Phys Disabilities & Equip",Personal Health Budgets PD (PCT),Other Agency and Contracted Services,57401,Direct Payments,08/04/2015,3300000386,2690.7,WK4 Advance Housing & Support
http://statistics.data.gov.uk/id/local-authority/38,Oxfordshire County Council,Learning  Disabilities Pooled Budget,Direct Payments South Team,Other Agency and Contracted Services,57401,Direct Payments,08/04/2015,3300000387,805.92,WK4 Advance Housing & Support
http://statistics.data.gov.uk/id/local-authority/38,Oxfordshire County Council,Learning  Disabilities Pooled Budget,Direct Payments South Team,Other Agency and Contracted Services,57401,Direct Payments,08/04/2015,3300000388,975.3,WK4 Advance Housing & Support
http://statistics.data.gov.uk/id/local-authority/38,Oxfordshire County Council,"Older People, Phys Disabilities & Equip",PD Comm Supp Budget - Banbury,Other Agency and Contracted Services,57401,Direct Payments,08/04/2015,3300000389,1375,WK4 Advance Housing & Support
http://statistics.data.gov.uk/id/local-authority/38,Oxfordshire County Council,"Older People, Phys Disabilities & Equip",PD Comm Supp Budget - Banbury,Other Agency and Contracted Services,57401,Direct Payments,08/04/2015,3300000389,4125,WK4 Advance Housing & Support
http://statistics.data.gov.uk/id/local-authority/38,Oxfordshire County Council,"Older People, Phys Disabilities & Equip",PD Comm Supp Purchasg Budget - Abingdon,Other Agency and Contracted Services,57401,Direct Payments,08/04/2015,3300000390,630,WK4 Advance Housing & Support
http://statistics.data.gov.uk/id/local-authority/38,Oxfordshire County Council,"Older People, Phys Disabilities & Equip",Community Support Budget - Didcot,Other Agency and Contracted Services,57401,Direct Payments,08/04/2015,3300000391,648,WK4 Advance Housing & Support
http://statistics.data.gov.uk/id/local-authority/38,Oxfordshire County Council,"Older People, Phys Disabilities & Equip",Community Support Budget - Bicester,Other Agency and Contracted Services,57401,Direct Payments,08/04/2015,3300000392,657,WK4 Advance Housing & Support
http://statistics.data.gov.uk/id/local-authority/38,Oxfordshire County Council,"Older People, Phys Disabilities & Equip",Community Support Budget - Kidlington,Other Agency and Contracted Services,57401,Direct Payments,08/04/2015,3300000394,939,WK4 Advance Housing & Support
http://statistics.data.gov.uk/id/local-authority/38,Oxfordshire County Council,"Older People, Phys Disabilities & Equip",PD Comm Supp Budgt - Bicester/Kidlington,Other Agency and Contracted Services,57401,Direct Payments,08/04/2015,3300000395,529.2,WK4 Advance Housing & Support
http://statistics.data.gov.uk/id/local-authority/38,Oxfordshire County Council,"Older People, Phys Disabilities & Equip",Community Support Budget - Bicester,Other Agency and Contracted Services,57401,Direct Payments,08/04/2015,3300000397,765,WK4 Advance Housing & Support
http://statistics.data.gov.uk/id/local-authority/38,Oxfordshire County Council,Learning  Disabilities Pooled Budget,Direct Payments City Team,Other Agency and Contracted Services,57401,Direct Payments,08/04/2015,3300000398,7392,WK4 Advance Housing & Support
http://statistics.data.gov.uk/id/local-authority/38,Oxfordshire County Council,Learning  Disabilities Pooled Budget,Direct Payments City Team,Other Agency and Contracted Services,57401,Direct Payments,08/04/2015,3300000398,2464,WK4 Advance Housing & Support
http://statistics.data.gov.uk/id/local-authority/38,Oxfordshire County Council,"Older People, Phys Disabilities & Equip",PD Comm Supp Budget - Banbury,Other Agency and Contracted Services,57401,Direct Payments,08/04/2015,3300000399,531,WK4 Advance Housing & Support
http://statistics.data.gov.uk/id/local-authority/38,Oxfordshire County Council,"Older People, Phys Disabilities & Equip",Community Support Budget - Banbury,Other Agency and Contracted Services,57401,Direct Payments,08/04/2015,3300000402,1434,WK4 Advance Housing & Support
http://statistics.data.gov.uk/id/local-authority/38,Oxfordshire County Council,"Older People, Phys Disabilities & Equip",PD Comm Supp Budget - Banbury,Other Agency and Contracted Services,57401,Direct Payments,08/04/2015,3300000403,631.2,WK4 Advance Housing & Support
http://statistics.data.gov.uk/id/local-authority/38,Oxfordshire County Council,Learning  Disabilities Pooled Budget,Direct Payments North Team,Other Agency and Contracted Services,57401,Direct Payments,08/04/2015,3300000405,558,WK4 Advance Housing & Support
http://statistics.data.gov.uk/id/local-authority/38,Oxfordshire County Council,"Older People, Phys Disabilities & Equip",Community Support Budget - Banbury,Other Agency and Contracted Services,57401,Direct Payments,08/04/2015,3300000406,2688.39,WK4 Advance Housing & Support
http://statistics.data.gov.uk/id/local-authority/38,Oxfordshire County Council,"Older People, Phys Disabilities & Equip",OP Pool Continuing Care Delegated Health,Other Agency and Contracted Services,57401,Direct Payments,08/04/2015,3300000406,551.61,WK4 Advance Housing & Support
http://statistics.data.gov.uk/id/local-authority/38,Oxfordshire County Council,"Older People, Phys Disabilities & Equip",Community Support Budget - Banbury,Other Agency and Contracted Services,57401,Direct Payments,08/04/2015,3300000406,896.13,WK4 Advance Housing & Support
http://statistics.data.gov.uk/id/local-authority/38,Oxfordshire County Council,Learning  Disabilities Pooled Budget,Direct Payments North Team,Other Agency and Contracted Services,57401,Direct Payments,08/04/2015,3300000409,1606.32,WK4 Advance Housing & Support
http://statistics.data.gov.uk/id/local-authority/38,Oxfordshire County Council,Learning  Disabilities Pooled Budget,Direct Payments North Team,Other Agency and Contracted Services,57401,Direct Payments,08/04/2015,3300000409,535.44,WK4 Advance Housing & Support
http://statistics.data.gov.uk/id/local-authority/38,Oxfordshire County Council,"Older People, Phys Disabilities & Equip",Community Support Budget - Didcot,Other Agency and Contracted Services,57401,Direct Payments,08/04/2015,3300000412,807,WK4 Advance Housing & Support
http://statistics.data.gov.uk/id/local-authority/38,Oxfordshire County Council,Learning  Disabilities Pooled Budget,Direct Payments North Team,Other Agency and Contracted Services,57401,Direct Payments,08/04/2015,3300000414,985.86,WK4 Advance Housing & Support
http://statistics.data.gov.uk/id/local-authority/38,Oxfordshire County Council,"Older People, Phys Disabilities & Equip",PD Comm Supp Purchasg Budget - Witney,Other Agency and Contracted Services,57401,Direct Payments,08/04/2015,3300000416,673.5,WK4 Advance Housing & Support
http://statistics.data.gov.uk/id/local-authority/38,Oxfordshire County Council,Learning  Disabilities Pooled Budget,Direct Payments North Team,Other Agency and Contracted Services,57401,Direct Payments,08/04/2015,3300000417,1021.05,WK4 Advance Housing & Support
http://statistics.data.gov.uk/id/local-authority/38,Oxfordshire County Council,"Older People, Phys Disabilities & Equip",PD Comm Supp Purchasg Budget - Thame,Other Agency and Contracted Services,57401,Direct Payments,08/04/2015,3300000420,777,WK4 Advance Housing & Support
http://statistics.data.gov.uk/id/local-authority/38,Oxfordshire County Council,"Older People, Phys Disabilities & Equip",Community Support Budget - Abingdon,Other Agency and Contracted Services,57401,Direct Payments,08/04/2015,3300000421,627,WK4 Advance Housing & Support
http://statistics.data.gov.uk/id/local-authority/38,Oxfordshire County Council,"Older People, Phys Disabilities & Equip",PD Comm Supp Purchasg Budget - City,Other Agency and Contracted Services,57401,Direct Payments,08/04/2015,3300000422,879,WK4 Advance Housing & Support
http://statistics.data.gov.uk/id/local-authority/38,Oxfordshire County Council,"Older People, Phys Disabilities & Equip",PD Comm Supp Purchasg Budget - City,Other Agency and Contracted Services,57401,Direct Payments,08/04/2015,3300000423,812,Citibank NA London
http://statistics.data.gov.uk/id/local-authority/38,Oxfordshire County Council,Learning  Disabilities Pooled Budget,Direct Payments South Team,Other Agency and Contracted Services,57401,Direct Payments,08/04/2015,3300000424,543.68,Citibank NA London
http://statistics.data.gov.uk/id/local-authority/38,Oxfordshire County Council,"Older People, Phys Disabilities & Equip",Community Support Budget - Banbury,Other Agency and Contracted Services,57401,Direct Payments,08/04/2015,3300000426,896,Citibank NA London
http://statistics.data.gov.uk/id/local-authority/38,Oxfordshire County Council,Learning  Disabilities Pooled Budget,Direct Payments City Team,Other Agency and Contracted Services,57401,Direct Payments,08/04/2015,3300000427,2000,Citibank NA London
http://statistics.data.gov.uk/id/local-authority/38,Oxfordshire County Council,Learning  Disabilities Pooled Budget,Direct Payments South Team,Other Agency and Contracted Services,57401,Direct Payments,08/04/2015,3300000431,5777.2,Citibank NA London
http://statistics.data.gov.uk/id/local-authority/38,Oxfordshire County Council,"Older People, Phys Disabilities & Equip",Community Support Budget - Bicester,Other Agency and Contracted Services,57401,Direct Payments,08/04/2015,3300000433,1600,REDACTED PERSONAL DATA
http://statistics.data.gov.uk/id/local-authority/38,Oxfordshire County Council,Learning  Disabilities Pooled Budget,Direct Payments South Team,Other Agency and Contracted Services,57401,Direct Payments,08/04/2015,3300000434,552,REDACTED PERSONAL DATA
http://statistics.data.gov.uk/id/local-authority/38,Oxfordshire County Council,Learning  Disabilities Pooled Budget,Direct Payments South Team,Other Agency and Contracted Services,57401,Direct Payments,08/04/2015,3300000435,720,REDACTED PERSONAL DATA
http://statistics.data.gov.uk/id/local-authority/38,Oxfordshire County Council,"Older People, Phys Disabilities & Equip",PD CS Purch Budget - Health S28a JC,Other Agency and Contracted Services,57401,Direct Payments,08/04/2015,3300000436,804,REDACTED PERSONAL DATA
http://statistics.data.gov.uk/id/local-authority/38,Oxfordshire County Council,"Older People, Phys Disabilities & Equip",PD Comm Supp Purchasg Budget - City,Other Agency and Contracted Services,57401,Direct Payments,08/04/2015,3300000436,2254.88,REDACTED PERSONAL DATA
http://statistics.data.gov.uk/id/local-authority/38,Oxfordshire County Council,"Older People, Phys Disabilities & Equip",Community Support Budget - Banbury,Other Agency and Contracted Services,57401,Direct Payments,08/04/2015,3300000437,1248,REDACTED PERSONAL DATA
http://statistics.data.gov.uk/id/local-authority/38,Oxfordshire County Council,"Older People, Phys Disabilities & Equip",Community Support Budget - Banbury,Other Agency and Contracted Services,57401,Direct Payments,08/04/2015,3300000438,1548,REDACTED PERSONAL DATA
http://statistics.data.gov.uk/id/local-authority/38,Oxfordshire County Council,Learning  Disabilities Pooled Budget,Direct Payments North Team,Other Agency and Contracted Services,57401,Direct Payments,08/04/2015,3300000439,2073.76,REDACTED PERSONAL DATA
http://statistics.data.gov.uk/id/local-authority/38,Oxfordshire County Council,"Older People, Phys Disabilities & Equip",PHB OP Package,Other Agency and Contracted Services,57401,Direct Payments,08/04/2015,3300000440,5682.72,REDACTED PERSONAL DATA
http://statistics.data.gov.uk/id/local-authority/38,Oxfordshire County Council,"Older People, Phys Disabilities & Equip",Personal Health Budgets PD (PCT),Other Agency and Contracted Services,57401,Direct Payments,08/04/2015,3300000441,8695.8,REDACTED PERSONAL DATA
http://statistics.data.gov.uk/id/local-authority/38,Oxfordshire County Council,"Older People, Phys Disabilities & Equip",Community Support Budget - Witney,Other Agency and Contracted Services,57401,Direct Payments,08/04/2015,3300000442,630.2,REDACTED PERSONAL DATA
http://statistics.data.gov.uk/id/local-authority/38,Oxfordshire County Council,"Older People, Phys Disabilities & Equip",Community Support Budget - Bicester,Other Agency and Contracted Services,57401,Direct Payments,08/04/2015,3300000443,1172,REDACTED PERSONAL DATA
http://statistics.data.gov.uk/id/local-authority/38,Oxfordshire County Council,Learning  Disabilities Pooled Budget,Direct Payments North Team,Other Agency and Contracted Services,57401,Direct Payments,08/04/2015,3300000444,1141.24,REDACTED PERSONAL DATA
http://statistics.data.gov.uk/id/local-authority/38,Oxfordshire County Council,"Older People, Phys Disabilities & Equip",Community Support Budget - Didcot,Other Agency and Contracted Services,57401,Direct Payments,08/04/2015,3300000445,748,REDACTED PERSONAL DATA
http://statistics.data.gov.uk/id/local-authority/38,Oxfordshire County Council,"Older People, Phys Disabilities & Equip",PD Comm Supp Purchasg Budget - Henley,Other Agency and Contracted Services,57401,Direct Payments,08/04/2015,3300000446,840,REDACTED PERSONAL DATA
http://statistics.data.gov.uk/id/local-authority/38,Oxfordshire County Council,"Older People, Phys Disabilities & Equip",OP Pool Continuing Care Delegated Health,Other Agency and Contracted Services,57401,Direct Payments,08/04/2015,3300000447,992,REDACTED PERSONAL DATA
http://statistics.data.gov.uk/id/local-authority/38,Oxfordshire County Council,"Older People, Phys Disabilities & Equip",Community Support Budget - Banbury,Other Agency and Contracted Services,57401,Direct Payments,08/04/2015,3300000447,2156,REDACTED PERSONAL DATA
http://statistics.data.gov.uk/id/local-authority/38,Oxfordshire County Council,"Older People, Phys Disabilities & Equip",OP Pool Continuing Care Delegated Health,Other Agency and Contracted Services,57401,Direct Payments,08/04/2015,3300000448,672,REDACTED PERSONAL DATA
http://statistics.data.gov.uk/id/local-authority/38,Oxfordshire County Council,"Older People, Phys Disabilities & Equip",Community Support Budget - City,Other Agency and Contracted Services,57401,Direct Payments,08/04/2015,3300000448,3484,REDACTED PERSONAL DATA
http://statistics.data.gov.uk/id/local-authority/38,Oxfordshire County Council,"Older People, Phys Disabilities & Equip",OP Pool Continuing Care Delegated Health,Other Agency and Contracted Services,57401,Direct Payments,08/04/2015,3300000448,672,REDACTED PERSONAL DATA
http://statistics.data.gov.uk/id/local-authority/38,Oxfordshire County Council,"Older People, Phys Disabilities & Equip",Community Support Budget - City,Other Agency and Contracted Services,57401,Direct Payments,08/04/2015,3300000448,3484,REDACTED PERSONAL DATA
http://statistics.data.gov.uk/id/local-authority/38,Oxfordshire County Council,"Older People, Phys Disabilities & Equip",Community Support Budget - City,Other Agency and Contracted Services,57401,Direct Payments,08/04/2015,3300000448,-3083.44,REDACTED PERSONAL DATA
http://statistics.data.gov.uk/id/local-authority/38,Oxfordshire County Council,"Older People, Phys Disabilities & Equip",Community Support Budget - City,Other Agency and Contracted Services,57401,Direct Payments,08/04/2015,3300000449,1940,REDACTED PERSONAL DATA
http://statistics.data.gov.uk/id/local-authority/38,Oxfordshire County Council,"Older People, Phys Disabilities & Equip",Community Support Budget - City,Other Agency and Contracted Services,57401,Direct Payments,08/04/2015,3300000449,5750.71,REDACTED PERSONAL DATA
http://statistics.data.gov.uk/id/local-authority/38,Oxfordshire County Council,"Older People, Phys Disabilities & Equip",Community Support Budget - City,Other Agency and Contracted Services,57401,Direct Payments,08/04/2015,3300000449,-4221.14,REDACTED PERSONAL DATA
http://statistics.data.gov.uk/id/local-authority/38,Oxfordshire County Council,"Older People, Phys Disabilities & Equip",Community Support Budget - Chipping Nort,Other Agency and Contracted Services,57401,Direct Payments,08/04/2015,3300000451,652,REDACTED PERSONAL DATA
http://statistics.data.gov.uk/id/local-authority/38,Oxfordshire County Council,"Older People, Phys Disabilities & Equip",Community Support Budget - Didcot,Other Agency and Contracted Services,57401,Direct Payments,08/04/2015,3300000452,920,REDACTED PERSONAL DATA
http://statistics.data.gov.uk/id/local-authority/38,Oxfordshire County Council,"Older People, Phys Disabilities & Equip",PD Community Support Budget - Kidlington,Other Agency and Contracted Services,57401,Direct Payments,08/04/2015,3300000453,1161.6,REDACTED PERSONAL DATA
http://statistics.data.gov.uk/id/local-authority/38,Oxfordshire County Council,"Older People, Phys Disabilities & Equip",PD Comm Supp Budget - Banbury,Other Agency and Contracted Services,57401,Direct Payments,08/04/2015,3300000454,580,REDACTED PERSONAL DATA
http://statistics.data.gov.uk/id/local-authority/38,Oxfordshire County Council,"Older People, Phys Disabilities & Equip",PD Comm Supp Budget - Banbury,Other Agency and Contracted Services,57401,Direct Payments,08/04/2015,3300000455,792,REDACTED PERSONAL DATA
http://statistics.data.gov.uk/id/local-authority/38,Oxfordshire County Council,"Older People, Phys Disabilities & Equip",Community Support Budget - Banbury,Other Agency and Contracted Services,57401,Direct Payments,08/04/2015,3300000456,1848.04,REDACTED PERSONAL DATA
http://statistics.data.gov.uk/id/local-authority/38,Oxfordshire County Council,"Older People, Phys Disabilities & Equip",Community Support Budget - Didcot,Other Agency and Contracted Services,57401,Direct Payments,08/04/2015,3300000457,1820,REDACTED PERSONAL DATA
http://statistics.data.gov.uk/id/local-authority/38,Oxfordshire County Council,"Older People, Phys Disabilities & Equip",Community Support Budget - Banbury,Other Agency and Contracted Services,57401,Direct Payments,08/04/2015,3300000458,2632,REDACTED PERSONAL DATA
http://statistics.data.gov.uk/id/local-authority/38,Oxfordshire County Council,Learning  Disabilities Pooled Budget,Direct Payments South Team,Other Agency and Contracted Services,57401,Direct Payments,08/04/2015,3300000459,1200,REDACTED PERSONAL DATA
http://statistics.data.gov.uk/id/local-authority/38,Oxfordshire County Council,"Older People, Phys Disabilities & Equip",Community Support Budget - Witney,Other Agency and Contracted Services,57401,Direct Payments,08/04/2015,3300000461,1700.32,REDACTED PERSONAL DATA
http://statistics.data.gov.uk/id/local-authority/38,Oxfordshire County Council,"Older People, Phys Disabilities & Equip",Community Support Budget - Bicester,Other Agency and Contracted Services,57401,Direct Payments,08/04/2015,3300000462,2848,REDACTED PERSONAL DATA
http://statistics.data.gov.uk/id/local-authority/38,Oxfordshire County Council,"Older People, Phys Disabilities & Equip",PD Comm Supp Purchasg Budget - Henley,Other Agency and Contracted Services,57401,Direct Payments,08/04/2015,3300000464,776,REDACTED PERSONAL DATA
http://statistics.data.gov.uk/id/local-authority/38,Oxfordshire County Council,"Older People, Phys Disabilities & Equip",PD Comm Supp Purchasg Budget - Didcot,Other Agency and Contracted Services,57401,Direct Payments,08/04/2015,3300000465,1416.52,REDACTED PERSONAL DATA
http://statistics.data.gov.uk/id/local-authority/38,Oxfordshire County Council,"Older People, Phys Disabilities & Equip",PD CS Purch Budget - Health S28a JC,Other Agency and Contracted Services,57401,Direct Payments,08/04/2015,3300000465,1080,REDACTED PERSONAL DATA
http://statistics.data.gov.uk/id/local-authority/38,Oxfordshire County Council,"Older People, Phys Disabilities & Equip",Community Support Budget - Abingdon,Other Agency and Contracted Services,57401,Direct Payments,08/04/2015,3300000466,3576,REDACTED PERSONAL DATA
http://statistics.data.gov.uk/id/local-authority/38,Oxfordshire County Council,Learning  Disabilities Pooled Budget,Direct Payments North Team,Other Agency and Contracted Services,57401,Direct Payments,08/04/2015,3300000468,916,REDACTED PERSONAL DATA
http://statistics.data.gov.uk/id/local-authority/38,Oxfordshire County Council,Learning  Disabilities Pooled Budget,Direct Payments South Team,Other Agency and Contracted Services,57401,Direct Payments,08/04/2015,3300000469,7883.76,REDACTED PERSONAL DATA
http://statistics.data.gov.uk/id/local-authority/38,Oxfordshire County Council,Learning  Disabilities Pooled Budget,Direct Payments South Team,Other Agency and Contracted Services,57401,Direct Payments,08/04/2015,3300000470,7112.08,REDACTED PERSONAL DATA
http://statistics.data.gov.uk/id/local-authority/38,Oxfordshire County Council,Learning  Disabilities Pooled Budget,Direct Payments South Team,Other Agency and Contracted Services,57401,Direct Payments,08/04/2015,3300000471,3921.52,REDACTED PERSONAL DATA
http://statistics.data.gov.uk/id/local-authority/38,Oxfordshire County Council,"Older People, Phys Disabilities & Equip",Community Support Budget - City,Other Agency and Contracted Services,57401,Direct Payments,08/04/2015,3300000473,2848,REDACTED PERSONAL DATA
http://statistics.data.gov.uk/id/local-authority/38,Oxfordshire County Council,Learning  Disabilities Pooled Budget,Direct Payments South Team,Other Agency and Contracted Services,57401,Direct Payments,08/04/2015,3300000474,556,REDACTED PERSONAL DATA
http://statistics.data.gov.uk/id/local-authority/38,Oxfordshire County Council,Learning  Disabilities Pooled Budget,Direct Payments South Team,Other Agency and Contracted Services,57401,Direct Payments,08/04/2015,3300000476,1956,REDACTED PERSONAL DATA
http://statistics.data.gov.uk/id/local-authority/38,Oxfordshire County Council,"Older People, Phys Disabilities & Equip",PD Comm Supp Purchasg Budget - City,Other Agency and Contracted Services,57401,Direct Payments,08/04/2015,3300000477,2180,REDACTED PERSONAL DATA
http://statistics.data.gov.uk/id/local-authority/38,Oxfordshire County Council,Learning  Disabilities Pooled Budget,Direct Payments North Team,Other Agency and Contracted Services,57401,Direct Payments,08/04/2015,3300000478,2898.32,REDACTED PERSONAL DATA
http://statistics.data.gov.uk/id/local-authority/38,Oxfordshire County Council,Learning  Disabilities Pooled Budget,Direct Payments North Team,Other Agency and Contracted Services,57401,Direct Payments,08/04/2015,3300000479,573.84,REDACTED PERSONAL DATA
http://statistics.data.gov.uk/id/local-authority/38,Oxfordshire County Council,"Older People, Phys Disabilities & Equip",Community Support Budget - Bicester,Other Agency and Contracted Services,57401,Direct Payments,08/04/2015,3300000480,2092,REDACTED PERSONAL DATA
http://statistics.data.gov.uk/id/local-authority/38,Oxfordshire County Council,"Older People, Phys Disabilities & Equip",PD Comm Supp Purchasg Budget - City,Other Agency and Contracted Services,57401,Direct Payments,08/04/2015,3300000481,3424,REDACTED PERSONAL DATA
http://statistics.data.gov.uk/id/local-authority/38,Oxfordshire County Council,Learning  Disabilities Pooled Budget,Direct Payments North Team,Other Agency and Contracted Services,57401,Direct Payments,08/04/2015,3300000482,1370.32,REDACTED PERSONAL DATA
http://statistics.data.gov.uk/id/local-authority/38,Oxfordshire County Council,Learning  Disabilities Pooled Budget,Direct Payments City Team,Other Agency and Contracted Services,57401,Direct Payments,08/04/2015,3300000483,776,REDACTED PERSONAL DATA
http://statistics.data.gov.uk/id/local-authority/38,Oxfordshire County Council,Learning  Disabilities Pooled Budget,Direct Payments South Team,Other Agency and Contracted Services,57401,Direct Payments,08/04/2015,3300000484,1246.08,REDACTED PERSONAL DATA
http://statistics.data.gov.uk/id/local-authority/38,Oxfordshire County Council,Learning  Disabilities Pooled Budget,Direct Payments North Team,Other Agency and Contracted Services,57401,Direct Payments,08/04/2015,3300000485,4493.16,REDACTED PERSONAL DATA
http://statistics.data.gov.uk/id/local-authority/38,Oxfordshire County Council,"Older People, Phys Disabilities & Equip",Community Support Budget - Abingdon,Other Agency and Contracted Services,57401,Direct Payments,08/04/2015,3300000486,1132,REDACTED PERSONAL DATA
http://statistics.data.gov.uk/id/local-authority/38,Oxfordshire County Council,Learning  Disabilities Pooled Budget,Direct Payments South Team,Other Agency and Contracted Services,57401,Direct Payments,08/04/2015,3300000487,2337.4,REDACTED PERSONAL DATA
http://statistics.data.gov.uk/id/local-authority/38,Oxfordshire County Council,Learning  Disabilities Pooled Budget,Continuing Health Care,Other Agency and Contracted Services,57401,Direct Payments,08/04/2015,3300000488,1289.24,REDACTED PERSONAL DATA
http://statistics.data.gov.uk/id/local-authority/38,Oxfordshire County Council,"Older People, Phys Disabilities & Equip",PD Comm Supp Budget - Banbury,Other Agency and Contracted Services,57401,Direct Payments,08/04/2015,3300000490,1088,REDACTED PERSONAL DATA
http://statistics.data.gov.uk/id/local-authority/38,Oxfordshire County Council,Learning  Disabilities Pooled Budget,Direct Payments South Team,Other Agency and Contracted Services,57401,Direct Payments,08/04/2015,3300000491,2769.24,REDACTED PERSONAL DATA
http://statistics.data.gov.uk/id/local-authority/38,Oxfordshire County Council,"Older People, Phys Disabilities & Equip",Community Support Budget - City,Other Agency and Contracted Services,57401,Direct Payments,08/04/2015,3300000492,732,REDACTED PERSONAL DATA
http://statistics.data.gov.uk/id/local-authority/38,Oxfordshire County Council,Learning  Disabilities Pooled Budget,Direct Payments City Team,Other Agency and Contracted Services,57401,Direct Payments,08/04/2015,3300000496,624.4,REDACTED PERSONAL DATA
http://statistics.data.gov.uk/id/local-authority/38,Oxfordshire County Council,Learning  Disabilities Pooled Budget,Direct Payments South Team,Other Agency and Contracted Services,57401,Direct Payments,08/04/2015,3300000498,1721.76,REDACTED PERSONAL DATA
http://statistics.data.gov.uk/id/local-authority/38,Oxfordshire County Council,Learning  Disabilities Pooled Budget,Direct Payments City Team,Other Agency and Contracted Services,57401,Direct Payments,08/04/2015,3300000499,1740,REDACTED PERSONAL DATA
http://statistics.data.gov.uk/id/local-authority/38,Oxfordshire County Council,Learning  Disabilities Pooled Budget,Direct Payments City Team,Other Agency and Contracted Services,57401,Direct Payments,08/04/2015,3300000500,1357.76,REDACTED PERSONAL DATA
http://statistics.data.gov.uk/id/local-authority/38,Oxfordshire County Council,Learning  Disabilities Pooled Budget,Direct Payments City Team,Other Agency and Contracted Services,57401,Direct Payments,08/04/2015,3300000501,6144,REDACTED PERSONAL DATA
http://statistics.data.gov.uk/id/local-authority/38,Oxfordshire County Council,Learning  Disabilities Pooled Budget,Direct Payments City Team,Other Agency and Contracted Services,57401,Direct Payments,08/04/2015,3300000502,788,REDACTED PERSONAL DATA
http://statistics.data.gov.uk/id/local-authority/38,Oxfordshire County Council,"Older People, Phys Disabilities & Equip",Community Support Budget - City,Other Agency and Contracted Services,57401,Direct Payments,08/04/2015,3300000504,2068,REDACTED PERSONAL DATA
http://statistics.data.gov.uk/id/local-authority/38,Oxfordshire County Council,Learning  Disabilities Pooled Budget,Direct Payments South Team,Other Agency and Contracted Services,57401,Direct Payments,08/04/2015,3300000505,1309.4,REDACTED PERSONAL DATA
http://statistics.data.gov.uk/id/local-authority/38,Oxfordshire County Council,"Older People, Phys Disabilities & Equip",PD Comm Supp Purchasg Budget - Abingdon,Other Agency and Contracted Services,57401,Direct Payments,08/04/2015,3300000506,3352,REDACTED PERSONAL DATA
http://statistics.data.gov.uk/id/local-authority/38,Oxfordshire County Council,Learning  Disabilities Pooled Budget,Direct Payments City Team,Other Agency and Contracted Services,57401,Direct Payments,08/04/2015,3300000507,1808,REDACTED PERSONAL DATA
http://statistics.data.gov.uk/id/local-authority/38,Oxfordshire County Council,Learning  Disabilities Pooled Budget,Direct Payments City Team,Other Agency and Contracted Services,57401,Direct Payments,08/04/2015,3300000508,1132.76,REDACTED PERSONAL DATA
http://statistics.data.gov.uk/id/local-authority/38,Oxfordshire County Council,"Older People, Phys Disabilities & Equip",Community Support Budget - Thame,Other Agency and Contracted Services,57401,Direct Payments,08/04/2015,3300000509,512,REDACTED PERSONAL DATA
http://statistics.data.gov.uk/id/local-authority/38,Oxfordshire County Council,"Older People, Phys Disabilities & Equip",PD Comm Supp Purchasg Budget - Didcot,Other Agency and Contracted Services,57401,Direct Payments,08/04/2015,3300000510,1152,REDACTED PERSONAL DATA
http://statistics.data.gov.uk/id/local-authority/38,Oxfordshire County Council,Learning  Disabilities Pooled Budget,Direct Payments South Team,Other Agency and Contracted Services,57401,Direct Payments,08/04/2015,3300000513,1235.08,REDACTED PERSONAL DATA
http://statistics.data.gov.uk/id/local-authority/38,Oxfordshire County Council,Learning  Disabilities Pooled Budget,Continuing Health Care,Other Agency and Contracted Services,57401,Direct Payments,08/04/2015,3300000514,10217.16,REDACTED PERSONAL DATA
http://statistics.data.gov.uk/id/local-authority/38,Oxfordshire County Council,Learning  Disabilities Pooled Budget,Direct Payments City Team,Other Agency and Contracted Services,57401,Direct Payments,08/04/2015,3300000516,1521.32,REDACTED PERSONAL DATA
http://statistics.data.gov.uk/id/local-authority/38,Oxfordshire County Council,Learning  Disabilities Pooled Budget,Direct Payments North Team,Other Agency and Contracted Services,57401,Direct Payments,08/04/2015,3300000517,958.24,REDACTED PERSONAL DATA
http://statistics.data.gov.uk/id/local-authority/38,Oxfordshire County Council,"Older People, Phys Disabilities & Equip",Community Support Budget - Didcot,Other Agency and Contracted Services,57401,Direct Payments,08/04/2015,3300000518,1300,REDACTED PERSONAL DATA
http://statistics.data.gov.uk/id/local-authority/38,Oxfordshire County Council,"Older People, Phys Disabilities & Equip",PHB OP Package,Other Agency and Contracted Services,57401,Direct Payments,08/04/2015,3300000519,3548.48,REDACTED PERSONAL DATA
http://statistics.data.gov.uk/id/local-authority/38,Oxfordshire County Council,"Older People, Phys Disabilities & Equip",Community Support Budget - Thame,Other Agency and Contracted Services,57401,Direct Payments,08/04/2015,3300000520,1268,REDACTED PERSONAL DATA
http://statistics.data.gov.uk/id/local-authority/38,Oxfordshire County Council,"Older People, Phys Disabilities & Equip",Community Support Budget - Henley,Other Agency and Contracted Services,57401,Direct Payments,08/04/2015,3300000521,1160,REDACTED PERSONAL DATA
http://statistics.data.gov.uk/id/local-authority/38,Oxfordshire County Council,"Older People, Phys Disabilities & Equip",Community Support Budget - Didcot,Other Agency and Contracted Services,57401,Direct Payments,08/04/2015,3300000522,2632,REDACTED PERSONAL DATA
http://statistics.data.gov.uk/id/local-authority/38,Oxfordshire County Council,"Older People, Phys Disabilities & Equip",Community Support Budget - Kidlington,Other Agency and Contracted Services,57401,Direct Payments,08/04/2015,3300000523,1402.8,REDACTED PERSONAL DATA
http://statistics.data.gov.uk/id/local-authority/38,Oxfordshire County Council,"Older People, Phys Disabilities & Equip",PD Comm Supp Purchasg Budget - Witney,Other Agency and Contracted Services,57401,Direct Payments,08/04/2015,3300000524,1524,REDACTED PERSONAL DATA
http://statistics.data.gov.uk/id/local-authority/38,Oxfordshire County Council,Learning  Disabilities Pooled Budget,Direct Payments North Team,Other Agency and Contracted Services,57401,Direct Payments,08/04/2015,3300000525,3957,REDACTED PERSONAL DATA
http://statistics.data.gov.uk/id/local-authority/38,Oxfordshire County Council,Learning  Disabilities Pooled Budget,Direct Payments North Team,Other Agency and Contracted Services,57401,Direct Payments,08/04/2015,3300000526,3741,REDACTED PERSONAL DATA
http://statistics.data.gov.uk/id/local-authority/38,Oxfordshire County Council,Learning  Disabilities Pooled Budget,Direct Payments North Team,Other Agency and Contracted Services,57401,Direct Payments,08/04/2015,3300000526,935.25,REDACTED PERSONAL DATA
http://statistics.data.gov.uk/id/local-authority/38,Oxfordshire County Council,Learning  Disabilities Pooled Budget,Direct Payments North Team,Other Agency and Contracted Services,57401,Direct Payments,08/04/2015,3300000526,-881.25,REDACTED PERSONAL DATA
http://statistics.data.gov.uk/id/local-authority/38,Oxfordshire County Council,"Older People, Phys Disabilities & Equip",PD Comm Supp Purchasg Budget - Wantage,Other Agency and Contracted Services,57401,Direct Payments,08/04/2015,3300000527,1334,REDACTED PERSONAL DATA
http://statistics.data.gov.uk/id/local-authority/38,Oxfordshire County Council,"Older People, Phys Disabilities & Equip",PD CS Purch Budget - Health S28a JC,Other Agency and Contracted Services,57401,Direct Payments,08/04/2015,3300000527,1008,REDACTED PERSONAL DATA
http://statistics.data.gov.uk/id/local-authority/38,Oxfordshire County Council,"Older People, Phys Disabilities & Equip",PD Community Support Budget - Faringdon,Other Agency and Contracted Services,57401,Direct Payments,08/04/2015,3300000528,1413.2,REDACTED PERSONAL DATA
http://statistics.data.gov.uk/id/local-authority/38,Oxfordshire County Council,"Older People, Phys Disabilities & Equip",PD Comm Supp Purchasg Budget - Wantage,Other Agency and Contracted Services,57401,Direct Payments,08/04/2015,3300000529,1205.28,REDACTED PERSONAL DATA
http://statistics.data.gov.uk/id/local-authority/38,Oxfordshire County Council,"Older People, Phys Disabilities & Equip",PD Community Support Budget - Faringdon,Other Agency and Contracted Services,57401,Direct Payments,08/04/2015,3300000531,808,REDACTED PERSONAL DATA
http://statistics.data.gov.uk/id/local-authority/38,Oxfordshire County Council,"Older People, Phys Disabilities & Equip",Community Support Budget - Abingdon,Other Agency and Contracted Services,57401,Direct Payments,08/04/2015,3300000532,1656,REDACTED PERSONAL DATA
http://statistics.data.gov.uk/id/local-authority/38,Oxfordshire County Council,"Older People, Phys Disabilities & Equip",PD Comm Supp Purchasg Budget - City,Other Agency and Contracted Services,57401,Direct Payments,08/04/2015,3300000534,3788.8,REDACTED PERSONAL DATA
http://statistics.data.gov.uk/id/local-authority/38,Oxfordshire County Council,Learning  Disabilities Pooled Budget,Direct Payments South Team,Other Agency and Contracted Services,57401,Direct Payments,08/04/2015,3300000535,6690.24,REDACTED PERSONAL DATA
http://statistics.data.gov.uk/id/local-authority/38,Oxfordshire County Council,Learning  Disabilities Pooled Budget,Direct Payments City Team,Other Agency and Contracted Services,57401,Direct Payments,08/04/2015,3300000537,3880,REDACTED PERSONAL DATA
http://statistics.data.gov.uk/id/local-authority/38,Oxfordshire County Council,Learning  Disabilities Pooled Budget,Direct Payments City Team,Other Agency and Contracted Services,57401,Direct Payments,08/04/2015,3300000538,2360.48,REDACTED PERSONAL DATA
http://statistics.data.gov.uk/id/local-authority/38,Oxfordshire County Council,"Older People, Phys Disabilities & Equip",PD Comm Supp Purchasg Budget - City,Other Agency and Contracted Services,57401,Direct Payments,08/04/2015,3300000539,2034.72,REDACTED PERSONAL DATA
http://statistics.data.gov.uk/id/local-authority/38,Oxfordshire County Council,"Older People, Phys Disabilities & Equip",PD Comm Supp Purchasg Budget - City,Other Agency and Contracted Services,57401,Direct Payments,08/04/2015,3300000540,976.36,REDACTED PERSONAL DATA
http://statistics.data.gov.uk/id/local-authority/38,Oxfordshire County Council,"Older People, Phys Disabilities & Equip",PD Comm Supp Purchasg Budget - City,Other Agency and Contracted Services,57401,Direct Payments,08/04/2015,3300000541,1320,REDACTED PERSONAL DATA
http://statistics.data.gov.uk/id/local-authority/38,Oxfordshire County Council,Learning  Disabilities Pooled Budget,Direct Payments City Team,Other Agency and Contracted Services,57401,Direct Payments,08/04/2015,3300000542,1059.16,REDACTED PERSONAL DATA
http://statistics.data.gov.uk/id/local-authority/38,Oxfordshire County Council,"Older People, Phys Disabilities & Equip",PD Comm Supp Purchasg Budget - Abingdon,Other Agency and Contracted Services,57401,Direct Payments,08/04/2015,3300000543,3556,REDACTED PERSONAL DATA
http://statistics.data.gov.uk/id/local-authority/38,Oxfordshire County Council,Learning  Disabilities Pooled Budget,Direct Payments South Team,Other Agency and Contracted Services,57401,Direct Payments,08/04/2015,3300000544,1036.16,REDACTED PERSONAL DATA
http://statistics.data.gov.uk/id/local-authority/38,Oxfordshire County Council,Learning  Disabilities Pooled Budget,Direct Payments North Team,Other Agency and Contracted Services,57401,Direct Payments,08/04/2015,3300000545,3057.6,REDACTED PERSONAL DATA
http://statistics.data.gov.uk/id/local-authority/38,Oxfordshire County Council,Learning  Disabilities Pooled Budget,Direct Payments North Team,Other Agency and Contracted Services,57401,Direct Payments,08/04/2015,3300000546,937.32,REDACTED PERSONAL DATA
http://statistics.data.gov.uk/id/local-authority/38,Oxfordshire County Council,Learning  Disabilities Pooled Budget,Direct Payments South Team,Other Agency and Contracted Services,57401,Direct Payments,08/04/2015,3300000548,1735.84,REDACTED PERSONAL DATA
http://statistics.data.gov.uk/id/local-authority/38,Oxfordshire County Council,Learning  Disabilities Pooled Budget,Direct Payments South Team,Other Agency and Contracted Services,57401,Direct Payments,08/04/2015,3300000549,1787.12,REDACTED PERSONAL DATA
http://statistics.data.gov.uk/id/local-authority/38,Oxfordshire County Council,"Older People, Phys Disabilities & Equip",PD Comm Supp Purchasg Budget - Thame,Other Agency and Contracted Services,57401,Direct Payments,08/04/2015,3300000550,1812.52,REDACTED PERSONAL DATA
http://statistics.data.gov.uk/id/local-authority/38,Oxfordshire County Council,"Older People, Phys Disabilities & Equip",Community Support Budget - Henley,Other Agency and Contracted Services,57401,Direct Payments,08/04/2015,3300000551,1240,REDACTED PERSONAL DATA
http://statistics.data.gov.uk/id/local-authority/38,Oxfordshire County Council,Learning  Disabilities Pooled Budget,Direct Payments South Team,Other Agency and Contracted Services,57401,Direct Payments,08/04/2015,3300000552,1008,REDACTED PERSONAL DATA
http://statistics.data.gov.uk/id/local-authority/38,Oxfordshire County Council,"Older People, Phys Disabilities & Equip",PD Comm Supp Purchasg Budget - Thame,Other Agency and Contracted Services,57401,Direct Payments,08/04/2015,3300000553,1236,REDACTED PERSONAL DATA
http://statistics.data.gov.uk/id/local-authority/38,Oxfordshire County Council,Learning  Disabilities Pooled Budget,Direct Payments South Team,Other Agency and Contracted Services,57401,Direct Payments,08/04/2015,3300000554,4801.68,REDACTED PERSONAL DATA
http://statistics.data.gov.uk/id/local-authority/38,Oxfordshire County Council,Learning  Disabilities Pooled Budget,Direct Payments South Team,Other Agency and Contracted Services,57401,Direct Payments,08/04/2015,3300000555,1886.76,REDACTED PERSONAL DATA
http://statistics.data.gov.uk/id/local-authority/38,Oxfordshire County Council,Learning  Disabilities Pooled Budget,Direct Payments City Team,Other Agency and Contracted Services,57401,Direct Payments,08/04/2015,3300000556,3167.92,REDACTED PERSONAL DATA
http://statistics.data.gov.uk/id/local-authority/38,Oxfordshire County Council,"Older People, Phys Disabilities & Equip",Community Support Budget - Bicester,Other Agency and Contracted Services,57401,Direct Payments,08/04/2015,3300000557,880,REDACTED PERSONAL DATA
http://statistics.data.gov.uk/id/local-authority/38,Oxfordshire County Council,Learning  Disabilities Pooled Budget,Direct Payments North Team,Other Agency and Contracted Services,57401,Direct Payments,08/04/2015,3300000558,600,REDACTED PERSONAL DATA
http://statistics.data.gov.uk/id/local-authority/38,Oxfordshire County Council,Learning  Disabilities Pooled Budget,Direct Payments North Team,Other Agency and Contracted Services,57401,Direct Payments,08/04/2015,3300000559,4493.16,REDACTED PERSONAL DATA
http://statistics.data.gov.uk/id/local-authority/38,Oxfordshire County Council,"Older People, Phys Disabilities & Equip",PD Comm Supp Budgt - Bicester/Kidlington,Other Agency and Contracted Services,57401,Direct Payments,08/04/2015,3300000560,1217.8,REDACTED PERSONAL DATA
http://statistics.data.gov.uk/id/local-authority/38,Oxfordshire County Council,Learning  Disabilities Pooled Budget,Direct Payments North Team,Other Agency and Contracted Services,57401,Direct Payments,08/04/2015,3300000561,2000,REDACTED PERSONAL DATA
http://statistics.data.gov.uk/id/local-authority/38,Oxfordshire County Council,Learning  Disabilities Pooled Budget,Direct Payments North Team,Other Agency and Contracted Services,57401,Direct Payments,08/04/2015,3300000562,840.68,REDACTED PERSONAL DATA
http://statistics.data.gov.uk/id/local-authority/38,Oxfordshire County Council,"Older People, Phys Disabilities & Equip",PD Comm Supp Budget - Banbury,Other Agency and Contracted Services,57401,Direct Payments,08/04/2015,3300000563,3457.84,REDACTED PERSONAL DATA
http://statistics.data.gov.uk/id/local-authority/38,Oxfordshire County Council,"Older People, Phys Disabilities & Equip",PD Comm Supp Budget - Banbury,Other Agency and Contracted Services,57401,Direct Payments,08/04/2015,3300000564,1795,REDACTED PERSONAL DATA
http://statistics.data.gov.uk/id/local-authority/38,Oxfordshire County Council,"Older People, Phys Disabilities & Equip",Community Support Budget - Banbury,Other Agency and Contracted Services,57401,Direct Payments,08/04/2015,3300000565,2480,REDACTED PERSONAL DATA
http://statistics.data.gov.uk/id/local-authority/38,Oxfordshire County Council,Learning  Disabilities Pooled Budget,Direct Payments North Team,Other Agency and Contracted Services,57401,Direct Payments,08/04/2015,3300000566,12203.64,REDACTED PERSONAL DATA
http://statistics.data.gov.uk/id/local-authority/38,Oxfordshire County Council,Learning  Disabilities Pooled Budget,Direct Payments North Team,Other Agency and Contracted Services,57401,Direct Payments,08/04/2015,3300000567,792,REDACTED PERSONAL DATA
http://statistics.data.gov.uk/id/local-authority/38,Oxfordshire County Council,Learning  Disabilities Pooled Budget,Direct Payments City Team,Other Agency and Contracted Services,57401,Direct Payments,08/04/2015,3300000568,3041.84,REDACTED PERSONAL DATA
http://statistics.data.gov.uk/id/local-authority/38,Oxfordshire County Council,"Older People, Phys Disabilities & Equip",PD Comm Supp Purchasg Budget - Thame,Other Agency and Contracted Services,57401,Direct Payments,08/04/2015,3300000569,756,REDACTED PERSONAL DATA
http://statistics.data.gov.uk/id/local-authority/38,Oxfordshire County Council,"Older People, Phys Disabilities & Equip",Community Support Budget - Abingdon,Other Agency and Contracted Services,57401,Direct Payments,08/04/2015,3300000570,2380,REDACTED PERSONAL DATA
http://statistics.data.gov.uk/id/local-authority/38,Oxfordshire County Council,"Older People, Phys Disabilities & Equip",Community Support Budget - Witney,Other Agency and Contracted Services,57401,Direct Payments,08/04/2015,3300000572,968,REDACTED PERSONAL DATA
http://statistics.data.gov.uk/id/local-authority/38,Oxfordshire County Council,"Older People, Phys Disabilities & Equip",Community Support Budget - Banbury,Other Agency and Contracted Services,57401,Direct Payments,08/04/2015,3300000573,1312,REDACTED PERSONAL DATA
http://statistics.data.gov.uk/id/local-authority/38,Oxfordshire County Council,Learning  Disabilities Pooled Budget,Direct Payments South Team,Other Agency and Contracted Services,57401,Direct Payments,08/04/2015,3300000574,858.16,REDACTED PERSONAL DATA
http://statistics.data.gov.uk/id/local-authority/38,Oxfordshire County Council,"Older People, Phys Disabilities & Equip",Community Support Budget - City,Other Agency and Contracted Services,57401,Direct Payments,08/04/2015,3300000576,2284,REDACTED PERSONAL DATA
http://statistics.data.gov.uk/id/local-authority/38,Oxfordshire County Council,Personal Budgets,Personal Budgets PD South,Other Agency and Contracted Services,57401,Direct Payments,08/04/2015,3300000589,1926.67,REDACTED PERSONAL DATA
http://statistics.data.gov.uk/id/local-authority/38,Oxfordshire County Council,Education & Early Intervention,2 Year Old Funding,Voluntary Associations,55100,Fees to Non Maintain,08/04/2015,3300000603,766.5,Hobby Horse Children's Centre
http://statistics.data.gov.uk/id/local-authority/38,Oxfordshire County Council,Education & Early Intervention,2 Year Old Funding,Voluntary Associations,55100,Fees to Non Maintain,08/04/2015,3300000604,587.65,Sherryl Blowfield
http://statistics.data.gov.uk/id/local-authority/38,Oxfordshire County Council,Law & Culture,Library Collections Management,"Equipment, Furniture and Materials",41601,Library & Curriculum Books,08/04/2015,3300000606,13359.85,Oxford University Press Bookshop
http://statistics.data.gov.uk/id/local-authority/38,Oxfordshire County Council,Law & Culture,Library Collections Management,"Equipment, Furniture and Materials",41601,Library & Curriculum Books,08/04/2015,3300000607,7210,Credo Reference
http://statistics.data.gov.uk/id/local-authority/38,Oxfordshire County Council,Adult Social Care,MH Carers Grant,Other Agency and Contracted Services,57401,Direct Payments,09/04/2015,3300000629,600,REDACTED PERSONAL DATA
http://statistics.data.gov.uk/id/local-authority/38,Oxfordshire County Council,Adult Social Care,MH Carers Grant,Other Agency and Contracted Services,57401,Direct Payments,09/04/2015,3300000631,500,REDACTED PERSONAL DATA
http://statistics.data.gov.uk/id/local-authority/38,Oxfordshire County Council,Adult Social Care,MH Carers Grant,Other Agency and Contracted Services,57401,Direct Payments,09/04/2015,3300000632,529,REDACTED PERSONAL DATA
http://statistics.data.gov.uk/id/local-authority/38,Oxfordshire County Council,Adult Social Care,MH Carers Grant,Other Agency and Contracted Services,57401,Direct Payments,09/04/2015,3300000633,600,REDACTED PERSONAL DATA
http://statistics.data.gov.uk/id/local-authority/38,Oxfordshire County Council,Adult Social Care,MH Carers Grant,Other Agency and Contracted Services,57401,Direct Payments,09/04/2015,3300000634,600,REDACTED PERSONAL DATA
http://statistics.data.gov.uk/id/local-authority/38,Oxfordshire County Council,Adult Social Care,MH Carers Grant,Other Agency and Contracted Services,57401,Direct Payments,09/04/2015,3300000636,600,REDACTED PERSONAL DATA
http://statistics.data.gov.uk/id/local-authority/38,Oxfordshire County Council,"Older People, Phys Disabilities & Equip",Life Of Your Own Grant Cherwell,Other Agency and Contracted Services,57401,Direct Payments,09/04/2015,3300000637,600,REDACTED PERSONAL DATA
http://statistics.data.gov.uk/id/local-authority/38,Oxfordshire County Council,Adult Social Care,MH Carers Grant,Other Agency and Contracted Services,57401,Direct Payments,09/04/2015,3300000638,600,REDACTED PERSONAL DATA
http://statistics.data.gov.uk/id/local-authority/38,Oxfordshire County Council,"Older People, Phys Disabilities & Equip",Life Of Your Own Grant City,Other Agency and Contracted Services,57401,Direct Payments,09/04/2015,3300000639,600,REDACTED PERSONAL DATA
http://statistics.data.gov.uk/id/local-authority/38,Oxfordshire County Council,"Older People, Phys Disabilities & Equip",Carers Break / Respite Project,Other Agency and Contracted Services,57401,Direct Payments,09/04/2015,3300000640,600,REDACTED PERSONAL DATA
http://statistics.data.gov.uk/id/local-authority/38,Oxfordshire County Council,"Older People, Phys Disabilities & Equip",Carers Break / Respite Project,Other Agency and Contracted Services,57401,Direct Payments,09/04/2015,3300000641,600,REDACTED PERSONAL DATA
http://statistics.data.gov.uk/id/local-authority/38,Oxfordshire County Council,"Older People, Phys Disabilities & Equip",Carers Break / Respite Project,Other Agency and Contracted Services,57401,Direct Payments,09/04/2015,3300000644,600,REDACTED PERSONAL DATA
http://statistics.data.gov.uk/id/local-authority/38,Oxfordshire County Council,Adult Social Care,MH Carers Grant,Other Agency and Contracted Services,57401,Direct Payments,09/04/2015,3300000647,600,REDACTED PERSONAL DATA
http://statistics.data.gov.uk/id/local-authority/38,Oxfordshire County Council,Learning  Disabilities Pooled Budget,OCCG Carers,Other Agency and Contracted Services,57401,Direct Payments,09/04/2015,3300000649,600,REDACTED PERSONAL DATA
http://statistics.data.gov.uk/id/local-authority/38,Oxfordshire County Council,"Older People, Phys Disabilities & Equip",Life Of Your Own Grant Cherwell,Other Agency and Contracted Services,57401,Direct Payments,09/04/2015,3300000651,600,REDACTED PERSONAL DATA
http://statistics.data.gov.uk/id/local-authority/38,Oxfordshire County Council,Adult Social Care,MH Carers Grant,Other Agency and Contracted Services,57401,Direct Payments,09/04/2015,3300000652,600,REDACTED PERSONAL DATA
http://statistics.data.gov.uk/id/local-authority/38,Oxfordshire County Council,Adult Social Care,MH Carers Grant,Other Agency and Contracted Services,57401,Direct Payments,09/04/2015,3300000653,600,REDACTED PERSONAL DATA
http://statistics.data.gov.uk/id/local-authority/38,Oxfordshire County Council,Adult Social Care,MH Carers Grant,Other Agency and Contracted Services,57401,Direct Payments,09/04/2015,3300000654,600,REDACTED PERSONAL DATA
http://statistics.data.gov.uk/id/local-authority/38,Oxfordshire County Council,Adult Social Care,MH Carers Grant,Other Agency and Contracted Services,57401,Direct Payments,09/04/2015,3300000655,500,REDACTED PERSONAL DATA
http://statistics.data.gov.uk/id/local-authority/38,Oxfordshire County Council,"Older People, Phys Disabilities & Equip",Carers Break / Respite Project,Other Agency and Contracted Services,57401,Direct Payments,09/04/2015,3300000656,600,REDACTED PERSONAL DATA
http://statistics.data.gov.uk/id/local-authority/38,Oxfordshire County Council,"Older People, Phys Disabilities & Equip",PD Comm Supp Budget - Banbury,Other Agency and Contracted Services,57401,Direct Payments,09/04/2015,3300000658,6610.04,1 Off Advance Housing & Support
http://statistics.data.gov.uk/id/local-authority/38,Oxfordshire County Council,"Older People, Phys Disabilities & Equip",Community Support Budget - Bicester,Other Agency and Contracted Services,57401,Direct Payments,09/04/2015,3300000659,993.5,1 Off Advance Housing & Support
http://statistics.data.gov.uk/id/local-authority/38,Oxfordshire County Council,Children's Social Care,Agency Residential - Disabilities,Other Agency and Contracted Services,57790,Other Residential Placements,09/04/2015,3300000667,966,Chailey Heritage School
http://statistics.data.gov.uk/id/local-authority/38,Oxfordshire County Council,Children's Social Care,Service Agreements - Resource Centres,Other Agency and Contracted Services,57710,Children's Homes,09/04/2015,3300000669,206395.25,Barnardo's Midlands & South West
http://statistics.data.gov.uk/id/local-authority/38,Oxfordshire County Council,Commercial Services,Corporate Landlord Utility Costs,Energy Costs,23100,Electricity,09/04/2015,3300000670,628.04,The Oxford Academy
http://statistics.data.gov.uk/id/local-authority/38,Oxfordshire County Council,Oxfordshire Customer Services,Disclosure & Barring Service (DBS Team),Expenses,46512,Criminal Records Bureau Charges Invoiced,14/04/2015,3300000740,28320,Disclosure & Barring Service
http://statistics.data.gov.uk/id/local-authority/38,Oxfordshire County Council,Oxfordshire Customer Services,Disclosure & Barring Service (DBS Team),Expenses,46512,Criminal Records Bureau Charges Invoiced,28/04/2015,3300000741,2152.5,Security Watchdog
http://statistics.data.gov.uk/id/local-authority/38,Oxfordshire County Council,Adult Social Care,MH Community Sup't,Other Agency and Contracted Services,57300,Home Support (Ext) OS&HCD,13/04/2015,3300000744,1236.28,REDACTED PERSONAL DATA
http://statistics.data.gov.uk/id/local-authority/38,Oxfordshire County Council,Education & Early Intervention,Sufficiency & Access - Intervention Grnt,Voluntary Associations,55100,Fees to Non Maintain,22/04/2015,3300000752,2142.65,The Iffley Montessori Nursery
http://statistics.data.gov.uk/id/local-authority/38,Oxfordshire County Council,"Older People, Phys Disabilities & Equip",Community Support Budget - Henley,Other Agency and Contracted Services,57401,Direct Payments,13/04/2015,3300000888,3773,REDACTED PERSONAL DATA
http://statistics.data.gov.uk/id/local-authority/38,Oxfordshire County Council,"Older People, Phys Disabilities & Equip",Community Support Budget - Henley,Other Agency and Contracted Services,57401,Direct Payments,13/04/2015,3300000888,-3190,REDACTED PERSONAL DATA
http://statistics.data.gov.uk/id/local-authority/38,Oxfordshire County Council,Commercial Services,Traffic Signals Maintenance,Private Contractors,56202,Maint Costs 2nd Sche,14/04/2015,3300001077,18946.78,Siemens Plc
http://statistics.data.gov.uk/id/local-authority/38,Oxfordshire County Council,Commercial Services,Traffic Signals Maintenance,Private Contractors,56201,Maint Costs 1st Sche,15/04/2015,3300001078,21850.75,Siemens Plc
http://statistics.data.gov.uk/id/local-authority/38,Oxfordshire County Council,Commercial Services,Traffic Signals Maintenance,Private Contractors,56201,Maint Costs 1st Sche,14/04/2015,3300001079,25286.49,Siemens Plc
http://statistics.data.gov.uk/id/local-authority/38,Oxfordshire County Council,Commercial Services,Traffic Signals Maintenance,Private Contractors,56202,Maint Costs 2nd Sche,14/04/2015,3300001080,1050,SIEMENS PLC
http://statistics.data.gov.uk/id/local-authority/38,Oxfordshire County Council,Commercial Services,Rising Bollards,Private Contractors,56400,Major Contracts,14/04/2015,3300001088,1036,Cherwell DC
http://statistics.data.gov.uk/id/local-authority/38,Oxfordshire County Council,Adult Social Care,MH Community Sup't,Other Agency and Contracted Services,57300,Home Support (Ext) OS&HCD,14/04/2015,3300001176,660,REDACTED PERSONAL DATA
http://statistics.data.gov.uk/id/local-authority/38,Oxfordshire County Council,Adult Social Care,MH Community Sup't,Other Agency and Contracted Services,57300,Home Support (Ext) OS&HCD,14/04/2015,3300001266,1355.9,Macintyre Care
http://statistics.data.gov.uk/id/local-authority/38,Oxfordshire County Council,Adult Social Care,MH Community Sup't,Other Agency and Contracted Services,57300,Home Support (Ext) OS&HCD,29/04/2015,3300001267,1860,Ashamber Homes Limited
http://statistics.data.gov.uk/id/local-authority/38,Oxfordshire County Council,Adult Social Care,MH Community Sup't,Other Agency and Contracted Services,57300,Home Support (Ext) OS&HCD,14/04/2015,3300001429,1274,Macintyre Care
http://statistics.data.gov.uk/id/local-authority/38,Oxfordshire County Council,Adult Social Care,MH Community Sup't,Other Agency and Contracted Services,57300,Home Support (Ext) OS&HCD,14/04/2015,3300001430,724.23,Bright Yellow Group Plc
http://statistics.data.gov.uk/id/local-authority/38,Oxfordshire County Council,Personal Budgets,Personal Budgets - Mental Health,Other Agency and Contracted Services,57300,Home Support (Ext) OS&HCD,14/04/2015,3300001431,1500,Brook House Residential
http://statistics.data.gov.uk/id/local-authority/38,Oxfordshire County Council,Adult Social Care,MH Community Sup't,Other Agency and Contracted Services,57300,Home Support (Ext) OS&HCD,14/04/2015,3300001432,650,REDACTED PERSONAL DATA
http://statistics.data.gov.uk/id/local-authority/38,Oxfordshire County Council,Children's Social Care,Agency Residential - Disabilities,Other Agency and Contracted Services,57790,Other Residential Placements,14/04/2015,3300001479,873,Chailey Heritage School
http://statistics.data.gov.uk/id/local-authority/38,Oxfordshire County Council,Adult Social Care,MH Community Sup't,Other Agency and Contracted Services,57300,Home Support (Ext) OS&HCD,14/04/2015,3300001484,2322.88,Advance Housing & Support Ltd
http://statistics.data.gov.uk/id/local-authority/38,Oxfordshire County Council,Oxfordshire Customer Services,MIS Payroll Workflow,Balance Sheet General,B7100,Local Government Pension Scheme,15/04/2015,3300001677,3245897.07,Oxfordshire County Council
http://statistics.data.gov.uk/id/local-authority/38,Oxfordshire County Council,Learning  Disabilities Pooled Budget,Direct Payments South Team,Other Agency and Contracted Services,57401,Direct Payments,15/04/2015,3300001749,1179.68,WK1 Advance Housing & Support
http://statistics.data.gov.uk/id/local-authority/38,Oxfordshire County Council,Learning  Disabilities Pooled Budget,Direct Payments North Team,Other Agency and Contracted Services,57401,Direct Payments,15/04/2015,3300001750,600,WK1 Advance Housing & Support
http://statistics.data.gov.uk/id/local-authority/38,Oxfordshire County Council,"Older People, Phys Disabilities & Equip",Community Support Budget - Banbury,Other Agency and Contracted Services,57401,Direct Payments,15/04/2015,3300001751,1460,WK1 Advance Housing & Support
http://statistics.data.gov.uk/id/local-authority/38,Oxfordshire County Council,Learning  Disabilities Pooled Budget,Direct Payments North Team,Other Agency and Contracted Services,57401,Direct Payments,15/04/2015,3300001753,600,WK1 Advance Housing & Support
http://statistics.data.gov.uk/id/local-authority/38,Oxfordshire County Council,"Older People, Phys Disabilities & Equip",PD Comm Supp Budget - Banbury,Other Agency and Contracted Services,57401,Direct Payments,15/04/2015,3300001754,-1813,WK1 Advance Housing & Support
http://statistics.data.gov.uk/id/local-authority/38,Oxfordshire County Council,"Older People, Phys Disabilities & Equip",PD Comm Supp Budget - Banbury,Other Agency and Contracted Services,57401,Direct Payments,15/04/2015,3300001754,1160,WK1 Advance Housing & Support
http://statistics.data.gov.uk/id/local-authority/38,Oxfordshire County Council,"Older People, Phys Disabilities & Equip",PD Comm Supp Budget - Banbury,Other Agency and Contracted Services,57401,Direct Payments,15/04/2015,3300001754,2030,WK1 Advance Housing & Support
http://statistics.data.gov.uk/id/local-authority/38,Oxfordshire County Council,"Older People, Phys Disabilities & Equip",Community Support Budget - City,Other Agency and Contracted Services,57401,Direct Payments,15/04/2015,3300001756,872,WK1 Advance Housing & Support
http://statistics.data.gov.uk/id/local-authority/38,Oxfordshire County Council,"Older People, Phys Disabilities & Equip",Community Support Budget - Banbury,Other Agency and Contracted Services,57401,Direct Payments,15/04/2015,3300001757,2760,WK1 Advance Housing & Support
http://statistics.data.gov.uk/id/local-authority/38,Oxfordshire County Council,"Older People, Phys Disabilities & Equip",PD Comm Supp Budgt - Bicester/Kidlington,Other Agency and Contracted Services,57401,Direct Payments,15/04/2015,3300001758,1668,WK1 Advance Housing & Support
http://statistics.data.gov.uk/id/local-authority/38,Oxfordshire County Council,"Older People, Phys Disabilities & Equip",OP Pool Continuing Care Delegated Health,Other Agency and Contracted Services,57401,Direct Payments,15/04/2015,3300001759,827.4,WK1 Advance Housing & Support
http://statistics.data.gov.uk/id/local-authority/38,Oxfordshire County Council,"Older People, Phys Disabilities & Equip",Community Support Budget - Witney,Other Agency and Contracted Services,57401,Direct Payments,15/04/2015,3300001759,2260.6,WK1 Advance Housing & Support
http://statistics.data.gov.uk/id/local-authority/38,Oxfordshire County Council,"Older People, Phys Disabilities & Equip",PD Comm Supp Purchasg Budget - Witney,Other Agency and Contracted Services,57401,Direct Payments,15/04/2015,3300001760,1360,WK1 Advance Housing & Support
http://statistics.data.gov.uk/id/local-authority/38,Oxfordshire County Council,"Older People, Phys Disabilities & Equip",PHB OP Package,Other Agency and Contracted Services,57401,Direct Payments,15/04/2015,3300001762,670.24,WK1 Advance Housing & Support
http://statistics.data.gov.uk/id/local-authority/38,Oxfordshire County Council,Learning  Disabilities Pooled Budget,Direct Payments South Team,Other Agency and Contracted Services,57401,Direct Payments,15/04/2015,3300001764,2061.52,WK1 Advance Housing & Support
http://statistics.data.gov.uk/id/local-authority/38,Oxfordshire County Council,"Older People, Phys Disabilities & Equip",Community Support Budget - Didcot,Other Agency and Contracted Services,57401,Direct Payments,15/04/2015,3300001765,960,WK1 Advance Housing & Support
http://statistics.data.gov.uk/id/local-authority/38,Oxfordshire County Council,"Older People, Phys Disabilities & Equip",Community Support Budget - Witney,Other Agency and Contracted Services,57401,Direct Payments,15/04/2015,3300001767,640,WK1 Advance Housing & Support
http://statistics.data.gov.uk/id/local-authority/38,Oxfordshire County Council,Learning  Disabilities Pooled Budget,Direct Payments North Team,Other Agency and Contracted Services,57401,Direct Payments,15/04/2015,3300001768,1984,WK1 Advance Housing & Support
http://statistics.data.gov.uk/id/local-authority/38,Oxfordshire County Council,"Older People, Phys Disabilities & Equip",PD Comm Supp Purchasg Budget - City,Other Agency and Contracted Services,57401,Direct Payments,15/04/2015,3300001769,842.08,WK1 Advance Housing & Support
http://statistics.data.gov.uk/id/local-authority/38,Oxfordshire County Council,"Older People, Phys Disabilities & Equip",Community Support Budget - City,Other Agency and Contracted Services,57401,Direct Payments,15/04/2015,3300001770,628,WK1 Advance Housing & Support
http://statistics.data.gov.uk/id/local-authority/38,Oxfordshire County Council,"Older People, Phys Disabilities & Equip",PD Comm Supp Purchasg Budget - Didcot,Other Agency and Contracted Services,57401,Direct Payments,15/04/2015,3300001771,848,WK1 Advance Housing & Support
http://statistics.data.gov.uk/id/local-authority/38,Oxfordshire County Council,"Older People, Phys Disabilities & Equip",Community Support Budget - Witney,Other Agency and Contracted Services,57401,Direct Payments,15/04/2015,3300001772,1320,WK1 Advance Housing & Support
http://statistics.data.gov.uk/id/local-authority/38,Oxfordshire County Council,"Older People, Phys Disabilities & Equip",Community Support Budget - Thame,Other Agency and Contracted Services,57401,Direct Payments,15/04/2015,3300001773,604,WK1 Advance Housing & Support
http://statistics.data.gov.uk/id/local-authority/38,Oxfordshire County Council,Learning  Disabilities Pooled Budget,Direct Payments North Team,Other Agency and Contracted Services,57401,Direct Payments,15/04/2015,3300001775,1312,WK1 Advance Housing & Support
http://statistics.data.gov.uk/id/local-authority/38,Oxfordshire County Council,"Older People, Phys Disabilities & Equip",PD Comm Supp Purchasg Budget - Didcot,Other Agency and Contracted Services,57401,Direct Payments,15/04/2015,3300001778,893.52,WK1 Advance Housing & Support
http://statistics.data.gov.uk/id/local-authority/38,Oxfordshire County Council,"Older People, Phys Disabilities & Equip",Community Support Budget - Witney,Other Agency and Contracted Services,57401,Direct Payments,15/04/2015,3300001780,544,WK1 Advance Housing & Support
http://statistics.data.gov.uk/id/local-authority/38,Oxfordshire County Council,"Older People, Phys Disabilities & Equip",PD Comm Supp Budget - Banbury,Other Agency and Contracted Services,57401,Direct Payments,15/04/2015,3300001781,2300,WK1 Advance Housing & Support
http://statistics.data.gov.uk/id/local-authority/38,Oxfordshire County Council,"Older People, Phys Disabilities & Equip",Community Support Budget - Banbury,Other Agency and Contracted Services,57401,Direct Payments,15/04/2015,3300001782,508,WK1 Advance Housing & Support
http://statistics.data.gov.uk/id/local-authority/38,Oxfordshire County Council,"Older People, Phys Disabilities & Equip",PD Comm Supp Budget - Banbury,Other Agency and Contracted Services,57401,Direct Payments,15/04/2015,3300001784,2367.56,WK1 Advance Housing & Support
http://statistics.data.gov.uk/id/local-authority/38,Oxfordshire County Council,"Older People, Phys Disabilities & Equip",Community Support Budget - Banbury,Other Agency and Contracted Services,57401,Direct Payments,15/04/2015,3300001785,1144,WK1 Advance Housing & Support
http://statistics.data.gov.uk/id/local-authority/38,Oxfordshire County Council,"Older People, Phys Disabilities & Equip",Community Support Budget - Didcot,Other Agency and Contracted Services,57401,Direct Payments,15/04/2015,3300001786,860,WK1 Advance Housing & Support
http://statistics.data.gov.uk/id/local-authority/38,Oxfordshire County Council,Learning  Disabilities Pooled Budget,Direct Payments North Team,Other Agency and Contracted Services,57401,Direct Payments,15/04/2015,3300001788,1255.84,WK1 Advance Housing & Support
http://statistics.data.gov.uk/id/local-authority/38,Oxfordshire County Council,"Older People, Phys Disabilities & Equip",Community Support Budget - Wantage,Other Agency and Contracted Services,57401,Direct Payments,15/04/2015,3300001789,3084,WK1 Advance Housing & Support
http://statistics.data.gov.uk/id/local-authority/38,Oxfordshire County Council,"Older People, Phys Disabilities & Equip",PD Comm Supp Purchasg Budget - Chip. N.,Other Agency and Contracted Services,57401,Direct Payments,15/04/2015,3300001790,672,WK1 Advance Housing & Support
http://statistics.data.gov.uk/id/local-authority/38,Oxfordshire County Council,"Older People, Phys Disabilities & Equip",Community Support Budget - Banbury,Other Agency and Contracted Services,57401,Direct Payments,15/04/2015,3300001791,3096.4,WK1 Advance Housing & Support
http://statistics.data.gov.uk/id/local-authority/38,Oxfordshire County Council,"Older People, Phys Disabilities & Equip",Community Support Budget - Banbury,Other Agency and Contracted Services,57401,Direct Payments,15/04/2015,3300001792,2772,WK1 Advance Housing & Support
http://statistics.data.gov.uk/id/local-authority/38,Oxfordshire County Council,"Older People, Phys Disabilities & Equip",Community Support Budget - Witney,Other Agency and Contracted Services,57401,Direct Payments,15/04/2015,3300001793,1332,WK1 Advance Housing & Support
http://statistics.data.gov.uk/id/local-authority/38,Oxfordshire County Council,"Older People, Phys Disabilities & Equip",Community Support Budget - Abingdon,Other Agency and Contracted Services,57401,Direct Payments,15/04/2015,3300001794,3080,WK1 Advance Housing & Support
http://statistics.data.gov.uk/id/local-authority/38,Oxfordshire County Council,"Older People, Phys Disabilities & Equip",Community Support Budget - City,Other Agency and Contracted Services,57401,Direct Payments,15/04/2015,3300001795,700,WK1 Advance Housing & Support
http://statistics.data.gov.uk/id/local-authority/38,Oxfordshire County Council,"Older People, Phys Disabilities & Equip",PD Comm Supp Purchasg Budget - Didcot,Other Agency and Contracted Services,57401,Direct Payments,15/04/2015,3300001796,824.52,WK1 Advance Housing & Support
http://statistics.data.gov.uk/id/local-authority/38,Oxfordshire County Council,"Older People, Phys Disabilities & Equip",Community Support Budget - Witney,Other Agency and Contracted Services,57401,Direct Payments,15/04/2015,3300001797,664,WK1 Advance Housing & Support
http://statistics.data.gov.uk/id/local-authority/38,Oxfordshire County Council,"Older People, Phys Disabilities & Equip",Community Support Budget - Banbury,Other Agency and Contracted Services,57401,Direct Payments,15/04/2015,3300001798,2950.76,WK1 Advance Housing & Support
http://statistics.data.gov.uk/id/local-authority/38,Oxfordshire County Council,"Older People, Phys Disabilities & Equip",Community Support Budget - Banbury,Other Agency and Contracted Services,57401,Direct Payments,15/04/2015,3300001800,800,WK1 Advance Housing & Support
http://statistics.data.gov.uk/id/local-authority/38,Oxfordshire County Council,"Older People, Phys Disabilities & Equip",Community Support Budget - Wantage,Other Agency and Contracted Services,57401,Direct Payments,15/04/2015,3300001802,948,WK1 Advance Housing & Support
http://statistics.data.gov.uk/id/local-authority/38,Oxfordshire County Council,"Older People, Phys Disabilities & Equip",PD Comm Supp Purchasg Budget - Wantage,Other Agency and Contracted Services,57401,Direct Payments,15/04/2015,3300001804,2208.12,WK1 Advance Housing & Support
http://statistics.data.gov.uk/id/local-authority/38,Oxfordshire County Council,"Older People, Phys Disabilities & Equip",Community Support Budget - Didcot,Other Agency and Contracted Services,57401,Direct Payments,15/04/2015,3300001805,788,WK1 Advance Housing & Support
http://statistics.data.gov.uk/id/local-authority/38,Oxfordshire County Council,"Older People, Phys Disabilities & Equip",Community Support Budget - Witney,Other Agency and Contracted Services,57401,Direct Payments,15/04/2015,3300001807,668,WK1 Advance Housing & Support
http://statistics.data.gov.uk/id/local-authority/38,Oxfordshire County Council,"Older People, Phys Disabilities & Equip",Community Support Budget - City,Other Agency and Contracted Services,57401,Direct Payments,15/04/2015,3300001808,1710.24,WK1 Advance Housing & Support
http://statistics.data.gov.uk/id/local-authority/38,Oxfordshire County Council,"Older People, Phys Disabilities & Equip",Community Support Budget - Banbury,Other Agency and Contracted Services,57401,Direct Payments,15/04/2015,3300001809,600,WK1 Advance Housing & Support
http://statistics.data.gov.uk/id/local-authority/38,Oxfordshire County Council,"Older People, Phys Disabilities & Equip",Community Support Budget - Chipping Nort,Other Agency and Contracted Services,57401,Direct Payments,15/04/2015,3300001810,1008,WK1 Advance Housing & Support
http://statistics.data.gov.uk/id/local-authority/38,Oxfordshire County Council,"Older People, Phys Disabilities & Equip",Community Support Budget - Witney,Other Agency and Contracted Services,57401,Direct Payments,15/04/2015,3300001812,1044,WK1 Advance Housing & Support
http://statistics.data.gov.uk/id/local-authority/38,Oxfordshire County Council,"Older People, Phys Disabilities & Equip",Community Support Budget - Kidlington,Other Agency and Contracted Services,57401,Direct Payments,15/04/2015,3300001813,920,WK1 Advance Housing & Support
http://statistics.data.gov.uk/id/local-authority/38,Oxfordshire County Council,"Older People, Phys Disabilities & Equip",PD Comm Supp Budget - Banbury,Other Agency and Contracted Services,57401,Direct Payments,15/04/2015,3300001814,1356,WK1 Advance Housing & Support
http://statistics.data.gov.uk/id/local-authority/38,Oxfordshire County Council,"Older People, Phys Disabilities & Equip",Community Support Budget - Banbury,Other Agency and Contracted Services,57401,Direct Payments,15/04/2015,3300001815,844,WK1 Advance Housing & Support
http://statistics.data.gov.uk/id/local-authority/38,Oxfordshire County Council,"Older People, Phys Disabilities & Equip",Community Support Budget - Banbury,Other Agency and Contracted Services,57401,Direct Payments,15/04/2015,3300001816,652,WK1 Advance Housing & Support
http://statistics.data.gov.uk/id/local-authority/38,Oxfordshire County Council,"Older People, Phys Disabilities & Equip",Community Support Budget - Banbury,Other Agency and Contracted Services,57401,Direct Payments,15/04/2015,3300001816,512.29,WK1 Advance Housing & Support
http://statistics.data.gov.uk/id/local-authority/38,Oxfordshire County Council,"Older People, Phys Disabilities & Equip",Community Support Budget - Henley,Other Agency and Contracted Services,57401,Direct Payments,15/04/2015,3300001817,3432.8,WK1 Advance Housing & Support
http://statistics.data.gov.uk/id/local-authority/38,Oxfordshire County Council,"Older People, Phys Disabilities & Equip",PD Comm Supp Purchasg Budget - City,Other Agency and Contracted Services,57401,Direct Payments,15/04/2015,3300001818,1200,WK1 Advance Housing & Support
http://statistics.data.gov.uk/id/local-authority/38,Oxfordshire County Council,"Older People, Phys Disabilities & Equip",Community Support Budget - Didcot,Other Agency and Contracted Services,57401,Direct Payments,15/04/2015,3300001819,668,WK1 Advance Housing & Support
http://statistics.data.gov.uk/id/local-authority/38,Oxfordshire County Council,"Older People, Phys Disabilities & Equip",Community Support Budget - Thame,Other Agency and Contracted Services,57401,Direct Payments,15/04/2015,3300001821,512,WK1 Advance Housing & Support
http://statistics.data.gov.uk/id/local-authority/38,Oxfordshire County Council,"Older People, Phys Disabilities & Equip",Community Support Budget - Henley,Other Agency and Contracted Services,57401,Direct Payments,15/04/2015,3300001822,1600,WK1 Advance Housing & Support
http://statistics.data.gov.uk/id/local-authority/38,Oxfordshire County Council,Learning  Disabilities Pooled Budget,Direct Payments North Team,Other Agency and Contracted Services,57401,Direct Payments,15/04/2015,3300001825,1348,WK1 Advance Housing & Support
http://statistics.data.gov.uk/id/local-authority/38,Oxfordshire County Council,"Older People, Phys Disabilities & Equip",Community Support Budget - City,Other Agency and Contracted Services,57401,Direct Payments,15/04/2015,3300001826,756,WK1 Advance Housing & Support
http://statistics.data.gov.uk/id/local-authority/38,Oxfordshire County Council,"Older People, Phys Disabilities & Equip",PD Comm Supp Purchasg Budget - Thame,Other Agency and Contracted Services,57401,Direct Payments,15/04/2015,3300001827,1160,WK1 Advance Housing & Support
http://statistics.data.gov.uk/id/local-authority/38,Oxfordshire County Council,Learning  Disabilities Pooled Budget,Direct Payments North Team,Other Agency and Contracted Services,57401,Direct Payments,15/04/2015,3300001828,2792,WK1 Advance Housing & Support
http://statistics.data.gov.uk/id/local-authority/38,Oxfordshire County Council,Learning  Disabilities Pooled Budget,Direct Payments North Team,Other Agency and Contracted Services,57401,Direct Payments,15/04/2015,3300001829,4419.92,WK1 Advance Housing & Support
http://statistics.data.gov.uk/id/local-authority/38,Oxfordshire County Council,"Older People, Phys Disabilities & Equip",Community Support Budget - Henley,Other Agency and Contracted Services,57401,Direct Payments,15/04/2015,3300001830,996,WK1 Advance Housing & Support
http://statistics.data.gov.uk/id/local-authority/38,Oxfordshire County Council,"Older People, Phys Disabilities & Equip",PD Comm Supp Budget - Banbury,Other Agency and Contracted Services,57401,Direct Payments,15/04/2015,3300001831,1900,WK1 Advance Housing & Support
http://statistics.data.gov.uk/id/local-authority/38,Oxfordshire County Council,"Older People, Phys Disabilities & Equip",PD Comm Supp Purchasg Budget - Henley,Other Agency and Contracted Services,57401,Direct Payments,15/04/2015,3300001832,624.32,WK1 Advance Housing & Support
http://statistics.data.gov.uk/id/local-authority/38,Oxfordshire County Council,"Older People, Phys Disabilities & Equip",Community Support Budget - City,Other Agency and Contracted Services,57401,Direct Payments,15/04/2015,3300001833,2560,WK1 Advance Housing & Support
http://statistics.data.gov.uk/id/local-authority/38,Oxfordshire County Council,"Older People, Phys Disabilities & Equip",Community Support Budget - City,Other Agency and Contracted Services,57401,Direct Payments,15/04/2015,3300001833,640,WK1 Advance Housing & Support
http://statistics.data.gov.uk/id/local-authority/38,Oxfordshire County Council,"Older People, Phys Disabilities & Equip",PD Comm Supp Purchasg Budget - City,Other Agency and Contracted Services,57401,Direct Payments,15/04/2015,3300001834,988,WK1 Advance Housing & Support
http://statistics.data.gov.uk/id/local-authority/38,Oxfordshire County Council,"Older People, Phys Disabilities & Equip",Community Support Budget - City,Other Agency and Contracted Services,57401,Direct Payments,15/04/2015,3300001835,700,WK1 Advance Housing & Support
http://statistics.data.gov.uk/id/local-authority/38,Oxfordshire County Council,"Older People, Phys Disabilities & Equip",PD Comm Supp Purchasg Budget - Witney,Other Agency and Contracted Services,57401,Direct Payments,15/04/2015,3300001836,1316,WK1 Advance Housing & Support
http://statistics.data.gov.uk/id/local-authority/38,Oxfordshire County Council,"Older People, Phys Disabilities & Equip",PD Comm Supp Purchasg Budget - Witney,Other Agency and Contracted Services,57401,Direct Payments,15/04/2015,3300001837,824,WK1 Advance Housing & Support
http://statistics.data.gov.uk/id/local-authority/38,Oxfordshire County Council,"Older People, Phys Disabilities & Equip",Community Support Budget - Abingdon,Other Agency and Contracted Services,57401,Direct Payments,15/04/2015,3300001838,2852,WK1 Advance Housing & Support
http://statistics.data.gov.uk/id/local-authority/38,Oxfordshire County Council,"Older People, Phys Disabilities & Equip",Community Support Budget - Abingdon,Other Agency and Contracted Services,57401,Direct Payments,15/04/2015,3300001840,940,WK1 Advance Housing & Support
http://statistics.data.gov.uk/id/local-authority/38,Oxfordshire County Council,"Older People, Phys Disabilities & Equip",PD Comm Supp Budget - Banbury,Other Agency and Contracted Services,57401,Direct Payments,15/04/2015,3300001841,1112,WK1 Advance Housing & Support
http://statistics.data.gov.uk/id/local-authority/38,Oxfordshire County Council,"Older People, Phys Disabilities & Equip",PD Comm Supp Budget - Banbury,Other Agency and Contracted Services,57401,Direct Payments,15/04/2015,3300001842,1000,WK1 Advance Housing & Support
http://statistics.data.gov.uk/id/local-authority/38,Oxfordshire County Council,"Older People, Phys Disabilities & Equip",Community Support Budget - Henley,Other Agency and Contracted Services,57401,Direct Payments,15/04/2015,3300001843,2275.16,WK1 Advance Housing & Support
http://statistics.data.gov.uk/id/local-authority/38,Oxfordshire County Council,Learning  Disabilities Pooled Budget,Direct Payments North Team,Other Agency and Contracted Services,57401,Direct Payments,15/04/2015,3300001844,810.92,WK1 Advance Housing & Support
http://statistics.data.gov.uk/id/local-authority/38,Oxfordshire County Council,"Older People, Phys Disabilities & Equip",PD Comm Supp Purchasg Budget - Witney,Other Agency and Contracted Services,57401,Direct Payments,15/04/2015,3300001845,1200,WK1 Advance Housing & Support
http://statistics.data.gov.uk/id/local-authority/38,Oxfordshire County Council,Learning  Disabilities Pooled Budget,Direct Payments North Team,Other Agency and Contracted Services,57401,Direct Payments,15/04/2015,3300001847,6510,WK1 Advance Housing & Support
http://statistics.data.gov.uk/id/local-authority/38,Oxfordshire County Council,"Older People, Phys Disabilities & Equip",Community Support Budget - Chipping Nort,Other Agency and Contracted Services,57401,Direct Payments,15/04/2015,3300001849,668,WK1 Advance Housing & Support
http://statistics.data.gov.uk/id/local-authority/38,Oxfordshire County Council,"Older People, Phys Disabilities & Equip",PD Comm Supp Budgt - Bicester/Kidlington,Other Agency and Contracted Services,57401,Direct Payments,15/04/2015,3300001850,644,WK1 Advance Housing & Support
http://statistics.data.gov.uk/id/local-authority/38,Oxfordshire County Council,Learning  Disabilities Pooled Budget,Direct Payments North Team,Other Agency and Contracted Services,57401,Direct Payments,15/04/2015,3300001851,3600,WK1 Advance Housing & Support
http://statistics.data.gov.uk/id/local-authority/38,Oxfordshire County Council,"Older People, Phys Disabilities & Equip",Community Support Budget - Thame,Other Agency and Contracted Services,57401,Direct Payments,15/04/2015,3300001852,3205.44,WK1 Advance Housing & Support
http://statistics.data.gov.uk/id/local-authority/38,Oxfordshire County Council,"Older People, Phys Disabilities & Equip",PD Comm Supp Purchasg Budget - Thame,Other Agency and Contracted Services,57401,Direct Payments,15/04/2015,3300001853,644,WK1 Advance Housing & Support
http://statistics.data.gov.uk/id/local-authority/38,Oxfordshire County Council,"Older People, Phys Disabilities & Equip",PD Comm Supp Purchasg Budget - Thame,Other Agency and Contracted Services,57401,Direct Payments,15/04/2015,3300001854,1096,WK1 Advance Housing & Support
http://statistics.data.gov.uk/id/local-authority/38,Oxfordshire County Council,"Older People, Phys Disabilities & Equip",Community Support Budget - Witney,Other Agency and Contracted Services,57401,Direct Payments,15/04/2015,3300001855,1003.16,WK1 Advance Housing & Support
http://statistics.data.gov.uk/id/local-authority/38,Oxfordshire County Council,"Older People, Phys Disabilities & Equip",PD Comm Supp Purchasg Budget - Henley,Other Agency and Contracted Services,57401,Direct Payments,15/04/2015,3300001856,7354.29,WK1 Advance Housing & Support
http://statistics.data.gov.uk/id/local-authority/38,Oxfordshire County Council,"Older People, Phys Disabilities & Equip",PD Comm Supp Purchasg Budget - Henley,Other Agency and Contracted Services,57401,Direct Payments,15/04/2015,3300001856,520,WK1 Advance Housing & Support
http://statistics.data.gov.uk/id/local-authority/38,Oxfordshire County Council,"Older People, Phys Disabilities & Equip",Community Support Budget - Faringdon,Other Agency and Contracted Services,57401,Direct Payments,15/04/2015,3300001857,1984,WK1 Advance Housing & Support
http://statistics.data.gov.uk/id/local-authority/38,Oxfordshire County Council,"Older People, Phys Disabilities & Equip",Community Support Budget - Banbury,Other Agency and Contracted Services,57401,Direct Payments,15/04/2015,3300001860,1576,WK1 Advance Housing & Support
http://statistics.data.gov.uk/id/local-authority/38,Oxfordshire County Council,"Older People, Phys Disabilities & Equip",PD Comm Supp Purchasg Budget - Henley,Other Agency and Contracted Services,57401,Direct Payments,15/04/2015,3300001864,1320,WK1 Advance Housing & Support
http://statistics.data.gov.uk/id/local-authority/38,Oxfordshire County Council,Learning  Disabilities Pooled Budget,Direct Payments North Team,Other Agency and Contracted Services,57401,Direct Payments,15/04/2015,3300001865,709.68,WK1 Advance Housing & Support
http://statistics.data.gov.uk/id/local-authority/38,Oxfordshire County Council,Learning  Disabilities Pooled Budget,Direct Payments South Team,Other Agency and Contracted Services,57401,Direct Payments,15/04/2015,3300001868,952,WK1 Advance Housing & Support
http://statistics.data.gov.uk/id/local-authority/38,Oxfordshire County Council,"Older People, Phys Disabilities & Equip",Community Support Budget - Banbury,Other Agency and Contracted Services,57401,Direct Payments,15/04/2015,3300001869,3400,WK1 Advance Housing & Support
http://statistics.data.gov.uk/id/local-authority/38,Oxfordshire County Council,"Older People, Phys Disabilities & Equip",Community Support Budget - Bicester,Other Agency and Contracted Services,57401,Direct Payments,15/04/2015,3300001872,1232,WK1 Advance Housing & Support
http://statistics.data.gov.uk/id/local-authority/38,Oxfordshire County Council,"Older People, Phys Disabilities & Equip",Community Support Budget - Didcot,Other Agency and Contracted Services,57401,Direct Payments,15/04/2015,3300001873,1112,WK1 Advance Housing & Support
http://statistics.data.gov.uk/id/local-authority/38,Oxfordshire County Council,"Older People, Phys Disabilities & Equip",Community Support Budget - Banbury,Other Agency and Contracted Services,57401,Direct Payments,15/04/2015,3300001874,1820,WK1 Advance Housing & Support
http://statistics.data.gov.uk/id/local-authority/38,Oxfordshire County Council,"Older People, Phys Disabilities & Equip",Community Support Budget - Banbury,Other Agency and Contracted Services,57401,Direct Payments,15/04/2015,3300001874,-2097.86,WK1 Advance Housing & Support
http://statistics.data.gov.uk/id/local-authority/38,Oxfordshire County Council,"Older People, Phys Disabilities & Equip",Community Support Budget - Banbury,Other Agency and Contracted Services,57401,Direct Payments,15/04/2015,3300001874,2145,WK1 Advance Housing & Support
http://statistics.data.gov.uk/id/local-authority/38,Oxfordshire County Council,"Older People, Phys Disabilities & Equip",PD Comm Supp Budget - Banbury,Other Agency and Contracted Services,57401,Direct Payments,15/04/2015,3300001875,2772,WK1 Advance Housing & Support
http://statistics.data.gov.uk/id/local-authority/38,Oxfordshire County Council,"Older People, Phys Disabilities & Equip",Community Support Budget - Didcot,Other Agency and Contracted Services,57401,Direct Payments,15/04/2015,3300001876,648.12,WK1 Advance Housing & Support
http://statistics.data.gov.uk/id/local-authority/38,Oxfordshire County Council,"Older People, Phys Disabilities & Equip",Community Support Budget - Didcot,Other Agency and Contracted Services,57401,Direct Payments,15/04/2015,3300001877,1141.6,WK1 Advance Housing & Support
http://statistics.data.gov.uk/id/local-authority/38,Oxfordshire County Council,"Older People, Phys Disabilities & Equip",Community Support Budget - Thame,Other Agency and Contracted Services,57401,Direct Payments,15/04/2015,3300001878,1488,WK1 Advance Housing & Support
http://statistics.data.gov.uk/id/local-authority/38,Oxfordshire County Council,"Older People, Phys Disabilities & Equip",Community Support Budget - Abingdon,Other Agency and Contracted Services,57401,Direct Payments,15/04/2015,3300001879,2570.29,WK1 Advance Housing & Support
http://statistics.data.gov.uk/id/local-authority/38,Oxfordshire County Council,"Older People, Phys Disabilities & Equip",Community Support Budget - Abingdon,Other Agency and Contracted Services,57401,Direct Payments,15/04/2015,3300001879,692,WK1 Advance Housing & Support
http://statistics.data.gov.uk/id/local-authority/38,Oxfordshire County Council,"Older People, Phys Disabilities & Equip",Community Support Budget - City,Other Agency and Contracted Services,57401,Direct Payments,15/04/2015,3300001880,596,WK1 Advance Housing & Support
http://statistics.data.gov.uk/id/local-authority/38,Oxfordshire County Council,"Older People, Phys Disabilities & Equip",Community Support Budget - Witney,Other Agency and Contracted Services,57401,Direct Payments,15/04/2015,3300001881,571.71,WK1 Advance Housing & Support
http://statistics.data.gov.uk/id/local-authority/38,Oxfordshire County Council,"Older People, Phys Disabilities & Equip",Community Support Budget - Witney,Other Agency and Contracted Services,57401,Direct Payments,15/04/2015,3300001882,924,WK1 Advance Housing & Support
http://statistics.data.gov.uk/id/local-authority/38,Oxfordshire County Council,"Older People, Phys Disabilities & Equip",Community Support Budget - Didcot,Other Agency and Contracted Services,57401,Direct Payments,15/04/2015,3300001883,880,WK1 Advance Housing & Support
http://statistics.data.gov.uk/id/local-authority/38,Oxfordshire County Council,"Older People, Phys Disabilities & Equip",Community Support Budget - Witney,Other Agency and Contracted Services,57401,Direct Payments,15/04/2015,3300001886,924,WK1 Advance Housing & Support
http://statistics.data.gov.uk/id/local-authority/38,Oxfordshire County Council,"Older People, Phys Disabilities & Equip",Community Support Budget - Didcot,Other Agency and Contracted Services,57401,Direct Payments,15/04/2015,3300001887,2544,WK1 Advance Housing & Support
http://statistics.data.gov.uk/id/local-authority/38,Oxfordshire County Council,"Older People, Phys Disabilities & Equip",Community Support Budget - Banbury,Other Agency and Contracted Services,57401,Direct Payments,15/04/2015,3300001888,508,WK1 Advance Housing & Support
http://statistics.data.gov.uk/id/local-authority/38,Oxfordshire County Council,Learning  Disabilities Pooled Budget,Direct Payments North Team,Other Agency and Contracted Services,57401,Direct Payments,15/04/2015,3300001889,600,WK1 Advance Housing & Support
http://statistics.data.gov.uk/id/local-authority/38,Oxfordshire County Council,Adult Social Care,MH Community Sup't,Other Agency and Contracted Services,57401,Direct Payments,15/04/2015,3300001890,768,WK1 Advance Housing & Support
http://statistics.data.gov.uk/id/local-authority/38,Oxfordshire County Council,"Older People, Phys Disabilities & Equip",Community Support Budget - Witney,Other Agency and Contracted Services,57401,Direct Payments,15/04/2015,3300001891,844,WK1 Advance Housing & Support
http://statistics.data.gov.uk/id/local-authority/38,Oxfordshire County Council,"Older People, Phys Disabilities & Equip",PD Comm Supp Purchasg Budget - Witney,Other Agency and Contracted Services,57401,Direct Payments,15/04/2015,3300001892,3948.84,WK1 Advance Housing & Support
http://statistics.data.gov.uk/id/local-authority/38,Oxfordshire County Council,Learning  Disabilities Pooled Budget,Direct Payments North Team,Other Agency and Contracted Services,57401,Direct Payments,15/04/2015,3300001894,4466.48,WK1 Advance Housing & Support
http://statistics.data.gov.uk/id/local-authority/38,Oxfordshire County Council,Learning  Disabilities Pooled Budget,Direct Payments North Team,Other Agency and Contracted Services,57401,Direct Payments,15/04/2015,3300001895,786,WK1 Advance Housing & Support
http://statistics.data.gov.uk/id/local-authority/38,Oxfordshire County Council,Learning  Disabilities Pooled Budget,Direct Payments North Team,Other Agency and Contracted Services,57401,Direct Payments,15/04/2015,3300001896,594,WK1 Advance Housing & Support
http://statistics.data.gov.uk/id/local-authority/38,Oxfordshire County Council,"Older People, Phys Disabilities & Equip",PD Comm Supp Purchasg Budget - Wantage,Other Agency and Contracted Services,57401,Direct Payments,15/04/2015,3300001897,880,WK1 Advance Housing & Support
http://statistics.data.gov.uk/id/local-authority/38,Oxfordshire County Council,Learning  Disabilities Pooled Budget,Direct Payments South Team,Other Agency and Contracted Services,57401,Direct Payments,15/04/2015,3300001899,618.08,WK1 Advance Housing & Support
http://statistics.data.gov.uk/id/local-authority/38,Oxfordshire County Council,"Older People, Phys Disabilities & Equip",PD Comm Supp Budgt - Bicester/Kidlington,Other Agency and Contracted Services,57401,Direct Payments,15/04/2015,3300001900,2304,WK1 Advance Housing & Support
http://statistics.data.gov.uk/id/local-authority/38,Oxfordshire County Council,"Older People, Phys Disabilities & Equip",PD Comm Supp Budget - Banbury,Other Agency and Contracted Services,57401,Direct Payments,15/04/2015,3300001901,518.57,WK1 Advance Housing & Support
http://statistics.data.gov.uk/id/local-authority/38,Oxfordshire County Council,"Older People, Phys Disabilities & Equip",Community Support Budget - Abingdon,Other Agency and Contracted Services,57401,Direct Payments,15/04/2015,3300001902,952,WK1 Advance Housing & Support
http://statistics.data.gov.uk/id/local-authority/38,Oxfordshire County Council,"Older People, Phys Disabilities & Equip",PD Comm Supp Purchasg Budget - Abingdon,Other Agency and Contracted Services,57401,Direct Payments,15/04/2015,3300001903,833.6,WK1 Advance Housing & Support
http://statistics.data.gov.uk/id/local-authority/38,Oxfordshire County Council,"Older People, Phys Disabilities & Equip",Community Support Budget - Abingdon,Other Agency and Contracted Services,57401,Direct Payments,15/04/2015,3300001904,1361.6,WK1 Advance Housing & Support
http://statistics.data.gov.uk/id/local-authority/38,Oxfordshire County Council,"Older People, Phys Disabilities & Equip",PD Comm Supp Purchasg Budget - Abingdon,Other Agency and Contracted Services,57401,Direct Payments,15/04/2015,3300001905,968,WK1 Advance Housing & Support
http://statistics.data.gov.uk/id/local-authority/38,Oxfordshire County Council,"Older People, Phys Disabilities & Equip",PD Comm Supp Purchasg Budget - Thame,Other Agency and Contracted Services,57401,Direct Payments,15/04/2015,3300001908,1028,WK1 Advance Housing & Support
http://statistics.data.gov.uk/id/local-authority/38,Oxfordshire County Council,"Older People, Phys Disabilities & Equip",PD Comm Supp Purchasg Budget - City,Other Agency and Contracted Services,57401,Direct Payments,15/04/2015,3300001909,1008,WK1 Advance Housing & Support
http://statistics.data.gov.uk/id/local-authority/38,Oxfordshire County Council,"Older People, Phys Disabilities & Equip",PD Comm Supp Purchasg Budget - Witney,Other Agency and Contracted Services,57401,Direct Payments,15/04/2015,3300001911,1664,WK1 Advance Housing & Support
http://statistics.data.gov.uk/id/local-authority/38,Oxfordshire County Council,Learning  Disabilities Pooled Budget,Direct Payments City Team,Other Agency and Contracted Services,57401,Direct Payments,15/04/2015,3300001915,7044,WK1 Advance Housing & Support
http://statistics.data.gov.uk/id/local-authority/38,Oxfordshire County Council,"Older People, Phys Disabilities & Equip",PD Comm Supp Purchasg Budget - Chip. N.,Other Agency and Contracted Services,57401,Direct Payments,15/04/2015,3300001916,1700,WK1 Advance Housing & Support
http://statistics.data.gov.uk/id/local-authority/38,Oxfordshire County Council,Learning  Disabilities Pooled Budget,Direct Payments City Team,Other Agency and Contracted Services,57401,Direct Payments,15/04/2015,3300001917,1009.2,WK1 Advance Housing & Support
http://statistics.data.gov.uk/id/local-authority/38,Oxfordshire County Council,"Older People, Phys Disabilities & Equip",PD CS Purch Budget - Health S28a JC,Other Agency and Contracted Services,57401,Direct Payments,15/04/2015,3300001918,2240,WK1 Advance Housing & Support
http://statistics.data.gov.uk/id/local-authority/38,Oxfordshire County Council,"Older People, Phys Disabilities & Equip",PD Comm Supp Budgt - Bicester/Kidlington,Other Agency and Contracted Services,57401,Direct Payments,15/04/2015,3300001918,2760,WK1 Advance Housing & Support
http://statistics.data.gov.uk/id/local-authority/38,Oxfordshire County Council,Learning  Disabilities Pooled Budget,Direct Payments City Team,Other Agency and Contracted Services,57401,Direct Payments,15/04/2015,3300001919,860,WK1 Advance Housing & Support
http://statistics.data.gov.uk/id/local-authority/38,Oxfordshire County Council,"Older People, Phys Disabilities & Equip",Community Support Budget - Banbury,Other Agency and Contracted Services,57401,Direct Payments,15/04/2015,3300001920,1054.68,WK1 Advance Housing & Support
http://statistics.data.gov.uk/id/local-authority/38,Oxfordshire County Council,Learning  Disabilities Pooled Budget,Direct Payments North Team,Other Agency and Contracted Services,57401,Direct Payments,15/04/2015,3300001921,600,WK1 Advance Housing & Support
http://statistics.data.gov.uk/id/local-authority/38,Oxfordshire County Council,"Older People, Phys Disabilities & Equip",Community Support Budget - Banbury,Other Agency and Contracted Services,57401,Direct Payments,15/04/2015,3300001922,908,WK1 Advance Housing & Support
http://statistics.data.gov.uk/id/local-authority/38,Oxfordshire County Council,"Older People, Phys Disabilities & Equip",PD Comm Supp Budget - Banbury,Other Agency and Contracted Services,57401,Direct Payments,15/04/2015,3300001923,679.2,WK1 Advance Housing & Support
http://statistics.data.gov.uk/id/local-authority/38,Oxfordshire County Council,"Older People, Phys Disabilities & Equip",PD Comm Supp Budget - Banbury,Other Agency and Contracted Services,57401,Direct Payments,15/04/2015,3300001924,4724.8,WK1 Advance Housing & Support
http://statistics.data.gov.uk/id/local-authority/38,Oxfordshire County Council,Learning  Disabilities Pooled Budget,Direct Payments South Team,Other Agency and Contracted Services,57401,Direct Payments,15/04/2015,3300001925,1336.24,WK1 Advance Housing & Support
http://statistics.data.gov.uk/id/local-authority/38,Oxfordshire County Council,"Older People, Phys Disabilities & Equip",PD Comm Supp Budget - Banbury,Other Agency and Contracted Services,57401,Direct Payments,15/04/2015,3300001926,596,WK1 Advance Housing & Support
http://statistics.data.gov.uk/id/local-authority/38,Oxfordshire County Council,"Older People, Phys Disabilities & Equip",PD Comm Supp Purchasg Budget - Henley,Other Agency and Contracted Services,57401,Direct Payments,15/04/2015,3300001928,628,WK1 Advance Housing & Support
http://statistics.data.gov.uk/id/local-authority/38,Oxfordshire County Council,"Older People, Phys Disabilities & Equip",PD Comm Supp Purchasg Budget - Abingdon,Other Agency and Contracted Services,57401,Direct Payments,15/04/2015,3300001929,528,WK1 Advance Housing & Support
http://statistics.data.gov.uk/id/local-authority/38,Oxfordshire County Council,"Older People, Phys Disabilities & Equip",Community Support Budget - Didcot,Other Agency and Contracted Services,57401,Direct Payments,15/04/2015,3300001930,1004,WK1 Advance Housing & Support
http://statistics.data.gov.uk/id/local-authority/38,Oxfordshire County Council,"Older People, Phys Disabilities & Equip",Community Support Budget - Wantage,Other Agency and Contracted Services,57401,Direct Payments,15/04/2015,3300001931,920,WK1 Advance Housing & Support
http://statistics.data.gov.uk/id/local-authority/38,Oxfordshire County Council,"Older People, Phys Disabilities & Equip",Community Support Budget - City,Other Agency and Contracted Services,57401,Direct Payments,15/04/2015,3300001933,1360,WK1 Advance Housing & Support
http://statistics.data.gov.uk/id/local-authority/38,Oxfordshire County Council,"Older People, Phys Disabilities & Equip",Community Support Budget - City,Other Agency and Contracted Services,57401,Direct Payments,15/04/2015,3300001934,836,SLG Charitable Trust Ltd
http://statistics.data.gov.uk/id/local-authority/38,Oxfordshire County Council,Learning  Disabilities Pooled Budget,Direct Payments South Team,Other Agency and Contracted Services,57401,Direct Payments,15/04/2015,3300001937,4629.92,REDACTED PERSONAL DATA
http://statistics.data.gov.uk/id/local-authority/38,Oxfordshire County Council,"Older People, Phys Disabilities & Equip",PD Comm Supp Purchasg Budget - Witney,Other Agency and Contracted Services,57401,Direct Payments,15/04/2015,3300001938,552,REDACTED PERSONAL DATA
http://statistics.data.gov.uk/id/local-authority/38,Oxfordshire County Council,"Older People, Phys Disabilities & Equip",Personal Health Budgets PD (PCT),Other Agency and Contracted Services,57401,Direct Payments,15/04/2015,3300001939,6679.2,REDACTED PERSONAL DATA
http://statistics.data.gov.uk/id/local-authority/38,Oxfordshire County Council,"Older People, Phys Disabilities & Equip",OP Pool Continuing Care Delegated Health,Other Agency and Contracted Services,57401,Direct Payments,15/04/2015,3300001941,1676,REDACTED PERSONAL DATA
http://statistics.data.gov.uk/id/local-authority/38,Oxfordshire County Council,"Older People, Phys Disabilities & Equip",Community Support Budget - Witney,Other Agency and Contracted Services,57401,Direct Payments,15/04/2015,3300001941,3028,REDACTED PERSONAL DATA
http://statistics.data.gov.uk/id/local-authority/38,Oxfordshire County Council,"Older People, Phys Disabilities & Equip",Personal Health Budgets PD (PCT),Other Agency and Contracted Services,57401,Direct Payments,15/04/2015,3300001942,5211.04,REDACTED PERSONAL DATA
http://statistics.data.gov.uk/id/local-authority/38,Oxfordshire County Council,"Older People, Phys Disabilities & Equip",Community Support Budget - City,Other Agency and Contracted Services,57401,Direct Payments,15/04/2015,3300001943,792,REDACTED PERSONAL DATA
http://statistics.data.gov.uk/id/local-authority/38,Oxfordshire County Council,"Older People, Phys Disabilities & Equip",Community Support Budget - Banbury,Other Agency and Contracted Services,57401,Direct Payments,15/04/2015,3300001944,1872,REDACTED PERSONAL DATA
http://statistics.data.gov.uk/id/local-authority/38,Oxfordshire County Council,"Older People, Phys Disabilities & Equip",Community Support Budget - Banbury,Other Agency and Contracted Services,57401,Direct Payments,15/04/2015,3300001944,2340,REDACTED PERSONAL DATA
http://statistics.data.gov.uk/id/local-authority/38,Oxfordshire County Council,"Older People, Phys Disabilities & Equip",Community Support Budget - Banbury,Other Agency and Contracted Services,57401,Direct Payments,15/04/2015,3300001944,-1930,REDACTED PERSONAL DATA
http://statistics.data.gov.uk/id/local-authority/38,Oxfordshire County Council,"Older People, Phys Disabilities & Equip",Community Support Budget - Didcot,Other Agency and Contracted Services,57401,Direct Payments,15/04/2015,3300001946,1964,REDACTED PERSONAL DATA
http://statistics.data.gov.uk/id/local-authority/38,Oxfordshire County Council,"Older People, Phys Disabilities & Equip",PD Comm Supp Purchasg Budget - Henley,Other Agency and Contracted Services,57401,Direct Payments,15/04/2015,3300001947,572,REDACTED PERSONAL DATA
http://statistics.data.gov.uk/id/local-authority/38,Oxfordshire County Council,"Older People, Phys Disabilities & Equip",Community Support Budget - Witney,Other Agency and Contracted Services,57401,Direct Payments,15/04/2015,3300001948,1875.36,REDACTED PERSONAL DATA
http://statistics.data.gov.uk/id/local-authority/38,Oxfordshire County Council,"Older People, Phys Disabilities & Equip",PHB OP Package,Other Agency and Contracted Services,57401,Direct Payments,15/04/2015,3300001949,25163.74,REDACTED PERSONAL DATA
http://statistics.data.gov.uk/id/local-authority/38,Oxfordshire County Council,"Older People, Phys Disabilities & Equip",PHB OP Package,Other Agency and Contracted Services,57401,Direct Payments,15/04/2015,3300001949,2276.64,REDACTED PERSONAL DATA
http://statistics.data.gov.uk/id/local-authority/38,Oxfordshire County Council,"Older People, Phys Disabilities & Equip",Community Support Budget - Bicester,Other Agency and Contracted Services,57401,Direct Payments,15/04/2015,3300001951,1530.04,REDACTED PERSONAL DATA
http://statistics.data.gov.uk/id/local-authority/38,Oxfordshire County Council,"Older People, Phys Disabilities & Equip",Community Support Budget - Didcot,Other Agency and Contracted Services,57401,Direct Payments,15/04/2015,3300001952,632,REDACTED PERSONAL DATA
http://statistics.data.gov.uk/id/local-authority/38,Oxfordshire County Council,Learning  Disabilities Pooled Budget,Direct Payments South Team,Other Agency and Contracted Services,57401,Direct Payments,15/04/2015,3300001953,907.08,REDACTED PERSONAL DATA
http://statistics.data.gov.uk/id/local-authority/38,Oxfordshire County Council,"Older People, Phys Disabilities & Equip",PD Comm Supp Purchasg Budget - City,Other Agency and Contracted Services,57401,Direct Payments,15/04/2015,3300001954,516.28,REDACTED PERSONAL DATA
http://statistics.data.gov.uk/id/local-authority/38,Oxfordshire County Council,Learning  Disabilities Pooled Budget,Direct Payments City Team,Other Agency and Contracted Services,57401,Direct Payments,15/04/2015,3300001955,1183.84,REDACTED PERSONAL DATA
http://statistics.data.gov.uk/id/local-authority/38,Oxfordshire County Council,"Older People, Phys Disabilities & Equip",Community Support Budget - Witney,Other Agency and Contracted Services,57401,Direct Payments,15/04/2015,3300001956,904,REDACTED PERSONAL DATA
http://statistics.data.gov.uk/id/local-authority/38,Oxfordshire County Council,Learning  Disabilities Pooled Budget,Direct Payments North Team,Other Agency and Contracted Services,57401,Direct Payments,15/04/2015,3300001957,2261,REDACTED PERSONAL DATA
http://statistics.data.gov.uk/id/local-authority/38,Oxfordshire County Council,"Older People, Phys Disabilities & Equip",Community Support Budget - Chipping Nort,Other Agency and Contracted Services,57401,Direct Payments,15/04/2015,3300001958,1396,REDACTED PERSONAL DATA
http://statistics.data.gov.uk/id/local-authority/38,Oxfordshire County Council,"Older People, Phys Disabilities & Equip",Community Support Budget - Thame,Other Agency and Contracted Services,57401,Direct Payments,15/04/2015,3300001959,1048,REDACTED PERSONAL DATA
http://statistics.data.gov.uk/id/local-authority/38,Oxfordshire County Council,"Older People, Phys Disabilities & Equip",Community Support Budget - Abingdon,Other Agency and Contracted Services,57401,Direct Payments,15/04/2015,3300001960,1323.8,REDACTED PERSONAL DATA
http://statistics.data.gov.uk/id/local-authority/38,Oxfordshire County Council,"Older People, Phys Disabilities & Equip",PD Comm Supp Purchasg Budget - Abingdon,Other Agency and Contracted Services,57401,Direct Payments,15/04/2015,3300001962,1291.16,REDACTED PERSONAL DATA
http://statistics.data.gov.uk/id/local-authority/38,Oxfordshire County Council,Learning  Disabilities Pooled Budget,Direct Payments South Team,Other Agency and Contracted Services,57401,Direct Payments,15/04/2015,3300001963,1014.16,REDACTED PERSONAL DATA
http://statistics.data.gov.uk/id/local-authority/38,Oxfordshire County Council,"Older People, Phys Disabilities & Equip",Community Support Budget - Bicester,Other Agency and Contracted Services,57401,Direct Payments,15/04/2015,3300001965,1597.6,REDACTED PERSONAL DATA
http://statistics.data.gov.uk/id/local-authority/38,Oxfordshire County Council,"Older People, Phys Disabilities & Equip",Community Support Budget - City,Other Agency and Contracted Services,57401,Direct Payments,15/04/2015,3300001966,916,REDACTED PERSONAL DATA
http://statistics.data.gov.uk/id/local-authority/38,Oxfordshire County Council,"Older People, Phys Disabilities & Equip",Personal Health Budgets PD (PCT),Other Agency and Contracted Services,57401,Direct Payments,15/04/2015,3300001968,10178.4,REDACTED PERSONAL DATA
http://statistics.data.gov.uk/id/local-authority/38,Oxfordshire County Council,"Older People, Phys Disabilities & Equip",Personal Health Budgets PD (PCT),Other Agency and Contracted Services,57401,Direct Payments,15/04/2015,3300001970,4393.28,REDACTED PERSONAL DATA
http://statistics.data.gov.uk/id/local-authority/38,Oxfordshire County Council,Learning  Disabilities Pooled Budget,Direct Payments South Team,Other Agency and Contracted Services,57401,Direct Payments,15/04/2015,3300001972,581.76,REDACTED PERSONAL DATA
http://statistics.data.gov.uk/id/local-authority/38,Oxfordshire County Council,"Older People, Phys Disabilities & Equip",Acquired Brain Injury (PCT),Other Agency and Contracted Services,57401,Direct Payments,15/04/2015,3300001973,3407.8,REDACTED PERSONAL DATA
http://statistics.data.gov.uk/id/local-authority/38,Oxfordshire County Council,"Older People, Phys Disabilities & Equip",Community Support Budget - Henley,Other Agency and Contracted Services,57401,Direct Payments,15/04/2015,3300001975,2068,REDACTED PERSONAL DATA
http://statistics.data.gov.uk/id/local-authority/38,Oxfordshire County Council,"Older People, Phys Disabilities & Equip",PD Comm Supp Purchasg Budget - Henley,Other Agency and Contracted Services,57401,Direct Payments,15/04/2015,3300001976,1568,REDACTED PERSONAL DATA
http://statistics.data.gov.uk/id/local-authority/38,Oxfordshire County Council,"Older People, Phys Disabilities & Equip",Community Support Budget - Witney,Other Agency and Contracted Services,57401,Direct Payments,15/04/2015,3300001977,1788,REDACTED PERSONAL DATA
http://statistics.data.gov.uk/id/local-authority/38,Oxfordshire County Council,Learning  Disabilities Pooled Budget,Direct Payments North Team,Other Agency and Contracted Services,57401,Direct Payments,15/04/2015,3300001980,567.84,REDACTED PERSONAL DATA
http://statistics.data.gov.uk/id/local-authority/38,Oxfordshire County Council,"Older People, Phys Disabilities & Equip",PD Comm Supp Purchasg Budget - Didcot,Other Agency and Contracted Services,57401,Direct Payments,15/04/2015,3300001982,672,REDACTED PERSONAL DATA
http://statistics.data.gov.uk/id/local-authority/38,Oxfordshire County Council,"Older People, Phys Disabilities & Equip",Community Support Budget - Kidlington,Other Agency and Contracted Services,57401,Direct Payments,15/04/2015,3300001983,976,REDACTED PERSONAL DATA
http://statistics.data.gov.uk/id/local-authority/38,Oxfordshire County Council,"Older People, Phys Disabilities & Equip",PD Comm Supp Purchasg Budget - Abingdon,Other Agency and Contracted Services,57401,Direct Payments,15/04/2015,3300001984,576,REDACTED PERSONAL DATA
http://statistics.data.gov.uk/id/local-authority/38,Oxfordshire County Council,"Older People, Phys Disabilities & Equip",Community Support Budget - Thame,Other Agency and Contracted Services,57401,Direct Payments,15/04/2015,3300001985,1304,REDACTED PERSONAL DATA
http://statistics.data.gov.uk/id/local-authority/38,Oxfordshire County Council,"Older People, Phys Disabilities & Equip",Community Support Budget - City,Other Agency and Contracted Services,57401,Direct Payments,15/04/2015,3300001986,1800,REDACTED PERSONAL DATA
http://statistics.data.gov.uk/id/local-authority/38,Oxfordshire County Council,Learning  Disabilities Pooled Budget,Direct Payments City Team,Other Agency and Contracted Services,57401,Direct Payments,15/04/2015,3300001987,520,REDACTED PERSONAL DATA
http://statistics.data.gov.uk/id/local-authority/38,Oxfordshire County Council,"Older People, Phys Disabilities & Equip",Community Support Budget - Banbury,Other Agency and Contracted Services,57401,Direct Payments,15/04/2015,3300001988,1688,REDACTED PERSONAL DATA
http://statistics.data.gov.uk/id/local-authority/38,Oxfordshire County Council,Learning  Disabilities Pooled Budget,Direct Payments North Team,Other Agency and Contracted Services,57401,Direct Payments,15/04/2015,3300001989,2597,REDACTED PERSONAL DATA
http://statistics.data.gov.uk/id/local-authority/38,Oxfordshire County Council,Learning  Disabilities Pooled Budget,Direct Payments South Team,Other Agency and Contracted Services,57401,Direct Payments,15/04/2015,3300001990,2933,REDACTED PERSONAL DATA
http://statistics.data.gov.uk/id/local-authority/38,Oxfordshire County Council,Learning  Disabilities Pooled Budget,Direct Payments City Team,Other Agency and Contracted Services,57401,Direct Payments,15/04/2015,3300001991,1364,REDACTED PERSONAL DATA
http://statistics.data.gov.uk/id/local-authority/38,Oxfordshire County Council,Learning  Disabilities Pooled Budget,Direct Payments South Team,Other Agency and Contracted Services,57401,Direct Payments,15/04/2015,3300001992,2043.24,REDACTED PERSONAL DATA
http://statistics.data.gov.uk/id/local-authority/38,Oxfordshire County Council,Learning  Disabilities Pooled Budget,Direct Payments South Team,Other Agency and Contracted Services,57401,Direct Payments,15/04/2015,3300001992,3064.86,REDACTED PERSONAL DATA
http://statistics.data.gov.uk/id/local-authority/38,Oxfordshire County Council,Learning  Disabilities Pooled Budget,Direct Payments South Team,Other Agency and Contracted Services,57401,Direct Payments,15/04/2015,3300001992,-1989.12,REDACTED PERSONAL DATA
http://statistics.data.gov.uk/id/local-authority/38,Oxfordshire County Council,Learning  Disabilities Pooled Budget,Direct Payments South Team,Other Agency and Contracted Services,57401,Direct Payments,15/04/2015,3300001993,9744,REDACTED PERSONAL DATA
http://statistics.data.gov.uk/id/local-authority/38,Oxfordshire County Council,Learning  Disabilities Pooled Budget,Direct Payments City Team,Other Agency and Contracted Services,57401,Direct Payments,15/04/2015,3300001994,1724,REDACTED PERSONAL DATA
http://statistics.data.gov.uk/id/local-authority/38,Oxfordshire County Council,Learning  Disabilities Pooled Budget,Direct Payments North Team,Other Agency and Contracted Services,57401,Direct Payments,15/04/2015,3300001995,3580.16,REDACTED PERSONAL DATA
http://statistics.data.gov.uk/id/local-authority/38,Oxfordshire County Council,Learning  Disabilities Pooled Budget,Direct Payments South Team,Other Agency and Contracted Services,57401,Direct Payments,15/04/2015,3300001996,1920,REDACTED PERSONAL DATA
http://statistics.data.gov.uk/id/local-authority/38,Oxfordshire County Council,"Older People, Phys Disabilities & Equip",PD Comm Supp Purchasg Budget - Chip. N.,Other Agency and Contracted Services,57401,Direct Payments,15/04/2015,3300001999,7719.84,REDACTED PERSONAL DATA
http://statistics.data.gov.uk/id/local-authority/38,Oxfordshire County Council,Learning  Disabilities Pooled Budget,Direct Payments South Team,Other Agency and Contracted Services,57401,Direct Payments,15/04/2015,3300002000,2076.92,REDACTED PERSONAL DATA
http://statistics.data.gov.uk/id/local-authority/38,Oxfordshire County Council,Learning  Disabilities Pooled Budget,Direct Payments South Team,Other Agency and Contracted Services,57401,Direct Payments,15/04/2015,3300002001,2995.08,REDACTED PERSONAL DATA
http://statistics.data.gov.uk/id/local-authority/38,Oxfordshire County Council,"Older People, Phys Disabilities & Equip",PD Comm Supp Purchasg Budget - City,Other Agency and Contracted Services,57401,Direct Payments,15/04/2015,3300002002,800,REDACTED PERSONAL DATA
http://statistics.data.gov.uk/id/local-authority/38,Oxfordshire County Council,"Older People, Phys Disabilities & Equip",Community Support Budget - City,Other Agency and Contracted Services,57401,Direct Payments,15/04/2015,3300002003,968,REDACTED PERSONAL DATA
http://statistics.data.gov.uk/id/local-authority/38,Oxfordshire County Council,"Older People, Phys Disabilities & Equip",Community Support Budget - City,Other Agency and Contracted Services,57401,Direct Payments,15/04/2015,3300002004,616,REDACTED PERSONAL DATA
http://statistics.data.gov.uk/id/local-authority/38,Oxfordshire County Council,Learning  Disabilities Pooled Budget,Direct Payments South Team,Other Agency and Contracted Services,57401,Direct Payments,15/04/2015,3300002006,1984,REDACTED PERSONAL DATA
http://statistics.data.gov.uk/id/local-authority/38,Oxfordshire County Council,Learning  Disabilities Pooled Budget,Direct Payments North Team,Other Agency and Contracted Services,57401,Direct Payments,15/04/2015,3300002007,7973,REDACTED PERSONAL DATA
http://statistics.data.gov.uk/id/local-authority/38,Oxfordshire County Council,"Older People, Phys Disabilities & Equip",Community Support Budget - Abingdon,Other Agency and Contracted Services,57401,Direct Payments,15/04/2015,3300002010,912,REDACTED PERSONAL DATA
http://statistics.data.gov.uk/id/local-authority/38,Oxfordshire County Council,Learning  Disabilities Pooled Budget,Direct Payments South Team,Other Agency and Contracted Services,57401,Direct Payments,15/04/2015,3300002011,768,REDACTED PERSONAL DATA
http://statistics.data.gov.uk/id/local-authority/38,Oxfordshire County Council,"Older People, Phys Disabilities & Equip",Community Support Budget - Thame,Other Agency and Contracted Services,57401,Direct Payments,15/04/2015,3300002012,852,REDACTED PERSONAL DATA
http://statistics.data.gov.uk/id/local-authority/38,Oxfordshire County Council,Learning  Disabilities Pooled Budget,Direct Payments City Team,Other Agency and Contracted Services,57401,Direct Payments,15/04/2015,3300002015,2112,REDACTED PERSONAL DATA
http://statistics.data.gov.uk/id/local-authority/38,Oxfordshire County Council,"Older People, Phys Disabilities & Equip",PD Comm Supp Purchasg Budget - Didcot,Other Agency and Contracted Services,57401,Direct Payments,15/04/2015,3300002016,1964,REDACTED PERSONAL DATA
http://statistics.data.gov.uk/id/local-authority/38,Oxfordshire County Council,"Older People, Phys Disabilities & Equip",Community Support Budget - Thame,Other Agency and Contracted Services,57401,Direct Payments,15/04/2015,3300002017,1000,REDACTED PERSONAL DATA
http://statistics.data.gov.uk/id/local-authority/38,Oxfordshire County Council,"Older People, Phys Disabilities & Equip",Community Support Budget - Wantage,Other Agency and Contracted Services,57401,Direct Payments,15/04/2015,3300002020,2872,REDACTED PERSONAL DATA
http://statistics.data.gov.uk/id/local-authority/38,Oxfordshire County Council,"Older People, Phys Disabilities & Equip",Community Support Budget - Henley,Other Agency and Contracted Services,57401,Direct Payments,15/04/2015,3300002021,984,REDACTED PERSONAL DATA
http://statistics.data.gov.uk/id/local-authority/38,Oxfordshire County Council,Learning  Disabilities Pooled Budget,Direct Payments City Team,Other Agency and Contracted Services,57401,Direct Payments,15/04/2015,3300002022,996,REDACTED PERSONAL DATA
http://statistics.data.gov.uk/id/local-authority/38,Oxfordshire County Council,"Older People, Phys Disabilities & Equip",PD Comm Supp Purchasg Budget - Abingdon,Other Agency and Contracted Services,57401,Direct Payments,15/04/2015,3300002023,928,REDACTED PERSONAL DATA
http://statistics.data.gov.uk/id/local-authority/38,Oxfordshire County Council,"Older People, Phys Disabilities & Equip",Community Support Budget - Didcot,Other Agency and Contracted Services,57401,Direct Payments,15/04/2015,3300002024,1504,REDACTED PERSONAL DATA
http://statistics.data.gov.uk/id/local-authority/38,Oxfordshire County Council,"Older People, Phys Disabilities & Equip",Community Support Budget - Didcot,Other Agency and Contracted Services,57401,Direct Payments,15/04/2015,3300002025,588,REDACTED PERSONAL DATA
http://statistics.data.gov.uk/id/local-authority/38,Oxfordshire County Council,"Older People, Phys Disabilities & Equip",PD Community Support Budget - Faringdon,Other Agency and Contracted Services,57401,Direct Payments,15/04/2015,3300002026,1100,REDACTED PERSONAL DATA
http://statistics.data.gov.uk/id/local-authority/38,Oxfordshire County Council,Learning  Disabilities Pooled Budget,Direct Payments South Team,Other Agency and Contracted Services,57401,Direct Payments,15/04/2015,3300002027,753.24,REDACTED PERSONAL DATA
http://statistics.data.gov.uk/id/local-authority/38,Oxfordshire County Council,"Older People, Phys Disabilities & Equip",Community Support Budget - Banbury,Other Agency and Contracted Services,57401,Direct Payments,15/04/2015,3300002029,4620,REDACTED PERSONAL DATA
http://statistics.data.gov.uk/id/local-authority/38,Oxfordshire County Council,"Older People, Phys Disabilities & Equip",OP Pool Continuing Care Delegated Health,Other Agency and Contracted Services,57401,Direct Payments,15/04/2015,3300002030,594.96,REDACTED PERSONAL DATA
http://statistics.data.gov.uk/id/local-authority/38,Oxfordshire County Council,"Older People, Phys Disabilities & Equip",Community Support Budget - Faringdon,Other Agency and Contracted Services,57401,Direct Payments,15/04/2015,3300002030,1601.04,REDACTED PERSONAL DATA
http://statistics.data.gov.uk/id/local-authority/38,Oxfordshire County Council,"Older People, Phys Disabilities & Equip",Community Support Budget - Didcot,Other Agency and Contracted Services,57401,Direct Payments,15/04/2015,3300002031,1242.8,REDACTED PERSONAL DATA
http://statistics.data.gov.uk/id/local-authority/38,Oxfordshire County Council,"Older People, Phys Disabilities & Equip",Community Support Budget - Didcot,Other Agency and Contracted Services,57401,Direct Payments,15/04/2015,3300002031,1109.64,REDACTED PERSONAL DATA
http://statistics.data.gov.uk/id/local-authority/38,Oxfordshire County Council,"Older People, Phys Disabilities & Equip",PD Comm Supp Purchasg Budget - Abingdon,Other Agency and Contracted Services,57401,Direct Payments,15/04/2015,3300002032,5233.32,REDACTED PERSONAL DATA
http://statistics.data.gov.uk/id/local-authority/38,Oxfordshire County Council,"Older People, Phys Disabilities & Equip",Community Support Budget - City,Other Agency and Contracted Services,57401,Direct Payments,15/04/2015,3300002033,2808,REDACTED PERSONAL DATA
http://statistics.data.gov.uk/id/local-authority/38,Oxfordshire County Council,"Older People, Phys Disabilities & Equip",PD Comm Supp Purchasg Budget - City,Other Agency and Contracted Services,57401,Direct Payments,15/04/2015,3300002034,1135.04,REDACTED PERSONAL DATA
http://statistics.data.gov.uk/id/local-authority/38,Oxfordshire County Council,"Older People, Phys Disabilities & Equip",PD Comm Supp Purchasg Budget - Thame,Other Agency and Contracted Services,57401,Direct Payments,15/04/2015,3300002035,1301.71,REDACTED PERSONAL DATA
http://statistics.data.gov.uk/id/local-authority/38,Oxfordshire County Council,"Older People, Phys Disabilities & Equip",PD Comm Supp Purchasg Budget - Thame,Other Agency and Contracted Services,57401,Direct Payments,15/04/2015,3300002035,544,REDACTED PERSONAL DATA
http://statistics.data.gov.uk/id/local-authority/38,Oxfordshire County Council,Learning  Disabilities Pooled Budget,Direct Payments City Team,Other Agency and Contracted Services,57401,Direct Payments,15/04/2015,3300002036,769.32,REDACTED PERSONAL DATA
http://statistics.data.gov.uk/id/local-authority/38,Oxfordshire County Council,"Older People, Phys Disabilities & Equip",Community Support Budget - City,Other Agency and Contracted Services,57401,Direct Payments,15/04/2015,3300002037,988.16,REDACTED PERSONAL DATA
http://statistics.data.gov.uk/id/local-authority/38,Oxfordshire County Council,Learning  Disabilities Pooled Budget,Direct Payments City Team,Other Agency and Contracted Services,57401,Direct Payments,15/04/2015,3300002038,1764.4,REDACTED PERSONAL DATA
http://statistics.data.gov.uk/id/local-authority/38,Oxfordshire County Council,"Older People, Phys Disabilities & Equip",PD Comm Supp Purchasg Budget - City,Other Agency and Contracted Services,57401,Direct Payments,15/04/2015,3300002039,1172,REDACTED PERSONAL DATA
http://statistics.data.gov.uk/id/local-authority/38,Oxfordshire County Council,"Older People, Phys Disabilities & Equip",PD CS Purch Budget - Health S28a JC,Other Agency and Contracted Services,57401,Direct Payments,15/04/2015,3300002040,568,REDACTED PERSONAL DATA
http://statistics.data.gov.uk/id/local-authority/38,Oxfordshire County Council,"Older People, Phys Disabilities & Equip",PD Comm Supp Purchasg Budget - City,Other Agency and Contracted Services,57401,Direct Payments,15/04/2015,3300002040,1778.52,REDACTED PERSONAL DATA
http://statistics.data.gov.uk/id/local-authority/38,Oxfordshire County Council,"Older People, Phys Disabilities & Equip",PD Comm Supp Purchasg Budget - City,Other Agency and Contracted Services,57401,Direct Payments,15/04/2015,3300002041,510,REDACTED PERSONAL DATA
http://statistics.data.gov.uk/id/local-authority/38,Oxfordshire County Council,"Older People, Phys Disabilities & Equip",Community Support Budget - Didcot,Other Agency and Contracted Services,57401,Direct Payments,15/04/2015,3300002042,927.52,REDACTED PERSONAL DATA
http://statistics.data.gov.uk/id/local-authority/38,Oxfordshire County Council,"Older People, Phys Disabilities & Equip",Community Support Budget - Henley,Other Agency and Contracted Services,57401,Direct Payments,15/04/2015,3300002043,1040,REDACTED PERSONAL DATA
http://statistics.data.gov.uk/id/local-authority/38,Oxfordshire County Council,Learning  Disabilities Pooled Budget,Direct Payments South Team,Other Agency and Contracted Services,57401,Direct Payments,15/04/2015,3300002044,5223.92,REDACTED PERSONAL DATA
http://statistics.data.gov.uk/id/local-authority/38,Oxfordshire County Council,Learning  Disabilities Pooled Budget,Direct Payments South Team,Other Agency and Contracted Services,57401,Direct Payments,15/04/2015,3300002045,4898.8,REDACTED PERSONAL DATA
http://statistics.data.gov.uk/id/local-authority/38,Oxfordshire County Council,Learning  Disabilities Pooled Budget,Direct Payments South Team,Other Agency and Contracted Services,57401,Direct Payments,15/04/2015,3300002046,11990.12,REDACTED PERSONAL DATA
http://statistics.data.gov.uk/id/local-authority/38,Oxfordshire County Council,Learning  Disabilities Pooled Budget,Direct Payments South Team,Other Agency and Contracted Services,57401,Direct Payments,15/04/2015,3300002049,3734.68,REDACTED PERSONAL DATA
http://statistics.data.gov.uk/id/local-authority/38,Oxfordshire County Council,Learning  Disabilities Pooled Budget,Direct Payments City Team,Other Agency and Contracted Services,57401,Direct Payments,15/04/2015,3300002050,524,REDACTED PERSONAL DATA
http://statistics.data.gov.uk/id/local-authority/38,Oxfordshire County Council,Learning  Disabilities Pooled Budget,Direct Payments North Team,Other Agency and Contracted Services,57401,Direct Payments,15/04/2015,3300002051,6923.24,REDACTED PERSONAL DATA
http://statistics.data.gov.uk/id/local-authority/38,Oxfordshire County Council,"Older People, Phys Disabilities & Equip",Community Support Budget - Bicester,Other Agency and Contracted Services,57401,Direct Payments,15/04/2015,3300002052,1360,REDACTED PERSONAL DATA
http://statistics.data.gov.uk/id/local-authority/38,Oxfordshire County Council,Learning  Disabilities Pooled Budget,Direct Payments City Team,Other Agency and Contracted Services,57401,Direct Payments,15/04/2015,3300002053,3414.76,REDACTED PERSONAL DATA
http://statistics.data.gov.uk/id/local-authority/38,Oxfordshire County Council,"Older People, Phys Disabilities & Equip",Community Support Budget - Banbury,Other Agency and Contracted Services,57401,Direct Payments,15/04/2015,3300002054,2307.2,REDACTED PERSONAL DATA
http://statistics.data.gov.uk/id/local-authority/38,Oxfordshire County Council,"Older People, Phys Disabilities & Equip",PD Comm Supp Budget - Banbury,Other Agency and Contracted Services,57401,Direct Payments,15/04/2015,3300002055,5561.88,REDACTED PERSONAL DATA
http://statistics.data.gov.uk/id/local-authority/38,Oxfordshire County Council,Learning  Disabilities Pooled Budget,Direct Payments North Team,Other Agency and Contracted Services,57401,Direct Payments,15/04/2015,3300002056,4943.4,REDACTED PERSONAL DATA
http://statistics.data.gov.uk/id/local-authority/38,Oxfordshire County Council,"Older People, Phys Disabilities & Equip",Community Support Budget - Henley,Other Agency and Contracted Services,57401,Direct Payments,15/04/2015,3300002057,1240,REDACTED PERSONAL DATA
http://statistics.data.gov.uk/id/local-authority/38,Oxfordshire County Council,Learning  Disabilities Pooled Budget,Direct Payments North Team,Other Agency and Contracted Services,57401,Direct Payments,15/04/2015,3300002058,570,REDACTED PERSONAL DATA
http://statistics.data.gov.uk/id/local-authority/38,Oxfordshire County Council,"Older People, Phys Disabilities & Equip",Community Support Budget - Henley,Other Agency and Contracted Services,57401,Direct Payments,15/04/2015,3300002059,1532,REDACTED PERSONAL DATA
http://statistics.data.gov.uk/id/local-authority/38,Oxfordshire County Council,"Older People, Phys Disabilities & Equip",PD Comm Supp Purchasg Budget - City,Other Agency and Contracted Services,57401,Direct Payments,15/04/2015,3300002061,808,Citibank NA London
http://statistics.data.gov.uk/id/local-authority/38,Oxfordshire County Council,"Older People, Phys Disabilities & Equip",PD Comm Supp Purchasg Budget - Didcot,Other Agency and Contracted Services,57401,Direct Payments,15/04/2015,3300002062,560,Citibank NA London
http://statistics.data.gov.uk/id/local-authority/38,Oxfordshire County Council,Learning  Disabilities Pooled Budget,Direct Payments City Team,Other Agency and Contracted Services,57401,Direct Payments,15/04/2015,3300002068,560,Oxford Wholefoods
http://statistics.data.gov.uk/id/local-authority/38,Oxfordshire County Council,Learning  Disabilities Pooled Budget,Direct Payments City Team,Other Agency and Contracted Services,57401,Direct Payments,15/04/2015,3300002073,560,Oxford Wholefoods
http://statistics.data.gov.uk/id/local-authority/38,Oxfordshire County Council,Children's Social Care,Service Manager - Disabilities,Other Agency and Contracted Services,57401,Direct Payments,15/04/2015,3300002102,631.73,REDACTED PERSONAL DATA
http://statistics.data.gov.uk/id/local-authority/38,Oxfordshire County Council,"Older People, Phys Disabilities & Equip",Carers Break / Respite Project,Other Agency and Contracted Services,57401,Direct Payments,15/04/2015,3300002440,600,REDACTED PERSONAL DATA
http://statistics.data.gov.uk/id/local-authority/38,Oxfordshire County Council,Learning  Disabilities Pooled Budget,OCCG Carers,Other Agency and Contracted Services,57401,Direct Payments,15/04/2015,3300002443,600,REDACTED PERSONAL DATA
http://statistics.data.gov.uk/id/local-authority/38,Oxfordshire County Council,"Older People, Phys Disabilities & Equip",Community Support Budget - Abingdon,Other Agency and Contracted Services,57401,Direct Payments,15/04/2015,3300002444,2080,REDACTED PERSONAL DATA
http://statistics.data.gov.uk/id/local-authority/38,Oxfordshire County Council,"Older People, Phys Disabilities & Equip",Community Support Budget - City,Other Agency and Contracted Services,57401,Direct Payments,15/04/2015,3300002468,581.28,REDACTED PERSONAL DATA
http://statistics.data.gov.uk/id/local-authority/38,Oxfordshire County Council,Adult Social Care,MH Carers Grant,Other Agency and Contracted Services,57401,Direct Payments,15/04/2015,3300002470,600,REDACTED PERSONAL DATA
http://statistics.data.gov.uk/id/local-authority/38,Oxfordshire County Council,"Older People, Phys Disabilities & Equip",PD Comm Supp Purchasg Budget - Didcot,Other Agency and Contracted Services,57401,Direct Payments,15/04/2015,3300002516,2983.71,WK1 Advance Housing & Support
http://statistics.data.gov.uk/id/local-authority/38,Oxfordshire County Council,"Older People, Phys Disabilities & Equip",PD CS Purch Budget - Health S28a JC,Other Agency and Contracted Services,57401,Direct Payments,15/04/2015,3300002516,1129.43,WK1 Advance Housing & Support
http://statistics.data.gov.uk/id/local-authority/38,Oxfordshire County Council,"Older People, Phys Disabilities & Equip",PD Comm Supp Purchasg Budget - Didcot,Other Agency and Contracted Services,57401,Direct Payments,15/04/2015,3300002516,1560,WK1 Advance Housing & Support
http://statistics.data.gov.uk/id/local-authority/38,Oxfordshire County Council,"Older People, Phys Disabilities & Equip",PD Comm Supp Purchasg Budget - City,Other Agency and Contracted Services,57401,Direct Payments,15/04/2015,3300002517,2428.44,1 Off Advance Housing & Support
http://statistics.data.gov.uk/id/local-authority/38,Oxfordshire County Council,Law & Culture,Arts Grants,Grants and Subscriptions,47100,Grants to Voluntary,21/04/2015,3300003980,5000,Oxfordshire Visual Arts Dev. Agency
http://statistics.data.gov.uk/id/local-authority/38,Oxfordshire County Council,"Older People, Phys Disabilities & Equip",Community Support Budget - Didcot,Other Agency and Contracted Services,57401,Direct Payments,20/04/2015,3300004134,1315,REDACTED PERSONAL DATA
http://statistics.data.gov.uk/id/local-authority/38,Oxfordshire County Council,Children's Social Care,Service Manager - Disabilities,Other Agency and Contracted Services,57401,Direct Payments,20/04/2015,3300004135,1455.45,REDACTED PERSONAL DATA
http://statistics.data.gov.uk/id/local-authority/38,Oxfordshire County Council,"Older People, Phys Disabilities & Equip",Community Support Budget - Bicester,Other Agency and Contracted Services,57401,Direct Payments,20/04/2015,3300004136,565,REDACTED PERSONAL DATA
http://statistics.data.gov.uk/id/local-authority/38,Oxfordshire County Council,"Older People, Phys Disabilities & Equip",Carers Break / Respite Project,Other Agency and Contracted Services,57401,Direct Payments,20/04/2015,3300004137,600,REDACTED PERSONAL DATA
http://statistics.data.gov.uk/id/local-authority/38,Oxfordshire County Council,"Older People, Phys Disabilities & Equip",Carers Break / Respite Project,Other Agency and Contracted Services,57401,Direct Payments,20/04/2015,3300004142,600,REDACTED PERSONAL DATA
http://statistics.data.gov.uk/id/local-authority/38,Oxfordshire County Council,Adult Social Care,MH Carers Grant,Other Agency and Contracted Services,57401,Direct Payments,20/04/2015,3300004143,600,REDACTED PERSONAL DATA
http://statistics.data.gov.uk/id/local-authority/38,Oxfordshire County Council,"Older People, Phys Disabilities & Equip",Carers Break / Respite Project,Other Agency and Contracted Services,57401,Direct Payments,20/04/2015,3300004145,600,REDACTED PERSONAL DATA
http://statistics.data.gov.uk/id/local-authority/38,Oxfordshire County Council,"Older People, Phys Disabilities & Equip",Carers Break / Respite Project,Other Agency and Contracted Services,57401,Direct Payments,20/04/2015,3300004157,600,REDACTED PERSONAL DATA
http://statistics.data.gov.uk/id/local-authority/38,Oxfordshire County Council,"Older People, Phys Disabilities & Equip",Carers Break / Respite Project,Other Agency and Contracted Services,57401,Direct Payments,20/04/2015,3300004163,600,REDACTED PERSONAL DATA
http://statistics.data.gov.uk/id/local-authority/38,Oxfordshire County Council,"Older People, Phys Disabilities & Equip",PD Comm Supp Budget - Banbury,Other Agency and Contracted Services,57401,Direct Payments,20/04/2015,3300004164,3305.02,1 Off Advance Housing & Support
http://statistics.data.gov.uk/id/local-authority/38,Oxfordshire County Council,Education & Early Intervention,EIBI & Alternative Programmes,Services,44200,Consultants Fees,21/04/2015,3300004715,595,Oona Bannister
http://statistics.data.gov.uk/id/local-authority/38,Oxfordshire County Council,Education & Early Intervention,EIBI & Alternative Programmes,Services,44200,Consultants Fees,21/04/2015,3300004716,1964.15,Oona Bannister
http://statistics.data.gov.uk/id/local-authority/38,Oxfordshire County Council,Education & Early Intervention,EYP peer to peer & communication support,"Equipment, Furniture and Materials",41515,Educational Visits,22/04/2015,3300004777,572,Oxford Brookes University Nursery
http://statistics.data.gov.uk/id/local-authority/38,Oxfordshire County Council,"Older People, Phys Disabilities & Equip",Community Support Budget - Henley,Other Agency and Contracted Services,57401,Direct Payments,22/04/2015,3300004818,2304,Citibank NA London
http://statistics.data.gov.uk/id/local-authority/38,Oxfordshire County Council,"Older People, Phys Disabilities & Equip",Community Support Budget - Henley,Other Agency and Contracted Services,57401,Direct Payments,22/04/2015,3300004820,1924,Citibank NA London
http://statistics.data.gov.uk/id/local-authority/38,Oxfordshire County Council,"Older People, Phys Disabilities & Equip",Community Support Budget - City,Other Agency and Contracted Services,57401,Direct Payments,22/04/2015,3300004821,3727,Citibank NA London
http://statistics.data.gov.uk/id/local-authority/38,Oxfordshire County Council,"Older People, Phys Disabilities & Equip",Community Support Budget - Chipping Nort,Other Agency and Contracted Services,57401,Direct Payments,22/04/2015,3300004822,540,Citibank NA London
http://statistics.data.gov.uk/id/local-authority/38,Oxfordshire County Council,"Older People, Phys Disabilities & Equip",PD Comm Supp Purchasg Budget - Witney,Other Agency and Contracted Services,57401,Direct Payments,22/04/2015,3300004823,824,Citibank NA London
http://statistics.data.gov.uk/id/local-authority/38,Oxfordshire County Council,"Older People, Phys Disabilities & Equip",PD Comm Supp Budget - Banbury,Other Agency and Contracted Services,57401,Direct Payments,22/04/2015,3300004825,924.08,Citibank NA London
http://statistics.data.gov.uk/id/local-authority/38,Oxfordshire County Council,Learning  Disabilities Pooled Budget,Direct Payments South Team,Other Agency and Contracted Services,57401,Direct Payments,22/04/2015,3300004826,2634.16,Citibank NA London
http://statistics.data.gov.uk/id/local-authority/38,Oxfordshire County Council,"Older People, Phys Disabilities & Equip",Community Support Budget - Henley,Other Agency and Contracted Services,57401,Direct Payments,22/04/2015,3300004828,3400,Citibank NA London
http://statistics.data.gov.uk/id/local-authority/38,Oxfordshire County Council,"Older People, Phys Disabilities & Equip",PD Comm Supp Purchasg Budget - Abingdon,Other Agency and Contracted Services,57401,Direct Payments,22/04/2015,3300004829,1220,Citibank NA London
http://statistics.data.gov.uk/id/local-authority/38,Oxfordshire County Council,"Older People, Phys Disabilities & Equip",Community Support Budget - Didcot,Other Agency and Contracted Services,57401,Direct Payments,22/04/2015,3300004830,1676,Citibank NA London
http://statistics.data.gov.uk/id/local-authority/38,Oxfordshire County Council,"Older People, Phys Disabilities & Equip",PD Comm Supp Purchasg Budget - Abingdon,Other Agency and Contracted Services,57401,Direct Payments,22/04/2015,3300004831,714.6,Citibank NA London
http://statistics.data.gov.uk/id/local-authority/38,Oxfordshire County Council,"Older People, Phys Disabilities & Equip",Community Support Budget - City,Other Agency and Contracted Services,57401,Direct Payments,22/04/2015,3300004832,4481.8,REDACTED PERSONAL DATA
http://statistics.data.gov.uk/id/local-authority/38,Oxfordshire County Council,Learning  Disabilities Pooled Budget,Direct Payments North Team,Other Agency and Contracted Services,57401,Direct Payments,22/04/2015,3300004833,1208,REDACTED PERSONAL DATA
http://statistics.data.gov.uk/id/local-authority/38,Oxfordshire County Council,Learning  Disabilities Pooled Budget,Direct Payments North Team,Other Agency and Contracted Services,57401,Direct Payments,22/04/2015,3300004834,906.08,REDACTED PERSONAL DATA
http://statistics.data.gov.uk/id/local-authority/38,Oxfordshire County Council,"Older People, Phys Disabilities & Equip",Community Support Budget - Henley,Other Agency and Contracted Services,57401,Direct Payments,22/04/2015,3300004835,1272,REDACTED PERSONAL DATA
http://statistics.data.gov.uk/id/local-authority/38,Oxfordshire County Council,"Older People, Phys Disabilities & Equip",PD Comm Supp Purchasg Budget - Wantage,Other Agency and Contracted Services,57401,Direct Payments,22/04/2015,3300004836,3056.92,REDACTED PERSONAL DATA
http://statistics.data.gov.uk/id/local-authority/38,Oxfordshire County Council,"Older People, Phys Disabilities & Equip",PD Comm Supp Purchasg Budget - Didcot,Other Agency and Contracted Services,57401,Direct Payments,22/04/2015,3300004838,1828,REDACTED PERSONAL DATA
http://statistics.data.gov.uk/id/local-authority/38,Oxfordshire County Council,Learning  Disabilities Pooled Budget,Direct Payments South Team,Other Agency and Contracted Services,57401,Direct Payments,22/04/2015,3300004839,1825.08,REDACTED PERSONAL DATA
